Service Delivery Area(T),Service Delivery Team(T),ExpenditureGroup(T),Account(T),Supplier Name(T),Trans Date,Amount
Neighbourhood & Enforcement Services,Strategic Transport & Highway Network Management,Transport-Related Expenditure,Outside Hire, Enterprise Flexi Rent,27/02/2023,327.71
Neighbourhood & Enforcement Services,Strategic Transport & Highway Network Management,Transport-Related Expenditure,Outside Hire, Enterprise Flexi Rent,17/02/2023,327.71
Prosperity & Investment,BiT,Premises-Related Expenditure,R&M -Buildings DLO Charge, INDUSTRIAL SERVICES,17/02/2023,282.13
Adult Social Care,ASC Prevention & Enablement,Supplies & Services,Equipment - Hire,1st Call Mobility,01/02/2023,372.50
Adult Social Care,ASC Prevention & Enablement,Supplies & Services,Equipment - Hire,1st Call Mobility,01/02/2023,"1,050.00"
Education & Skills,SEND (0-25),Transport-Related Expenditure,Taxi Costs,24X7 Ltd,14/02/2023,"8,303.19"
Education & Skills,SEND (0-25),Transport-Related Expenditure,Taxi Costs,24X7 Ltd,16/02/2023,"4,278.61"
Education & Skills,SEND (0-25),Transport-Related Expenditure,Taxi Costs,24X7 Ltd,16/02/2023,442.84
Education & Skills,SEND (0-25),Transport-Related Expenditure,Taxi Costs,365 Transports Ltd,28/02/2023,"1,210.00"
Policy & Governance,Governance & Legal Services,Supplies & Services,Legal Expenses,39 Essex Chambers,23/02/2023,"5,000.00"
Health & Wellbeing,Health Improvement,Supplies & Services,Libraries Book Fund,A & H Library Services Ltd,07/02/2023,159.14
Health & Wellbeing,Health Improvement,Supplies & Services,Libraries Book Fund,A & H Library Services Ltd,07/02/2023,350.50
Health & Wellbeing,Health Improvement,Supplies & Services,Libraries Book Fund,A & H Library Services Ltd,06/02/2023,175.96
Health & Wellbeing,Health Improvement,Supplies & Services,Libraries Book Fund,A & H Library Services Ltd,24/02/2023,245.65
Health & Wellbeing,Health Improvement,Supplies & Services,Libraries Book Fund,A & H Library Services Ltd,24/02/2023,282.52
Health & Wellbeing,Health Improvement,Supplies & Services,Libraries Book Fund,A & H Library Services Ltd,21/02/2023,243.62
Health & Wellbeing,Health Improvement,Supplies & Services,Libraries Book Fund,A & H Library Services Ltd,21/02/2023,267.02
Health & Wellbeing,Health Improvement,Supplies & Services,Libraries Book Fund,A & HLibrary Services Ltd,21/02/2023,256.30
Prosperity & Investment,BiT,Supplies & Services,Consultancy,A B ASSOCIATES,17/02/2023,"3,200.00"
Prosperity & Investment,Regeneration & Investment,Premises-Related Expenditure,R&M -Building Other,A B ASSOCIATES,28/02/2023,875.00
Prosperity & Investment,Regeneration & Investment,Capital Expenditure,Payments to Contractor,A B ASSOCIATES,21/02/2023,260.00
Policy & Governance,Governance & Legal Services,Supplies & Services,Legal Expenses,A C Solicitors LLP,06/02/2023,"1,214.50"
Neighbourhood & Enforcement Services,Strategic Transport & Highway Network Management,Capital Expenditure,Payments to Contractor,A LIMITED,16/02/2023,"12,393.09"
Neighbourhood & Enforcement Services,Waste & Neighbourhood Services,Premises-Related Expenditure,Grounds Maintenance - Other,A OW Ltd,01/02/2023,"6,029.20"
Health & Wellbeing,Consultant in Public Health,Supplies & Services,Sub Contractors,A Rapid Diagnostics Limited,27/02/2023,187.35
Health & Wellbeing,Consultant in Public Health,Supplies & Services,Sub Contractors,A Rapid Diagnostics Limited,27/02/2023,190.00
Health & Wellbeing,Consultant in Public Health,Supplies & Services,Sub Contractors,A Rapid Diagnostics Limited,27/02/2023,660.00
Health & Wellbeing,Consultant in Public Health,Supplies & Services,Sub Contractors,A Rapid Diagnostics Limited,16/02/2023,432.07
Health & Wellbeing,Consultant in Public Health,Supplies & Services,Sub Contractors,A Rapid Diagnostics Limited,16/02/2023,190.00
Health & Wellbeing,Consultant in Public Health,Supplies & Services,Sub Contractors,A Rapid Diagnostics Limited,16/02/2023,495.00
Health & Wellbeing,Consultant in Public Health,Supplies & Services,Sub Contractors,A Rapid Diagnostics Limited,16/02/2023,168.80
Health & Wellbeing,Consultant in Public Health,Supplies & Services,Sub Contractors,A Rapid Diagnostics Limited,16/02/2023,202.50
Health & Wellbeing,Consultant in Public Health,Supplies & Services,Sub Contractors,A Rapid Diagnostics Limited,16/02/2023,267.07
Health & Wellbeing,Consultant in Public Health,Supplies & Services,Sub Contractors,A Rapid Diagnostics Limited,16/02/2023,330.00
Health & Wellbeing,Consultant in Public Health,Supplies & Services,Sub Contractors,A Rapid Diagnostics Limited,16/02/2023,267.07
Health & Wellbeing,Consultant in Public Health,Supplies & Services,Sub Contractors,A Rapid Diagnostics Limited,16/02/2023,190.00
Health & Wellbeing,Consultant in Public Health,Supplies & Services,Sub Contractors,A Rapid Diagnostics Limited,16/02/2023,349.57
Health & Wellbeing,Consultant in Public Health,Supplies & Services,Sub Contractors,A Rapid Diagnostics Limited,16/02/2023,495.00
Health & Wellbeing,Consultant in Public Health,Supplies & Services,Sub Contractors,A Rapid Diagnostics Limited,16/02/2023,127.07
Health & Wellbeing,Consultant in Public Health,Supplies & Services,Sub Contractors,A Rapid Diagnostics Limited,16/02/2023,495.00
Health & Wellbeing,Consultant in Public Health,Supplies & Services,Sub Contractors,A Rapid Diagnostics Limited,16/02/2023,432.07
Health & Wellbeing,Consultant in Public Health,Supplies & Services,Sub Contractors,A Rapid Diagnostics Limited,16/02/2023,127.07
Health & Wellbeing,Consultant in Public Health,Supplies & Services,Sub Contractors,A Rapid Diagnostics Limited,16/02/2023,107.50
Neighbourhood & Enforcement Services,"Highways, Engineering & Project Delivery",Supplies & Services,Sub Contractors,A.R.M. Surveys Ltd,23/02/2023,364.25
Neighbourhood & Enforcement Services,"Highways, Engineering & Project Delivery",Supplies & Services,Sub Contractors,A.R.M. Surveys Ltd,23/02/2023,244.74
Neighbourhood & Enforcement Services,"Highways, Engineering & Project Delivery",Capital Expenditure,Payments to Contractor,A.R.M. Surveys Ltd,23/02/2023,"2,372.98"
Prosperity & Investment,BiT,Capital Expenditure,Other Capital Expenditure,A.R.M. Surveys Ltd,22/02/2023,550.00
Prosperity & Investment,BiT,Premises-Related Expenditure,R&M -Buildings DLO Charge,A1 Glass & Glazing Limited,03/02/2023,110.00
Prosperity & Investment,BiT,Premises-Related Expenditure,R&M -Buildings DLO Charge,A1 Glass & Glazing Limited,02/02/2023,120.00
Prosperity & Investment,BiT,Premises-Related Expenditure,R&M -Buildings DLO Charge,A1 Glass & Glazing Limited,02/02/2023,200.00
Prosperity & Investment,BiT,Premises-Related Expenditure,R&M -Buildings DLO Charge,A1 Glass & Glazing Limited,02/02/2023,240.00
Prosperity & Investment,BiT,Premises-Related Expenditure,R&M -Buildings DLO Charge,A1 Glass & Glazing Limited,03/02/2023,110.00
Prosperity & Investment,BiT,Premises-Related Expenditure,R&M -Buildings DLO Charge,A1 Glass & Glazing Limited,03/02/2023,180.00
Prosperity & Investment,BiT,Premises-Related Expenditure,R&M -Buildings DLO Charge,A1 Glass & Glazing Limited,03/02/2023,145.00
Prosperity & Investment,BiT,Premises-Related Expenditure,R&M -Buildings DLO Charge,A1 Glass & Glazing Limited,03/02/2023,240.00
Prosperity & Investment,BiT,Premises-Related Expenditure,R&M -Buildings DLO Charge,A1 Glass & Glazing Limited,03/02/2023,110.00
Prosperity & Investment,BiT,Premises-Related Expenditure,R&M -Buildings DLO Charge,A1 Glass & Glazing Limited,03/02/2023,145.00
Prosperity & Investment,BiT,Premises-Related Expenditure,R&M -Buildings DLO Charge,A1 Glass & Glazing Limited,03/02/2023,200.00
Prosperity & Investment,BiT,Premises-Related Expenditure,R&M -Buildings DLO Charge,A1 Glass & Glazing Limited,03/02/2023,165.00
Prosperity & Investment,BiT,Premises-Related Expenditure,R&M -Buildings DLO Charge,A1 Glass & Glazing Limited,03/02/2023,145.00
Prosperity & Investment,BiT,Premises-Related Expenditure,R&M -Buildings DLO Charge,A1 Glass & Glazing Limited,10/02/2023,220.00
Prosperity & Investment,BiT,Premises-Related Expenditure,R&M -Buildings DLO Charge,A1 Glass & GlazingLimited,22/02/2023,400.00
Education & Skills,SEND (0-25),Transport-Related Expenditure,Taxi Costs,AB & CA H,06/02/2023,"1,834.20"
Education & Skills,SEND (0-25),Transport-Related Expenditure,Taxi Costs,AB & CA H,08/02/2023,"4,076.00"
Health & Wellbeing,Consultant in Public Health,Supplies & Services,Sub Contractors,Abbott Rapid Diagnostics Limited,16/02/2023,247.50
Health & Wellbeing,Consultant in Public Health,Supplies & Services,Sub Contractors,Abbott Rapid Diagnostics Limited,16/02/2023,495.00
Health & Wellbeing,Consultant in Public Health,Supplies & Services,Sub Contractors,Abbott Rapid Diagnostics Limited,16/02/2023,102.71
Health & Wellbeing,Consultant in Public Health,Supplies & Services,Sub Contractors,Abbott Rapid Diagnostics Limited,27/02/2023,107.50
"Communities, Customer & Commercial Services",Sport & Leisure,Supplies & Services,Payment Of Income Collected,ABRAHAM DARBY ACADEMY ,15/02/2023,"4,540.00"
Education & Skills,SEND (0-25),Third Party Payments,DSG - High Needs Block,ABRAHAM DARBY ACADEMY ,22/02/2023,"5,746.67"
Education & Skills,SEND (0-25),Third Party Payments,DSG - High Needs Block,Acorn Care & Education Ltd,03/02/2023,"24,913.33"
Education & Skills,SEND (0-25),Third Party Payments,DSG - High Needs Block,Acorn Care & Education Ltd,22/02/2023,"33,336.99"
Education & Skills,SEND (0-25),Third Party Payments,DSG - High Needs Block,Acorn Education & Care Ltd,07/02/2023,"4,976.65"
Education & Skills,SEND (0-25),Supplies & Services,Health & Safety Expenses,Activate for Kids Ltd,02/02/2023,"1,151.76"
Adult Social Care,My Options,Employees,Agency Supply Costs,Acton Banks Limited,07/02/2023,311.35
Adult Social Care,My Options,Employees,Agency Supply Costs,Acton Banks Limited,07/02/2023,311.35
Adult Social Care,My Options,Employees,Agency Supply Costs,Acton Banks Limited,16/02/2023,311.35
Adult Social Care,My Options,Employees,Agency Supply Costs,Acton Banks Limited,16/02/2023,311.35
Adult Social Care,My Options,Employees,Agency Supply Costs,Acton Banks Limited,16/02/2023,311.35
Adult Social Care,My Options,Employees,Agency Supply Costs,Acton Banks Limited,16/02/2023,311.35
Adult Social Care,My Options,Employees,Agency Supply Costs,Acton Banks Limited,16/02/2023,311.35
Adult Social Care,My Options,Employees,Agency Supply Costs,Acton Banks Limited,16/02/2023,311.35
Adult Social Care,My Options,Employees,Agency Supply Costs,Acton Banks Limited,16/02/2023,311.35
Adult Social Care,My Options,Employees,Agency Supply Costs,Acton Banks Limited,16/02/2023,311.35
Adult Social Care,My Options,Employees,Agency Supply Costs,Acton Banks Limited,16/02/2023,311.35
Adult Social Care,My Options,Employees,Agency Supply Costs,Acton Banks Limited,16/02/2023,311.35
Adult Social Care,My Options,Employees,Agency Supply Costs,Acton Banks Limited,16/02/2023,311.35
Adult Social Care,My Options,Employees,Agency Supply Costs,Acton Banks Limited,16/02/2023,311.35
Adult Social Care,My Options,Employees,Agency Supply Costs,Acton Banks Limited,16/02/2023,311.35
Adult Social Care,My Options,Employees,Agency Supply Costs,Acton Banks Limited,16/02/2023,311.35
Adult Social Care,My Options,Employees,Agency Supply Costs,Acton Banks Limited,16/02/2023,227.53
Adult Social Care,My Options,Employees,Agency Supply Costs,Acton Banks Limited,16/02/2023,227.53
Adult Social Care,My Options,Employees,Agency Supply Costs,Acton Banks Limited,16/02/2023,215.55
Adult Social Care,My Options,Employees,Agency Supply Costs,Acton Banks Limited,16/02/2023,263.45
Adult Social Care,My Options,Employees,Agency Supply Costs,Acton Banks Limited,16/02/2023,311.35
Adult Social Care,My Options,Employees,Agency Supply Costs,Acton Banks Limited,16/02/2023,311.35
Adult Social Care,My Options,Employees,Agency Supply Costs,Acton Banks Limited,22/02/2023,311.35
Adult Social Care,My Options,Employees,Agency Supply Costs,Acton Banks Limited,22/02/2023,231.60
Adult Social Care,My Options,Employees,Agency Supply Costs,Acton Banks Limited,22/02/2023,311.35
Adult Social Care,My Options,Employees,Agency Supply Costs,Acton Banks Limited,22/02/2023,311.35
Adult Social Care,My Options,Employees,Agency Supply Costs,Acton Banks Limited,22/02/2023,311.35
Adult Social Care,My Options,Employees,Agency Supply Costs,Acton Banks Limited,22/02/2023,311.35
Adult Social Care,My Options,Employees,Agency Supply Costs,Acton Banks Limited,22/02/2023,311.35
Adult Social Care,My Options,Employees,Agency Supply Costs,Acton Banks Limited,22/02/2023,227.53
Adult Social Care,My Options,Employees,Agency Supply Costs,Acton Banks Limited,22/02/2023,311.35
Adult Social Care,My Options,Employees,Agency Supply Costs,Acton Banks Limited,22/02/2023,311.35
Adult Social Care,My Options,Employees,Agency Supply Costs,Acton Banks Limited,22/02/2023,227.53
Adult Social Care,My Options,Employees,Agency Supply Costs,Acton Banks Limited,22/02/2023,231.60
Adult Social Care,My Options,Employees,Agency Supply Costs,Acton Banks Limited,22/02/2023,231.60
Adult Social Care,My Options,Employees,Agency Supply Costs,Acton Banks Limited,22/02/2023,311.35
Adult Social Care,My Options,Employees,Agency Supply Costs,Acton Banks Limited,22/02/2023,311.35
Adult Social Care,My Options,Employees,Agency Supply Costs,Acton Banks Limited,22/02/2023,311.35
Adult Social Care,My Options,Employees,Agency Supply Costs,Acton Banks Limited,22/02/2023,231.60
Adult Social Care,My Options,Employees,Agency Supply Costs,Acton Banks Limited,22/02/2023,227.53
Adult Social Care,My Options,Employees,Agency Supply Costs,Acton Banks Limited,22/02/2023,231.60
Adult Social Care,My Options,Employees,Agency Supply Costs,Acton Banks Limited,22/02/2023,311.35
Adult Social Care,My Options,Employees,Agency Supply Costs,Acton Banks Limited,22/02/2023,311.35
Adult Social Care,My Options,Employees,Agency Supply Costs,Acton Banks Limited,22/02/2023,311.35
Adult Social Care,My Options,Employees,Agency Supply Costs,Acton Banks Limited,16/02/2023,311.35
Adult Social Care,My Options,Employees,Agency Supply Costs,Acton Banks Limited,16/02/2023,311.35
Adult Social Care,My Options,Employees,Agency Supply Costs,Acton Banks Limited,16/02/2023,311.35
Adult Social Care,My Options,Employees,Agency Supply Costs,Acton Banks Limited,16/02/2023,263.45
Adult Social Care,My Options,Employees,Agency Supply Costs,Acton Banks Limited,16/02/2023,227.53
Adult Social Care,My Options,Employees,Agency Supply Costs,Acton Banks Limited,16/02/2023,227.53
Adult Social Care,My Options,Employees,Agency Supply Costs,Acton Banks Limited,16/02/2023,231.60
Adult Social Care,My Options,Employees,Agency Supply Costs,Acton Banks Limited,16/02/2023,311.35
Adult Social Care,My Options,Employees,Agency Supply Costs,Acton Banks Limited,16/02/2023,227.53
Adult Social Care,My Options,Employees,Agency Supply Costs,Acton Banks Limited,16/02/2023,231.60
Adult Social Care,My Options,Employees,Agency Supply Costs,Acton Banks Limited,16/02/2023,231.60
Adult Social Care,My Options,Employees,Agency Supply Costs,Acton Banks Limited,16/02/2023,311.35
Adult Social Care,My Options,Employees,Agency Supply Costs,Acton Banks Limited,16/02/2023,263.45
Adult Social Care,My Options,Employees,Agency Supply Costs,Acton Banks Limited,16/02/2023,227.53
Adult Social Care,My Options,Employees,Agency Supply Costs,Acton Banks Limited,16/02/2023,231.60
Adult Social Care,My Options,Employees,Agency Supply Costs,Acton Banks Limited,16/02/2023,311.35
Adult Social Care,My Options,Employees,Agency Supply Costs,Acton Banks Limited,16/02/2023,311.35
Adult Social Care,My Options,Employees,Agency Supply Costs,Acton Banks Limited,16/02/2023,311.35
Adult Social Care,My Options,Employees,Agency Supply Costs,Acton Banks Limited,16/02/2023,311.35
Adult Social Care,My Options,Employees,Agency Supply Costs,Acton Banks Limited,16/02/2023,311.35
Adult Social Care,My Options,Employees,Agency Supply Costs,Acton Banks Limited,16/02/2023,311.35
Adult Social Care,My Options,Employees,Agency Supply Costs,Acton Banks Limited,07/02/2023,311.35
Adult Social Care,My Options,Employees,Agency Supply Costs,Acton Banks Limited,07/02/2023,311.35
Adult Social Care,My Options,Employees,Agency Supply Costs,Acton Banks Limited,07/02/2023,311.35
Adult Social Care,My Options,Employees,Agency Supply Costs,Acton Banks Limited,07/02/2023,305.36
Adult Social Care,My Options,Employees,Agency Supply Costs,Acton Banks Limited,07/02/2023,311.35
Adult Social Care,My Options,Employees,Agency Supply Costs,Acton Banks Limited,07/02/2023,311.35
Adult Social Care,My Options,Employees,Agency Supply Costs,Acton Banks Limited,07/02/2023,311.35
Adult Social Care,My Options,Employees,Agency Supply Costs,Acton Banks Limited,07/02/2023,311.35
Adult Social Care,My Options,Employees,Agency Supply Costs,Acton Banks Limited,07/02/2023,263.45
Adult Social Care,My Options,Employees,Agency Supply Costs,Acton Banks Limited,07/02/2023,231.60
Adult Social Care,My Options,Employees,Agency Supply Costs,Acton Banks Limited,07/02/2023,231.60
Adult Social Care,My Options,Employees,Agency Supply Costs,Acton Banks Limited,07/02/2023,215.55
Adult Social Care,My Options,Employees,Agency Supply Costs,Acton Banks Limited,07/02/2023,231.60
Adult Social Care,My Options,Employees,Agency Supply Costs,Acton Banks Limited,07/02/2023,231.60
Adult Social Care,My Options,Employees,Agency Supply Costs,Acton Banks Limited,07/02/2023,311.35
Adult Social Care,My Options,Employees,Agency Supply Costs,Acton Banks Limited,07/02/2023,263.45
Adult Social Care,My Options,Employees,Agency Supply Costs,Acton Banks Limited,07/02/2023,311.35
Adult Social Care,My Options,Employees,Agency Supply Costs,Acton Banks Limited,07/02/2023,215.55
Adult Social Care,My Options,Employees,Agency Supply Costs,Acton Banks Limited,07/02/2023,311.35
Prosperity & Investment,BiT,Premises-Related Expenditure,Service Contracts,Adexsi UK Ltd,15/02/2023,338.10
Prosperity & Investment,BiT,Premises-Related Expenditure,Service Contracts,Adexsi UK Ltd,15/02/2023,338.10
Health & Wellbeing,Health Improvement,Premises-Related Expenditure,Hire Of Rooms,Admaston House Community Centre Trust,21/02/2023,225.00
Children�s Safeguarding & Family Support,Child Protection & Family Support,Third Party Payments,Joint Financing,Adoption Focus,14/02/2023,"54,630.00"
Education & Skills,Skills,Supplies & Services,Subscriptions,Adviza Partnership,01/02/2023,220.00
Neighbourhood & Enforcement Services,Strategic Transport & Highway Network Management,Transport-Related Expenditure,Servicing & Repairs V&P,AEM GROUP LTD,06/02/2023,347.75
Neighbourhood & Enforcement Services,Strategic Transport & Highway Network Management,Transport-Related Expenditure,Servicing & Repairs V&P,AEM GROUP LTD,06/02/2023,168.75
Neighbourhood & Enforcement Services,Strategic Transport & Highway Network Management,Transport-Related Expenditure,Vehicle Parts,AEM GROUP LTD,16/02/2023,192.00
"Housing, Employment & Infrastructure",Inward Investment & Business Support,Employees,Training Expenses,AFC Telford Holdings Limited,24/02/2023,153.25
Education & Skills,Pupil Support Services,Supplies & Services,Other Grants (Expenses),AFC Telford United Foundation CIC,14/02/2023,"2,000.00"
Neighbourhood & Enforcement Services,Strategic Transport & Highway Network Management,Employees,Course Fees,AFTA Thought Training Consultant Ltd,16/02/2023,"3,500.00"
"Communities, Customer & Commercial Services",Sport & Leisure,Premises-Related Expenditure,R&M WC Planned,Agrovista UK LTD,07/02/2023,356.61
"Communities, Customer & Commercial Services",ICT,Supplies & Services,Telecomms,Airband Community Internet,13/02/2023,125.00
"Communities, Customer & Commercial Services",ICT,Supplies & Services,Telecomms,Airband Community Internet,13/02/2023,125.00
"Communities, Customer & Commercial Services",ICT,Supplies & Services,Telecomms,Airband Community Internet,13/02/2023,125.00
"Housing, Employment & Infrastructure",Inward Investment & Business Support,Supplies & Services,Other Grants (Expenses),Alcium Software Ltd,22/02/2023,250.00
Adult Social Care,My Options,Premises-Related Expenditure,Hire Of Rooms,All Saints Wellington,09/02/2023,255.00
Adult Social Care,My Options,Premises-Related Expenditure,Hire Of Rooms,All Saints Wellington,09/02/2023,240.00
Neighbourhood & Enforcement Services,Strategic Transport & Highway Network Management,Transport-Related Expenditure,Fuel,ALLSTAR BUSINESS SOLUTIONS LTD,06/02/2023,"7,090.73"
Neighbourhood & Enforcement Services,Strategic Transport & Highway Network Management,Transport-Related Expenditure,Fuel,ALLSTAR BUSINESS SOLUTIONS LTD,22/02/2023,"6,794.93"
Neighbourhood & Enforcement Services,Public Protection,Employees,Staff Training,Alpha Parking,08/02/2023,"1,590.00"
Corporate Communications,Communications & Marketing,Capital Expenditure,Other Capital Expenditure,Alphatec Software Limited,09/02/2023,423.00
"Housing, Employment & Infrastructure",Inward Investment & Business Support,Supplies & Services,Consultancy,Always Consult Ltd,15/02/2023,125.00
Neighbourhood & Enforcement Services,"Highways, Engineering & Project Delivery",Capital Expenditure,Payments to Contractor,Amey OW Ltd,27/02/2023,543.29
Neighbourhood & Enforcement Services,Safer & Stronger Communities,Supplies & Services,Other Services,Amey OW Ltd,22/02/2023,"2,983.29"
Adult Social Care,Community Social Work & Adult Safeguarding,Supplies & Services,Other Services,AMHP Hub,23/02/2023,400.00
Adult Social Care,Community Social Work & Adult Safeguarding,Supplies & Services,Other Services,AMHP Hub,23/02/2023,480.00
Children�s Safeguarding & Family Support,Family Connect & Childrens Centres,Supplies & Services,Other Grants (Expenses),AMITY RELATIONSHIP SOLUTIONS,23/02/2023,"4,550.00"
Prosperity & Investment,BiT,Premises-Related Expenditure,Solid Fuel,AMP CLEAN ENERGY,22/02/2023,"5,286.98"
"Communities, Customer & Commercial Services",Community Services,Supplies & Services,Grants To Voluntary Organis,Anstice Community Trust,20/02/2023,683.60
"Communities, Customer & Commercial Services",Culture & Events,Supplies & Services,Artistes Fees,Anstice Community Trust,24/02/2023,864.00
"Communities, Customer & Commercial Services",ICT,Supplies & Services,Stationery,Antalis Limited,09/02/2023,167.20
"Communities, Customer & Commercial Services",Customer Relationships & Welfare Services,Supplies & Services,Permit Production - Blue Badge,APS Group,09/02/2023,933.03
"Communities, Customer & Commercial Services",Sport & Leisure,Supplies & Services,Conference Expenses,APSE ,13/02/2023,334.00
Health & Wellbeing,Consultant in Public Health,Supplies & Services,Sub Contractors,ARapid Diagnostics Limited,16/02/2023,190.00
"Communities, Customer & Commercial Services",Sport & Leisure,Supplies & Services,Provisions,Aroma Tea & Coffee Merchants,27/02/2023,117.29
Children�s Safeguarding & Family Support,"Family Placements, Children in Care, Leaving Care & Emergency Duty Team",Transport-Related Expenditure,Season Tickets,ARRIVA MIDLANDS LTD,08/02/2023,980.00
Children�s Safeguarding & Family Support,"Family Placements, Children in Care, Leaving Care & Emergency Duty Team",Transport-Related Expenditure,Season Tickets,ARRIVA MIDLANDS LTD,08/02/2023,"1,520.00"
Education & Skills,SEND (0-25),Transport-Related Expenditure,Season Tickets,ARRIVA MIDLANDS LTD,27/02/2023,147.00
Neighbourhood & Enforcement Services,Strategic Transport & Highway Network Management,Supplies & Services,Concessionary Travel,ARRIVA MIDLANDS LTD ,19/02/2023,"106,549.58"
Neighbourhood & Enforcement Services,Strategic Transport & Highway Network Management,Transport-Related Expenditure,Subsidised Routes,ARRIVA MIDLANDS LTD ,10/02/2023,"15,676.20"
Neighbourhood & Enforcement Services,Strategic Transport & Highway Network Management,Transport-Related Expenditure,Subsidised Routes,ARRIVA MIDLANDS LTD ,10/02/2023,"2,584.28"
Neighbourhood & Enforcement Services,Strategic Transport & Highway Network Management,Transport-Related Expenditure,Subsidised Routes,ARRIVA MIDLANDS LTD ,10/02/2023,"2,302.00"
Neighbourhood & Enforcement Services,Strategic Transport & Highway Network Management,Transport-Related Expenditure,Subsidised Routes,ARRIVA MIDLANDS LTD ,10/02/2023,"6,024.72"
Neighbourhood & Enforcement Services,Strategic Transport & Highway Network Management,Transport-Related Expenditure,Subsidised Routes,ARRIVA MIDLANDS LTD ,10/02/2023,"34,060.00"
Neighbourhood & Enforcement Services,Strategic Transport & Highway Network Management,Transport-Related Expenditure,Subsidised Routes,ARRIVA MIDLANDS LTD ,10/02/2023,"4,544.40"
Neighbourhood & Enforcement Services,Strategic Transport & Highway Network Management,Transport-Related Expenditure,Subsidised Routes,ARRIVA MIDLANDS LTD ,10/02/2023,"2,147.88"
"Housing, Employment & Infrastructure",Inward Investment & Business Support,Employees,Training Expenses,Ascendancy Internet Marketing Ltd,15/02/2023,250.00
Prosperity & Investment,BiT,Premises-Related Expenditure,R&M -Buildings DLO Charge,ASLES LTD,10/02/2023,383.50
Prosperity & Investment,BiT,Premises-Related Expenditure,R&M -Buildings DLO Charge,ASLES LTD,10/02/2023,"5,300.00"
Prosperity & Investment,BiT,Premises-Related Expenditure,R&M -Buildings DLO Charge,ASLESLTD,02/02/2023,"4,240.00"
Education & Skills,SEND (0-25),Third Party Payments,DSG - High Needs Block,Aspris Telford School,03/02/2023,"24,118.00"
Education & Skills,SEND (0-25),Transport-Related Expenditure,Taxi Costs,A-STAR TRANSPORT MIDLANDS LTD,03/02/2023,"1,824.00"
Education & Skills,SEND (0-25),Transport-Related Expenditure,Transport Contractors,A-STAR TRANSPORT MIDLANDS LTD,08/02/2023,"6,500.00"
Education & Skills,SEND (0-25),Transport-Related Expenditure,Taxi Costs,A-STAR TRANSPORT MIDLANDS LTD,16/02/2023,"3,040.00"
Adult Social Care,Prevention & Independence - Older Adults & Disability,Supplies & Services,Equipment - Repair,Astor Bannerman Ltd,06/02/2023,"2,106.00"
Neighbourhood & Enforcement Services,Safer & Stronger Communities,Supplies & Services,Other Services,AUNIQUEART,15/02/2023,"1,500.00"
"Communities, Customer & Commercial Services",Sport & Leisure,Supplies & Services,Fees,Austin Mix Ltd,10/02/2023,"1,520.00"
"Communities, Customer & Commercial Services",Sport & Leisure,Supplies & Services,Fees,Austin Mix Ltd,10/02/2023,880.00
Neighbourhood & Enforcement Services,Public Protection,Supplies & Services,Security Services,Austin Mix Ltd,11/02/2023,575.00
Neighbourhood & Enforcement Services,Public Protection,Supplies & Services,Security Services,Austin Mix Ltd,11/02/2023,150.00
Prosperity & Investment,BiT,Premises-Related Expenditure,R&M -Buildings DLO Charge,Automated building & energy controls,03/02/2023,"2,588.17"
Corporate Communications,Communications & Marketing,Capital Expenditure,Other Capital Expenditure,AXIELL LTD,23/02/2023,400.00
"Communities, Customer & Commercial Services",Culture & Events,Supplies & Services,Equipment - Hire,B HIRE PLC,17/02/2023,710.50
"Communities, Customer & Commercial Services",Sport & Leisure,Premises-Related Expenditure,R&M -Building Other,B INDUSTRIAL SERVICES,14/02/2023,110.25
Prosperity & Investment,BiT,Premises-Related Expenditure,R&M -Buildings DLO Charge,B INDUSTRIAL SERVICES,14/02/2023,136.53
Prosperity & Investment,BiT,Premises-Related Expenditure,R&M -Buildings DLO Charge,B INDUSTRIAL SERVICES,14/02/2023,102.21
Prosperity & Investment,BiT,Premises-Related Expenditure,R&M -Buildings DLO Charge,B INDUSTRIAL SERVICES,14/02/2023,135.55
Prosperity & Investment,BiT,Premises-Related Expenditure,R&M -Buildings DLO Charge,B INDUSTRIAL SERVICES,10/02/2023,470.00
Prosperity & Investment,BiT,Premises-Related Expenditure,R&M -Buildings DLO Charge,B INDUSTRIAL SERVICES,10/02/2023,260.36
Prosperity & Investment,BiT,Premises-Related Expenditure,R&M -Buildings DLO Charge,B INDUSTRIAL SERVICES,10/02/2023,202.40
Prosperity & Investment,BiT,Premises-Related Expenditure,R&M -Buildings DLO Charge,B INDUSTRIAL SERVICES,10/02/2023,143.04
Prosperity & Investment,BiT,Premises-Related Expenditure,R&M -Buildings DLO Charge,B INDUSTRIAL SERVICES,02/02/2023,279.38
Prosperity & Investment,BiT,Premises-Related Expenditure,R&M -Buildings DLO Charge,B INDUSTRIAL SERVICES,02/02/2023,153.50
Prosperity & Investment,BiT,Premises-Related Expenditure,R&M -Buildings DLO Charge,B INDUSTRIAL SERVICES,02/02/2023,195.00
Prosperity & Investment,BiT,Premises-Related Expenditure,R&M -Buildings DLO Charge,B INDUSTRIAL SERVICES,02/02/2023,158.25
Prosperity & Investment,BiT,Premises-Related Expenditure,R&M -Buildings DLO Charge,B INDUSTRIAL SERVICES,02/02/2023,298.13
Prosperity & Investment,BiT,Premises-Related Expenditure,R&M -Buildings DLO Charge,B INDUSTRIAL SERVICES,02/02/2023,396.00
Prosperity & Investment,BiT,Premises-Related Expenditure,R&M -Buildings DLO Charge,B INDUSTRIAL SERVICES,02/02/2023,139.12
Prosperity & Investment,BiT,Premises-Related Expenditure,R&M -Buildings DLO Charge,B INDUSTRIAL SERVICES,02/02/2023,263.38
Prosperity & Investment,BiT,Premises-Related Expenditure,R&M -Buildings DLO Charge,B INDUSTRIAL SERVICES,02/02/2023,252.57
Prosperity & Investment,BiT,Premises-Related Expenditure,R&M -Buildings DLO Charge,B INDUSTRIAL SERVICES,17/02/2023,213.38
Prosperity & Investment,BiT,Premises-Related Expenditure,R&M -Buildings DLO Charge,B INDUSTRIAL SERVICES,17/02/2023,268.57
Prosperity & Investment,BiT,Premises-Related Expenditure,R&M -Buildings DLO Charge,B INDUSTRIAL SERVICES,17/02/2023,252.63
Prosperity & Investment,BiT,Premises-Related Expenditure,R&M -Buildings DLO Charge,B INDUSTRIAL SERVICES,10/02/2023,199.03
Prosperity & Investment,BiT,Premises-Related Expenditure,R&M -Buildings DLO Charge,B INDUSTRIAL SERVICES,10/02/2023,150.64
Prosperity & Investment,BiT,Premises-Related Expenditure,R&M -Buildings DLO Charge,B INDUSTRIAL SERVICES,10/02/2023,470.00
Prosperity & Investment,BiT,Premises-Related Expenditure,R&M -Buildings DLO Charge,B INDUSTRIAL SERVICES,15/02/2023,247.75
Prosperity & Investment,BiT,Capital Expenditure,Legal Fees,B J LLP,03/02/2023,"2,300.60"
Neighbourhood & Enforcement Services,Strategic Transport & Highway Network Management,Transport-Related Expenditure,Subsidised Routes,B P BTRAVEL LTD,10/02/2023,"11,996.00"
"Communities, Customer & Commercial Services",ICT,Supplies & Services,Furniture - Purchase,BACK CARE SOLUTIONS LTD,09/02/2023,475.00
Neighbourhood & Enforcement Services,"Highways, Engineering & Project Delivery",Third Party Payments,Highways Contract - BBLP,Balfour Beatty Civils Limited,19/02/2023,"956,742.71"
Prosperity & Investment,BiT,Capital Expenditure,Payments to Contractor,Barcham Trees Plc,03/02/2023,"12,003.00"
Education & Skills,Education & Skills,Capital Expenditure,Payments to Contractor,BATTLEFIELD LAND SURVEYS LTD,02/02/2023,"2,400.00"
Prosperity & Investment,Regeneration & Investment,Supplies & Services,Consultancy,BATTLEFIELD LAND SURVEYS LTD,10/02/2023,600.00
Children�s Safeguarding & Family Support,Child Protection & Family Support,Supplies & Services,Other Services,BDALtd,27/02/2023,450.00
Prosperity & Investment,BiT,Premises-Related Expenditure,R&M -Buildings DLO Charge,Belvidere Lifts Ltd,03/02/2023,125.00
Prosperity & Investment,BiT,Premises-Related Expenditure,R&M -Buildings DLO Charge,Belvidere Lifts Ltd,02/02/2023,125.00
Prosperity & Investment,BiT,Premises-Related Expenditure,R&M -Buildings DLO Charge,Belvidere Lifts Ltd,02/02/2023,340.40
Prosperity & Investment,BiT,Premises-Related Expenditure,R&M -Buildings DLO Charge,Belvidere Lifts Ltd,10/02/2023,576.00
Prosperity & Investment,BiT,Premises-Related Expenditure,R&M -Buildings DLO Charge,Belvidere Lifts Ltd,10/02/2023,150.00
Prosperity & Investment,BiT,Premises-Related Expenditure,R&M -Buildings DLO Charge,Belvidere Lifts Ltd,10/02/2023,253.34
Prosperity & Investment,BiT,Premises-Related Expenditure,R&M -Buildings DLO Charge,Belvidere Lifts Ltd,17/02/2023,950.80
Prosperity & Investment,BiT,Premises-Related Expenditure,R&M -Buildings DLO Charge,Belvidere Lifts Ltd,07/02/2023,"2,028.40"
Prosperity & Investment,BiT,Premises-Related Expenditure,Service Contracts,Belvidere Lifts Ltd,02/02/2023,125.00
Adult Social Care,My Options,Premises-Related Expenditure,Clean Mats & Toilet Requisites,BERWICK CARE EQUIPMENT LTD,16/02/2023,239.60
Adult Social Care,Prevention & Independence - Older Adults & Disability,Supplies & Services,Aids & Appliances,BERWICK CARE EQUIPMENT LTD,15/02/2023,"1,630.00"
Children�s Safeguarding & Family Support,"Family Placements, Children in Care, Leaving Care & Emergency Duty Team",Supplies & Services,Aids & Appliances,BES Healthcare Ltd,03/02/2023,988.55
Children�s Safeguarding & Family Support,"Family Placements, Children in Care, Leaving Care & Emergency Duty Team",Supplies & Services,Aids & Appliances,BES Healthcare Ltd,15/02/2023,106.45
"Communities, Customer & Commercial Services",Sport & Leisure,Supplies & Services,Provisions,BIKOLD,16/02/2023,126.63
"Communities, Customer & Commercial Services",Sport & Leisure,Supplies & Services,Provisions,BIKOLD,09/02/2023,112.70
"Communities, Customer & Commercial Services",Sport & Leisure,Supplies & Services,Provisions,BIKOLD,16/02/2023,193.24
"Communities, Customer & Commercial Services",Sport & Leisure,Supplies & Services,Provisions,BIKOLD,16/02/2023,117.96
"Communities, Customer & Commercial Services",Sport & Leisure,Supplies & Services,Provisions,BIKOLD,16/02/2023,108.19
"Communities, Customer & Commercial Services",Sport & Leisure,Supplies & Services,Provisions,BIKOLD,16/02/2023,110.82
"Communities, Customer & Commercial Services",Sport & Leisure,Supplies & Services,Provisions,BIKOLD,16/02/2023,140.36
"Communities, Customer & Commercial Services",Sport & Leisure,Supplies & Services,Provisions,BIKOLD,16/02/2023,113.21
"Communities, Customer & Commercial Services",Sport & Leisure,Supplies & Services,Provisions,BIKOLD,16/02/2023,256.58
"Communities, Customer & Commercial Services",Sport & Leisure,Supplies & Services,Provisions,BIKOLD,16/02/2023,106.54
"Communities, Customer & Commercial Services",Sport & Leisure,Supplies & Services,Provisions,BIKOLD,16/02/2023,305.04
"Communities, Customer & Commercial Services",Sport & Leisure,Supplies & Services,Provisions,BIKOLD,16/02/2023,224.49
"Communities, Customer & Commercial Services",Sport & Leisure,Supplies & Services,Provisions,BIKOLD,16/02/2023,270.90
"Communities, Customer & Commercial Services",Sport & Leisure,Supplies & Services,Provisions,BIKOLD,16/02/2023,230.32
"Communities, Customer & Commercial Services",Sport & Leisure,Supplies & Services,Provisions,BIKOLD,16/02/2023,109.40
"Communities, Customer & Commercial Services",Sport & Leisure,Supplies & Services,Provisions,BIKOLD,16/02/2023,144.70
"Communities, Customer & Commercial Services",Sport & Leisure,Supplies & Services,Provisions,BIKOLD,16/02/2023,222.90
"Communities, Customer & Commercial Services",Sport & Leisure,Supplies & Services,Provisions,BIKOLD,16/02/2023,110.72
"Communities, Customer & Commercial Services",Sport & Leisure,Supplies & Services,Provisions,BIKOLD,16/02/2023,275.56
"Communities, Customer & Commercial Services",Sport & Leisure,Supplies & Services,Provisions,BIKOLD,16/02/2023,242.42
"Communities, Customer & Commercial Services",Sport & Leisure,Supplies & Services,Provisions,BIKOLD,16/02/2023,240.10
"Communities, Customer & Commercial Services",Sport & Leisure,Supplies & Services,Provisions,BIKOLD,16/02/2023,231.70
"Communities, Customer & Commercial Services",Sport & Leisure,Supplies & Services,Provisions,BIKOLD,16/02/2023,279.24
"Communities, Customer & Commercial Services",Sport & Leisure,Supplies & Services,Provisions,BIKOLD,16/02/2023,620.51
"Communities, Customer & Commercial Services",Sport & Leisure,Supplies & Services,Provisions,BIKOLD,16/02/2023,168.46
"Communities, Customer & Commercial Services",Sport & Leisure,Supplies & Services,Provisions,BIKOLD,16/02/2023,206.97
"Communities, Customer & Commercial Services",Sport & Leisure,Supplies & Services,Provisions,BIKOLD,16/02/2023,337.01
"Communities, Customer & Commercial Services",Sport & Leisure,Supplies & Services,Provisions,BIKOLD,16/02/2023,280.48
"Communities, Customer & Commercial Services",Sport & Leisure,Supplies & Services,Provisions,BIKOLD,16/02/2023,268.27
"Communities, Customer & Commercial Services",Sport & Leisure,Supplies & Services,Provisions,BIKOLD,16/02/2023,267.42
"Communities, Customer & Commercial Services",Sport & Leisure,Supplies & Services,Provisions,BIKOLD,16/02/2023,105.25
"Communities, Customer & Commercial Services",Sport & Leisure,Supplies & Services,Provisions,BIKOLD,16/02/2023,352.32
"Communities, Customer & Commercial Services",Sport & Leisure,Supplies & Services,Provisions,BIKOLD,16/02/2023,386.28
"Communities, Customer & Commercial Services",Sport & Leisure,Supplies & Services,Provisions,BIKOLD,16/02/2023,359.95
"Communities, Customer & Commercial Services",Sport & Leisure,Supplies & Services,Provisions,BIKOLD,16/02/2023,-319.41
"Communities, Customer & Commercial Services",Sport & Leisure,Supplies & Services,Provisions,BIKOLD,16/02/2023,146.00
"Communities, Customer & Commercial Services",Sport & Leisure,Supplies & Services,Provisions,BIKOLD,16/02/2023,232.68
"Communities, Customer & Commercial Services",Sport & Leisure,Supplies & Services,Provisions,BIKOLD,16/02/2023,232.18
"Communities, Customer & Commercial Services",Sport & Leisure,Supplies & Services,Provisions,BIKOLD,16/02/2023,431.30
"Communities, Customer & Commercial Services",Sport & Leisure,Supplies & Services,Provisions,BIKOLD,16/02/2023,122.24
"Communities, Customer & Commercial Services",Sport & Leisure,Supplies & Services,Provisions,BIKOLD,16/02/2023,170.07
"Communities, Customer & Commercial Services",Sport & Leisure,Supplies & Services,Provisions,BIKOLD,16/02/2023,194.33
"Communities, Customer & Commercial Services",Sport & Leisure,Supplies & Services,Provisions,BIKOLD,16/02/2023,105.90
"Communities, Customer & Commercial Services",Sport & Leisure,Supplies & Services,Provisions,BIKOLD,16/02/2023,461.08
"Communities, Customer & Commercial Services",Sport & Leisure,Supplies & Services,Provisions,BIKOLD,16/02/2023,273.03
"Communities, Customer & Commercial Services",Sport & Leisure,Supplies & Services,Provisions,BIKOLD,16/02/2023,110.93
"Communities, Customer & Commercial Services",Sport & Leisure,Supplies & Services,Provisions,BIKOLD,16/02/2023,113.49
"Communities, Customer & Commercial Services",Sport & Leisure,Supplies & Services,Provisions,BIKOLD,16/02/2023,276.05
"Communities, Customer & Commercial Services",Sport & Leisure,Supplies & Services,Provisions,BIKOLD,16/02/2023,127.14
"Communities, Customer & Commercial Services",Sport & Leisure,Supplies & Services,Provisions,BIKOLD,16/02/2023,172.48
"Communities, Customer & Commercial Services",Sport & Leisure,Supplies & Services,Provisions,BIKOLD,16/02/2023,124.28
"Communities, Customer & Commercial Services",Sport & Leisure,Supplies & Services,Provisions,BIKOLD,16/02/2023,196.44
"Communities, Customer & Commercial Services",Sport & Leisure,Supplies & Services,Provisions,BIKOLD,16/02/2023,101.91
"Communities, Customer & Commercial Services",Sport & Leisure,Supplies & Services,Provisions,BIKOLD,16/02/2023,207.49
"Communities, Customer & Commercial Services",Sport & Leisure,Supplies & Services,Provisions,BIKOLD,16/02/2023,339.19
"Communities, Customer & Commercial Services",Sport & Leisure,Supplies & Services,Provisions,BIKOLD,16/02/2023,131.31
"Communities, Customer & Commercial Services",Sport & Leisure,Supplies & Services,Provisions,BIKOLD,16/02/2023,214.79
"Communities, Customer & Commercial Services",Sport & Leisure,Supplies & Services,Provisions,BIKOLD,16/02/2023,474.18
"Communities, Customer & Commercial Services",Sport & Leisure,Supplies & Services,Provisions,BIKOLD,16/02/2023,237.83
"Communities, Customer & Commercial Services",Sport & Leisure,Supplies & Services,Provisions,BIKOLD,16/02/2023,176.41
"Communities, Customer & Commercial Services",Sport & Leisure,Supplies & Services,Provisions,BIKOLD,16/02/2023,111.91
"Communities, Customer & Commercial Services",Sport & Leisure,Supplies & Services,Provisions,BIKOLD,16/02/2023,186.01
"Communities, Customer & Commercial Services",Sport & Leisure,Supplies & Services,Provisions,BIKOLD,16/02/2023,369.17
"Communities, Customer & Commercial Services",Sport & Leisure,Supplies & Services,Provisions,BIKOLD,16/02/2023,139.89
"Communities, Customer & Commercial Services",Sport & Leisure,Supplies & Services,Provisions,BIKOLD,16/02/2023,104.11
"Communities, Customer & Commercial Services",Sport & Leisure,Supplies & Services,Provisions,BIKOLD,16/02/2023,121.50
"Communities, Customer & Commercial Services",Sport & Leisure,Supplies & Services,Provisions,BIKOLD,16/02/2023,390.27
"Communities, Customer & Commercial Services",Sport & Leisure,Supplies & Services,Provisions,BIKOLD,16/02/2023,163.73
"Communities, Customer & Commercial Services",Sport & Leisure,Supplies & Services,Provisions,BIKOLD,16/02/2023,101.24
"Communities, Customer & Commercial Services",Sport & Leisure,Supplies & Services,Provisions,BIKOLD,16/02/2023,169.14
"Communities, Customer & Commercial Services",Sport & Leisure,Supplies & Services,Provisions,BIKOLD,16/02/2023,198.29
"Communities, Customer & Commercial Services",Sport & Leisure,Supplies & Services,Provisions,BIKOLD,16/02/2023,119.41
"Communities, Customer & Commercial Services",Sport & Leisure,Supplies & Services,Provisions,BIKOLD,16/02/2023,113.95
"Communities, Customer & Commercial Services",Sport & Leisure,Supplies & Services,Provisions,BIKOLD,16/02/2023,129.18
"Communities, Customer & Commercial Services",Sport & Leisure,Supplies & Services,Provisions,BIKOLD,16/02/2023,224.65
"Communities, Customer & Commercial Services",Sport & Leisure,Supplies & Services,Provisions,BIKOLD,16/02/2023,303.96
"Communities, Customer & Commercial Services",Sport & Leisure,Supplies & Services,Provisions,BIKOLD,16/02/2023,398.58
"Communities, Customer & Commercial Services",Sport & Leisure,Supplies & Services,Provisions,BIKOLD,16/02/2023,177.19
"Communities, Customer & Commercial Services",Sport & Leisure,Supplies & Services,Provisions,BIKOLD,16/02/2023,139.84
"Communities, Customer & Commercial Services",Sport & Leisure,Supplies & Services,Provisions,BIKOLD,16/02/2023,201.02
"Communities, Customer & Commercial Services",Sport & Leisure,Supplies & Services,Provisions,BIKOLD,16/02/2023,768.92
"Communities, Customer & Commercial Services",Sport & Leisure,Supplies & Services,Provisions,BIKOLD,16/02/2023,416.61
"Communities, Customer & Commercial Services",Sport & Leisure,Supplies & Services,Provisions,BIKOLD,16/02/2023,198.51
"Communities, Customer & Commercial Services",Sport & Leisure,Supplies & Services,Provisions,BIKOLD,16/02/2023,122.07
"Communities, Customer & Commercial Services",Sport & Leisure,Supplies & Services,Provisions,BIKOLD,16/02/2023,146.22
"Communities, Customer & Commercial Services",Sport & Leisure,Supplies & Services,Provisions,BIKOLD,16/02/2023,341.24
"Communities, Customer & Commercial Services",Sport & Leisure,Supplies & Services,Provisions,BIKOLD,16/02/2023,365.37
"Communities, Customer & Commercial Services",Sport & Leisure,Supplies & Services,Provisions,BIKOLD,16/02/2023,171.69
"Communities, Customer & Commercial Services",Sport & Leisure,Supplies & Services,Provisions,BIKOLD,16/02/2023,106.73
"Communities, Customer & Commercial Services",Sport & Leisure,Supplies & Services,Provisions,BIKOLD,16/02/2023,327.75
"Communities, Customer & Commercial Services",Sport & Leisure,Supplies & Services,Provisions,BIKOLD,16/02/2023,254.10
"Communities, Customer & Commercial Services",Sport & Leisure,Supplies & Services,Provisions,BIKOLD,16/02/2023,235.63
"Communities, Customer & Commercial Services",Sport & Leisure,Supplies & Services,Provisions,BIKOLD,16/02/2023,169.16
"Communities, Customer & Commercial Services",Sport & Leisure,Supplies & Services,Provisions,BIKOLD,16/02/2023,202.70
"Communities, Customer & Commercial Services",Sport & Leisure,Supplies & Services,Provisions,BIKOLD,16/02/2023,140.23
"Communities, Customer & Commercial Services",Sport & Leisure,Supplies & Services,Provisions,BIKOLD,16/02/2023,253.76
"Communities, Customer & Commercial Services",Sport & Leisure,Supplies & Services,Provisions,BIKOLD,16/02/2023,143.96
"Communities, Customer & Commercial Services",Sport & Leisure,Supplies & Services,Provisions,BIKOLD,16/02/2023,122.00
"Communities, Customer & Commercial Services",Sport & Leisure,Supplies & Services,Provisions,BIKOLD,16/02/2023,212.94
"Communities, Customer & Commercial Services",Sport & Leisure,Supplies & Services,Provisions,BIKOLD,16/02/2023,125.93
"Communities, Customer & Commercial Services",Sport & Leisure,Supplies & Services,Provisions,BIKOLD,16/02/2023,144.95
"Communities, Customer & Commercial Services",Sport & Leisure,Supplies & Services,Provisions,BIKOLD,16/02/2023,216.38
"Communities, Customer & Commercial Services",Sport & Leisure,Supplies & Services,Provisions,BIKOLD,16/02/2023,166.18
"Communities, Customer & Commercial Services",Sport & Leisure,Supplies & Services,Provisions,BIKOLD,16/02/2023,175.71
"Communities, Customer & Commercial Services",Sport & Leisure,Supplies & Services,Provisions,BIKOLD,16/02/2023,155.29
"Communities, Customer & Commercial Services",Sport & Leisure,Supplies & Services,Provisions,BIKOLD,16/02/2023,215.77
"Communities, Customer & Commercial Services",Sport & Leisure,Supplies & Services,Provisions,BIKOLD,16/02/2023,295.00
"Communities, Customer & Commercial Services",Sport & Leisure,Supplies & Services,Provisions,BIKOLD,16/02/2023,106.99
"Communities, Customer & Commercial Services",Sport & Leisure,Supplies & Services,Provisions,BIKOLD,16/02/2023,127.11
"Communities, Customer & Commercial Services",Sport & Leisure,Supplies & Services,Provisions,BIKOLD,16/02/2023,155.35
"Communities, Customer & Commercial Services",Sport & Leisure,Supplies & Services,Provisions,BIKOLD,16/02/2023,192.83
"Communities, Customer & Commercial Services",Sport & Leisure,Supplies & Services,Provisions,BIKOLD,09/02/2023,182.56
"Communities, Customer & Commercial Services",Sport & Leisure,Supplies & Services,Provisions,BIKOLD,09/02/2023,222.83
"Communities, Customer & Commercial Services",Sport & Leisure,Supplies & Services,Provisions,BIKOLD,09/02/2023,136.96
"Communities, Customer & Commercial Services",Sport & Leisure,Supplies & Services,Provisions,BIKOLD,09/02/2023,167.60
"Communities, Customer & Commercial Services",Sport & Leisure,Supplies & Services,Provisions,BIKOLD,09/02/2023,125.07
"Communities, Customer & Commercial Services",Sport & Leisure,Supplies & Services,Provisions,BIKOLD,09/02/2023,170.64
"Communities, Customer & Commercial Services",Sport & Leisure,Supplies & Services,Provisions,BIKOLD,09/02/2023,157.80
"Communities, Customer & Commercial Services",Sport & Leisure,Supplies & Services,Provisions,BIKOLD,09/02/2023,123.85
"Communities, Customer & Commercial Services",Sport & Leisure,Supplies & Services,Provisions,BIKOLD,09/02/2023,269.76
"Communities, Customer & Commercial Services",Sport & Leisure,Supplies & Services,Provisions,BIKOLD,09/02/2023,250.49
"Communities, Customer & Commercial Services",Sport & Leisure,Supplies & Services,Provisions,BIKOLD,09/02/2023,216.43
"Communities, Customer & Commercial Services",Sport & Leisure,Supplies & Services,Provisions,BIKOLD,09/02/2023,138.30
"Communities, Customer & Commercial Services",Sport & Leisure,Supplies & Services,Provisions,BIKOLD,09/02/2023,173.88
"Communities, Customer & Commercial Services",Sport & Leisure,Supplies & Services,Provisions,BIKOLD,09/02/2023,218.69
"Communities, Customer & Commercial Services",Sport & Leisure,Supplies & Services,Provisions,BIKOLD,09/02/2023,104.76
"Communities, Customer & Commercial Services",Sport & Leisure,Supplies & Services,Provisions,BIKOLD,09/02/2023,209.82
"Communities, Customer & Commercial Services",Sport & Leisure,Supplies & Services,Provisions,BIKOLD,09/02/2023,121.02
"Communities, Customer & Commercial Services",Sport & Leisure,Supplies & Services,Provisions,BIKOLD,09/02/2023,176.76
"Communities, Customer & Commercial Services",Sport & Leisure,Supplies & Services,Provisions,BIKOLD,09/02/2023,173.50
"Communities, Customer & Commercial Services",Sport & Leisure,Supplies & Services,Provisions,BIKOLD,09/02/2023,113.50
"Communities, Customer & Commercial Services",Sport & Leisure,Supplies & Services,Provisions,BIKOLD,09/02/2023,120.53
"Communities, Customer & Commercial Services",Sport & Leisure,Supplies & Services,Provisions,BIKOLD,09/02/2023,193.20
"Communities, Customer & Commercial Services",Sport & Leisure,Supplies & Services,Provisions,BIKOLD,09/02/2023,150.56
"Communities, Customer & Commercial Services",Sport & Leisure,Supplies & Services,Provisions,BIKOLD,09/02/2023,102.64
"Communities, Customer & Commercial Services",Sport & Leisure,Supplies & Services,Provisions,BIKOLD,09/02/2023,130.38
"Communities, Customer & Commercial Services",Sport & Leisure,Supplies & Services,Provisions,BIKOLD,09/02/2023,244.32
"Communities, Customer & Commercial Services",Sport & Leisure,Supplies & Services,Provisions,BIKOLD,09/02/2023,164.83
"Communities, Customer & Commercial Services",Sport & Leisure,Supplies & Services,Provisions,BIKOLD,09/02/2023,119.51
"Communities, Customer & Commercial Services",Sport & Leisure,Supplies & Services,Provisions,BIKOLD,09/02/2023,280.58
"Communities, Customer & Commercial Services",Sport & Leisure,Supplies & Services,Provisions,BIKOLD,09/02/2023,167.39
"Communities, Customer & Commercial Services",Sport & Leisure,Supplies & Services,Provisions,BIKOLD,09/02/2023,156.75
"Communities, Customer & Commercial Services",Sport & Leisure,Supplies & Services,Provisions,BIKOLD,09/02/2023,275.56
"Communities, Customer & Commercial Services",Sport & Leisure,Supplies & Services,Provisions,BIKOLD,09/02/2023,"-28,470.94"
"Communities, Customer & Commercial Services",Sport & Leisure,Supplies & Services,Provisions,BIKOLD,09/02/2023,407.27
"Communities, Customer & Commercial Services",Sport & Leisure,Supplies & Services,Provisions,BIKOLD,09/02/2023,-151.56
"Communities, Customer & Commercial Services",Sport & Leisure,Supplies & Services,Provisions,BIKOLD,09/02/2023,190.08
"Communities, Customer & Commercial Services",Sport & Leisure,Supplies & Services,Provisions,BIKOLD,09/02/2023,520.73
"Communities, Customer & Commercial Services",Sport & Leisure,Supplies & Services,Provisions,BIKOLD,09/02/2023,320.09
"Communities, Customer & Commercial Services",Sport & Leisure,Supplies & Services,Provisions,BIKOLD,09/02/2023,108.26
"Communities, Customer & Commercial Services",Sport & Leisure,Supplies & Services,Provisions,BIKOLD,09/02/2023,125.28
"Communities, Customer & Commercial Services",Sport & Leisure,Supplies & Services,Provisions,BIKOLD,09/02/2023,174.66
"Communities, Customer & Commercial Services",Sport & Leisure,Supplies & Services,Provisions,BIKOLD,09/02/2023,119.55
"Communities, Customer & Commercial Services",Sport & Leisure,Supplies & Services,Provisions,BIKOLD,09/02/2023,206.66
"Communities, Customer & Commercial Services",Sport & Leisure,Supplies & Services,Provisions,BIKOLD,09/02/2023,591.87
"Communities, Customer & Commercial Services",Sport & Leisure,Supplies & Services,Provisions,BIKOLD,09/02/2023,349.69
"Communities, Customer & Commercial Services",Sport & Leisure,Supplies & Services,Provisions,BIKOLD,09/02/2023,153.00
"Communities, Customer & Commercial Services",Sport & Leisure,Supplies & Services,Provisions,BIKOLD,09/02/2023,151.38
"Communities, Customer & Commercial Services",Sport & Leisure,Supplies & Services,Provisions,BIKOLD,09/02/2023,197.09
"Communities, Customer & Commercial Services",Sport & Leisure,Supplies & Services,Provisions,BIKOLD,09/02/2023,136.22
"Communities, Customer & Commercial Services",Sport & Leisure,Supplies & Services,Provisions,BIKOLD,09/02/2023,113.39
"Communities, Customer & Commercial Services",Sport & Leisure,Supplies & Services,Provisions,BIKOLD,09/02/2023,120.10
"Communities, Customer & Commercial Services",Sport & Leisure,Supplies & Services,Provisions,BIKOLD,09/02/2023,114.62
"Communities, Customer & Commercial Services",Sport & Leisure,Supplies & Services,Provisions,BIKOLD,09/02/2023,434.78
"Communities, Customer & Commercial Services",Sport & Leisure,Supplies & Services,Provisions,BIKOLD,09/02/2023,139.38
"Communities, Customer & Commercial Services",Sport & Leisure,Supplies & Services,Provisions,BIKOLD,09/02/2023,206.20
"Communities, Customer & Commercial Services",Sport & Leisure,Supplies & Services,Provisions,BIKOLD,09/02/2023,182.15
"Communities, Customer & Commercial Services",Sport & Leisure,Supplies & Services,Provisions,BIKOLD,09/02/2023,243.31
"Communities, Customer & Commercial Services",Sport & Leisure,Supplies & Services,Provisions,BIKOLD,09/02/2023,261.43
"Communities, Customer & Commercial Services",Sport & Leisure,Supplies & Services,Provisions,BIKOLD,09/02/2023,282.17
"Communities, Customer & Commercial Services",Sport & Leisure,Supplies & Services,Provisions,BIKOLD,09/02/2023,391.88
"Communities, Customer & Commercial Services",Sport & Leisure,Supplies & Services,Provisions,BIKOLD,09/02/2023,457.09
"Communities, Customer & Commercial Services",Sport & Leisure,Supplies & Services,Provisions,BIKOLD,09/02/2023,223.50
"Communities, Customer & Commercial Services",Sport & Leisure,Supplies & Services,Provisions,BIKOLD,09/02/2023,220.00
"Communities, Customer & Commercial Services",Sport & Leisure,Supplies & Services,Provisions,BIKOLD,09/02/2023,179.04
"Communities, Customer & Commercial Services",Sport & Leisure,Supplies & Services,Provisions,BIKOLD,09/02/2023,170.43
"Communities, Customer & Commercial Services",Sport & Leisure,Supplies & Services,Provisions,BIKOLD,09/02/2023,125.16
"Communities, Customer & Commercial Services",Sport & Leisure,Supplies & Services,Provisions,BIKOLD,09/02/2023,117.32
"Communities, Customer & Commercial Services",Sport & Leisure,Supplies & Services,Provisions,BIKOLD,09/02/2023,285.49
"Communities, Customer & Commercial Services",Sport & Leisure,Supplies & Services,Provisions,BIKOLD,09/02/2023,482.87
"Communities, Customer & Commercial Services",Sport & Leisure,Supplies & Services,Provisions,BIKOLD,09/02/2023,275.57
"Communities, Customer & Commercial Services",Sport & Leisure,Supplies & Services,Provisions,BIKOLD,09/02/2023,252.87
"Communities, Customer & Commercial Services",Sport & Leisure,Supplies & Services,Provisions,BIKOLD,09/02/2023,184.79
"Communities, Customer & Commercial Services",Sport & Leisure,Supplies & Services,Provisions,BIKOLD,09/02/2023,208.40
"Communities, Customer & Commercial Services",Sport & Leisure,Supplies & Services,Provisions,BIKOLD,09/02/2023,122.01
"Communities, Customer & Commercial Services",Sport & Leisure,Supplies & Services,Provisions,BIKOLD,09/02/2023,114.07
"Communities, Customer & Commercial Services",Sport & Leisure,Supplies & Services,Provisions,BIKOLD,09/02/2023,174.84
"Communities, Customer & Commercial Services",Sport & Leisure,Supplies & Services,Provisions,BIKOLD,09/02/2023,317.04
"Communities, Customer & Commercial Services",Sport & Leisure,Supplies & Services,Provisions,BIKOLD,09/02/2023,118.09
"Communities, Customer & Commercial Services",Sport & Leisure,Supplies & Services,Provisions,BIKOLD,09/02/2023,374.45
"Communities, Customer & Commercial Services",Sport & Leisure,Supplies & Services,Provisions,BIKOLD,09/02/2023,294.32
"Communities, Customer & Commercial Services",Sport & Leisure,Supplies & Services,Provisions,BIKOLD,09/02/2023,242.12
"Communities, Customer & Commercial Services",Sport & Leisure,Supplies & Services,Provisions,BIKOLD,09/02/2023,244.48
"Communities, Customer & Commercial Services",Sport & Leisure,Supplies & Services,Provisions,BIKOLD,09/02/2023,238.67
"Communities, Customer & Commercial Services",Sport & Leisure,Supplies & Services,Provisions,BIKOLD,09/02/2023,115.54
"Communities, Customer & Commercial Services",Sport & Leisure,Supplies & Services,Provisions,BIKOLD,09/02/2023,260.33
"Communities, Customer & Commercial Services",Sport & Leisure,Supplies & Services,Provisions,BIKOLD,09/02/2023,139.51
"Communities, Customer & Commercial Services",Sport & Leisure,Supplies & Services,Provisions,BIKOLD,09/02/2023,196.27
"Communities, Customer & Commercial Services",Sport & Leisure,Supplies & Services,Provisions,BIKOLD,09/02/2023,114.23
"Communities, Customer & Commercial Services",Sport & Leisure,Supplies & Services,Provisions,BIKOLD,09/02/2023,229.59
"Communities, Customer & Commercial Services",Sport & Leisure,Supplies & Services,Provisions,BIKOLD,09/02/2023,153.75
"Communities, Customer & Commercial Services",Sport & Leisure,Supplies & Services,Provisions,BIKOLD,09/02/2023,367.06
"Communities, Customer & Commercial Services",Sport & Leisure,Supplies & Services,Provisions,BIKOLD,09/02/2023,291.55
"Communities, Customer & Commercial Services",Sport & Leisure,Supplies & Services,Provisions,BIKOLD,09/02/2023,159.45
"Communities, Customer & Commercial Services",Sport & Leisure,Supplies & Services,Provisions,BIKOLD,09/02/2023,131.09
"Communities, Customer & Commercial Services",Sport & Leisure,Supplies & Services,Provisions,BIKOLD,09/02/2023,178.85
"Communities, Customer & Commercial Services",Sport & Leisure,Supplies & Services,Provisions,BIKOLD,09/02/2023,332.57
"Communities, Customer & Commercial Services",Sport & Leisure,Supplies & Services,Provisions,BIKOLD,09/02/2023,433.94
"Communities, Customer & Commercial Services",Sport & Leisure,Supplies & Services,Provisions,BIKOLD,09/02/2023,206.22
"Communities, Customer & Commercial Services",Sport & Leisure,Supplies & Services,Provisions,BIKOLD,09/02/2023,101.47
"Communities, Customer & Commercial Services",Sport & Leisure,Supplies & Services,Provisions,BIKOLD,09/02/2023,163.72
"Communities, Customer & Commercial Services",Sport & Leisure,Supplies & Services,Provisions,BIKOLD,09/02/2023,142.53
"Communities, Customer & Commercial Services",Sport & Leisure,Supplies & Services,Provisions,BIKOLD,09/02/2023,242.36
"Communities, Customer & Commercial Services",Sport & Leisure,Supplies & Services,Provisions,BIKOLD,09/02/2023,108.80
"Communities, Customer & Commercial Services",Sport & Leisure,Supplies & Services,Provisions,BIKOLD,09/02/2023,155.95
"Communities, Customer & Commercial Services",Sport & Leisure,Supplies & Services,Provisions,BIKOLD,09/02/2023,123.17
"Communities, Customer & Commercial Services",Sport & Leisure,Supplies & Services,Provisions,BIKOLD,09/02/2023,128.21
"Communities, Customer & Commercial Services",Sport & Leisure,Supplies & Services,Provisions,BIKOLD,09/02/2023,323.16
"Communities, Customer & Commercial Services",Sport & Leisure,Supplies & Services,Provisions,BIKOLD,09/02/2023,208.65
"Communities, Customer & Commercial Services",Sport & Leisure,Supplies & Services,Provisions,BIKOLD,09/02/2023,105.00
"Communities, Customer & Commercial Services",Sport & Leisure,Supplies & Services,Provisions,BIKOLD,27/02/2023,-112.08
"Communities, Customer & Commercial Services",Sport & Leisure,Supplies & Services,Provisions,BIKOLD,27/02/2023,162.12
"Communities, Customer & Commercial Services",Sport & Leisure,Supplies & Services,Provisions,BIKOLD,13/02/2023,159.43
"Communities, Customer & Commercial Services",Sport & Leisure,Supplies & Services,Provisions,BIKOLD,13/02/2023,428.79
"Communities, Customer & Commercial Services",Sport & Leisure,Supplies & Services,Provisions,BIKOLD,13/02/2023,177.68
"Communities, Customer & Commercial Services",Sport & Leisure,Supplies & Services,Provisions,BIKOLD,13/02/2023,104.35
"Communities, Customer & Commercial Services",Sport & Leisure,Supplies & Services,Provisions,BIKOLD,13/02/2023,308.20
"Communities, Customer & Commercial Services",Sport & Leisure,Supplies & Services,Provisions,BIKOLD,13/02/2023,209.83
"Communities, Customer & Commercial Services",Sport & Leisure,Supplies & Services,Provisions,BIKOLD,13/02/2023,151.72
"Communities, Customer & Commercial Services",Sport & Leisure,Supplies & Services,Provisions,BIKOLD,13/02/2023,136.50
"Communities, Customer & Commercial Services",Sport & Leisure,Supplies & Services,Provisions,BIKOLD,13/02/2023,168.59
"Communities, Customer & Commercial Services",Sport & Leisure,Supplies & Services,Provisions,BIKOLD,13/02/2023,152.83
"Communities, Customer & Commercial Services",Sport & Leisure,Supplies & Services,Provisions,BIKOLD,13/02/2023,229.62
"Communities, Customer & Commercial Services",Sport & Leisure,Supplies & Services,Provisions,BIKOLD,13/02/2023,157.55
"Communities, Customer & Commercial Services",Sport & Leisure,Supplies & Services,Provisions,BIKOLD,13/02/2023,127.97
"Communities, Customer & Commercial Services",Sport & Leisure,Supplies & Services,Provisions,BIKOLD,13/02/2023,174.40
"Communities, Customer & Commercial Services",Sport & Leisure,Supplies & Services,Provisions,BIKOLD,13/02/2023,102.52
"Communities, Customer & Commercial Services",Sport & Leisure,Supplies & Services,Provisions,BIKOLD,13/02/2023,125.02
"Communities, Customer & Commercial Services",Sport & Leisure,Supplies & Services,Provisions,BIKOLD,13/02/2023,264.61
"Communities, Customer & Commercial Services",Sport & Leisure,Supplies & Services,Provisions,BIKOLD,13/02/2023,378.47
"Communities, Customer & Commercial Services",Sport & Leisure,Supplies & Services,Provisions,BIKOLD,13/02/2023,261.67
"Communities, Customer & Commercial Services",Sport & Leisure,Supplies & Services,Provisions,BIKOLD,13/02/2023,296.27
"Communities, Customer & Commercial Services",Sport & Leisure,Supplies & Services,Provisions,BIKOLD,13/02/2023,457.56
"Communities, Customer & Commercial Services",Sport & Leisure,Supplies & Services,Provisions,BIKOLD,13/02/2023,481.71
"Communities, Customer & Commercial Services",Sport & Leisure,Supplies & Services,Provisions,BIKOLD,13/02/2023,266.64
"Communities, Customer & Commercial Services",Sport & Leisure,Supplies & Services,Provisions,BIKOLD,13/02/2023,171.37
"Communities, Customer & Commercial Services",Sport & Leisure,Supplies & Services,Provisions,BIKOLD,13/02/2023,163.49
"Communities, Customer & Commercial Services",Sport & Leisure,Supplies & Services,Provisions,BIKOLD,13/02/2023,122.46
"Communities, Customer & Commercial Services",Sport & Leisure,Supplies & Services,Provisions,BIKOLD,13/02/2023,368.11
"Communities, Customer & Commercial Services",Sport & Leisure,Supplies & Services,Provisions,BIKOLD,13/02/2023,480.96
"Communities, Customer & Commercial Services",Sport & Leisure,Supplies & Services,Provisions,BIKOLD,13/02/2023,181.04
"Communities, Customer & Commercial Services",Sport & Leisure,Supplies & Services,Provisions,BIKOLD,13/02/2023,120.55
"Communities, Customer & Commercial Services",Sport & Leisure,Supplies & Services,Provisions,BIKOLD,13/02/2023,278.03
"Communities, Customer & Commercial Services",Sport & Leisure,Supplies & Services,Provisions,BIKOLD,13/02/2023,787.91
"Communities, Customer & Commercial Services",Sport & Leisure,Supplies & Services,Provisions,BIKOLD,13/02/2023,483.91
"Communities, Customer & Commercial Services",Sport & Leisure,Supplies & Services,Provisions,BIKOLD,13/02/2023,351.90
"Communities, Customer & Commercial Services",Sport & Leisure,Supplies & Services,Provisions,BIKOLD,13/02/2023,226.63
"Communities, Customer & Commercial Services",Sport & Leisure,Supplies & Services,Provisions,BIKOLD,13/02/2023,547.29
"Communities, Customer & Commercial Services",Sport & Leisure,Supplies & Services,Provisions,BIKOLD,13/02/2023,135.04
"Communities, Customer & Commercial Services",Sport & Leisure,Supplies & Services,Provisions,BIKOLD,13/02/2023,288.43
"Communities, Customer & Commercial Services",Sport & Leisure,Supplies & Services,Provisions,BIKOLD,13/02/2023,663.99
"Communities, Customer & Commercial Services",Sport & Leisure,Supplies & Services,Provisions,BIKOLD,13/02/2023,451.78
"Communities, Customer & Commercial Services",Sport & Leisure,Supplies & Services,Provisions,BIKOLD,13/02/2023,245.16
"Communities, Customer & Commercial Services",Sport & Leisure,Supplies & Services,Provisions,BIKOLD,13/02/2023,108.97
"Communities, Customer & Commercial Services",Sport & Leisure,Supplies & Services,Provisions,BIKOLD,13/02/2023,138.21
"Communities, Customer & Commercial Services",Sport & Leisure,Supplies & Services,Provisions,BIKOLD,13/02/2023,332.24
"Communities, Customer & Commercial Services",Sport & Leisure,Supplies & Services,Provisions,BIKOLD,13/02/2023,101.93
"Communities, Customer & Commercial Services",Sport & Leisure,Supplies & Services,Provisions,BIKOLD,13/02/2023,363.66
"Communities, Customer & Commercial Services",Sport & Leisure,Supplies & Services,Provisions,BIKOLD,13/02/2023,107.97
"Communities, Customer & Commercial Services",Sport & Leisure,Supplies & Services,Provisions,BIKOLD,13/02/2023,286.31
"Communities, Customer & Commercial Services",Sport & Leisure,Supplies & Services,Provisions,BIKOLD,13/02/2023,126.52
"Communities, Customer & Commercial Services",Sport & Leisure,Supplies & Services,Provisions,BIKOLD,13/02/2023,131.92
"Communities, Customer & Commercial Services",Sport & Leisure,Supplies & Services,Provisions,BIKOLD,13/02/2023,396.15
"Communities, Customer & Commercial Services",Sport & Leisure,Supplies & Services,Provisions,BIKOLD,13/02/2023,125.84
"Communities, Customer & Commercial Services",Sport & Leisure,Supplies & Services,Provisions,BIKOLD,13/02/2023,201.74
"Communities, Customer & Commercial Services",Sport & Leisure,Supplies & Services,Provisions,BIKOLD,13/02/2023,167.07
"Communities, Customer & Commercial Services",Sport & Leisure,Supplies & Services,Provisions,BIKOLD,13/02/2023,133.43
"Communities, Customer & Commercial Services",Sport & Leisure,Supplies & Services,Provisions,BIKOLD,13/02/2023,256.23
"Communities, Customer & Commercial Services",Sport & Leisure,Supplies & Services,Provisions,BIKOLD,13/02/2023,210.85
"Communities, Customer & Commercial Services",Sport & Leisure,Supplies & Services,Provisions,BIKOLD,13/02/2023,278.61
"Communities, Customer & Commercial Services",Sport & Leisure,Supplies & Services,Provisions,BIKOLD,13/02/2023,153.18
"Communities, Customer & Commercial Services",Sport & Leisure,Supplies & Services,Provisions,BIKOLD,13/02/2023,571.16
"Communities, Customer & Commercial Services",Sport & Leisure,Supplies & Services,Provisions,BIKOLD,13/02/2023,199.46
"Communities, Customer & Commercial Services",Sport & Leisure,Supplies & Services,Provisions,BIKOLD,13/02/2023,145.37
"Communities, Customer & Commercial Services",Sport & Leisure,Supplies & Services,Provisions,BIKOLD,13/02/2023,335.14
"Communities, Customer & Commercial Services",Sport & Leisure,Supplies & Services,Provisions,BIKOLD,13/02/2023,171.60
"Communities, Customer & Commercial Services",Sport & Leisure,Supplies & Services,Provisions,BIKOLD,13/02/2023,142.90
"Communities, Customer & Commercial Services",Sport & Leisure,Supplies & Services,Provisions,BIKOLD,13/02/2023,146.04
"Communities, Customer & Commercial Services",Sport & Leisure,Supplies & Services,Provisions,BIKOLD,13/02/2023,193.82
"Communities, Customer & Commercial Services",Sport & Leisure,Supplies & Services,Provisions,BIKOLD,13/02/2023,292.05
"Communities, Customer & Commercial Services",Sport & Leisure,Supplies & Services,Provisions,BIKOLD,13/02/2023,258.32
"Communities, Customer & Commercial Services",Sport & Leisure,Supplies & Services,Provisions,BIKOLD,13/02/2023,277.00
"Communities, Customer & Commercial Services",Sport & Leisure,Supplies & Services,Provisions,BIKOLD,13/02/2023,154.90
"Communities, Customer & Commercial Services",Sport & Leisure,Supplies & Services,Provisions,BIKOLD,13/02/2023,429.90
"Communities, Customer & Commercial Services",Sport & Leisure,Supplies & Services,Provisions,BIKOLD,13/02/2023,246.29
"Communities, Customer & Commercial Services",Sport & Leisure,Supplies & Services,Provisions,BIKOLD,13/02/2023,146.68
"Communities, Customer & Commercial Services",Sport & Leisure,Supplies & Services,Provisions,BIKOLD,13/02/2023,242.67
"Communities, Customer & Commercial Services",Sport & Leisure,Supplies & Services,Provisions,BIKOLD,13/02/2023,145.24
"Communities, Customer & Commercial Services",Sport & Leisure,Supplies & Services,Provisions,BIKOLD,13/02/2023,117.00
"Communities, Customer & Commercial Services",Sport & Leisure,Supplies & Services,Provisions,BIKOLD,13/02/2023,239.35
"Communities, Customer & Commercial Services",Sport & Leisure,Supplies & Services,Provisions,BIKOLD,13/02/2023,101.22
"Communities, Customer & Commercial Services",Sport & Leisure,Supplies & Services,Provisions,BIKOLD,13/02/2023,128.54
"Communities, Customer & Commercial Services",Sport & Leisure,Supplies & Services,Provisions,BIKOLD,13/02/2023,112.40
"Communities, Customer & Commercial Services",Sport & Leisure,Supplies & Services,Provisions,BIKOLD,13/02/2023,153.08
"Communities, Customer & Commercial Services",Sport & Leisure,Supplies & Services,Provisions,BIKOLD,13/02/2023,119.48
"Communities, Customer & Commercial Services",Sport & Leisure,Supplies & Services,Provisions,BIKOLD,13/02/2023,108.51
"Communities, Customer & Commercial Services",Sport & Leisure,Supplies & Services,Provisions,BIKOLD,13/02/2023,373.30
"Communities, Customer & Commercial Services",Sport & Leisure,Supplies & Services,Provisions,BIKOLD,13/02/2023,168.48
"Communities, Customer & Commercial Services",Sport & Leisure,Supplies & Services,Provisions,BIKOLD,13/02/2023,108.53
"Communities, Customer & Commercial Services",Sport & Leisure,Supplies & Services,Provisions,BIKOLD,13/02/2023,112.43
"Communities, Customer & Commercial Services",Sport & Leisure,Supplies & Services,Provisions,BIKOLD,13/02/2023,147.96
"Communities, Customer & Commercial Services",Sport & Leisure,Supplies & Services,Provisions,BIKOLD,13/02/2023,259.44
"Communities, Customer & Commercial Services",Sport & Leisure,Supplies & Services,Provisions,BIKOLD,13/02/2023,220.02
"Communities, Customer & Commercial Services",Sport & Leisure,Supplies & Services,Provisions,BIKOLD,13/02/2023,154.75
"Communities, Customer & Commercial Services",Sport & Leisure,Supplies & Services,Provisions,BIKOLD,13/02/2023,173.91
"Communities, Customer & Commercial Services",Sport & Leisure,Supplies & Services,Provisions,BIKOLD,16/02/2023,184.84
"Communities, Customer & Commercial Services",Sport & Leisure,Supplies & Services,Provisions,BIKOLD,16/02/2023,251.76
"Communities, Customer & Commercial Services",Sport & Leisure,Supplies & Services,Provisions,BIKOLD,16/02/2023,153.58
"Communities, Customer & Commercial Services",Sport & Leisure,Supplies & Services,Provisions,BIKOLD,16/02/2023,377.45
"Communities, Customer & Commercial Services",Sport & Leisure,Supplies & Services,Provisions,BIKOLD,16/02/2023,123.10
"Communities, Customer & Commercial Services",Sport & Leisure,Supplies & Services,Provisions,BIKOLD,16/02/2023,167.86
"Communities, Customer & Commercial Services",Sport & Leisure,Supplies & Services,Provisions,BIKOLD,16/02/2023,186.98
"Communities, Customer & Commercial Services",Sport & Leisure,Supplies & Services,Provisions,BIKOLD,16/02/2023,803.93
"Communities, Customer & Commercial Services",Sport & Leisure,Supplies & Services,Provisions,BIKOLD,16/02/2023,202.06
"Communities, Customer & Commercial Services",Sport & Leisure,Supplies & Services,Provisions,BIKOLD,16/02/2023,"1,210.35"
"Communities, Customer & Commercial Services",Sport & Leisure,Supplies & Services,Provisions,BIKOLD,16/02/2023,374.80
"Communities, Customer & Commercial Services",Sport & Leisure,Supplies & Services,Provisions,BIKOLD,16/02/2023,121.28
"Communities, Customer & Commercial Services",Sport & Leisure,Supplies & Services,Provisions,BIKOLD,16/02/2023,145.74
"Communities, Customer & Commercial Services",Sport & Leisure,Supplies & Services,Provisions,BIKOLD,16/02/2023,217.55
"Communities, Customer & Commercial Services",Sport & Leisure,Supplies & Services,Provisions,BIKOLD,16/02/2023,517.54
"Communities, Customer & Commercial Services",Sport & Leisure,Supplies & Services,Provisions,BIKOLD,16/02/2023,848.11
"Communities, Customer & Commercial Services",Sport & Leisure,Supplies & Services,Provisions,BIKOLD,16/02/2023,"1,136.83"
"Communities, Customer & Commercial Services",Sport & Leisure,Supplies & Services,Provisions,BIKOLD,16/02/2023,363.04
"Communities, Customer & Commercial Services",Sport & Leisure,Supplies & Services,Provisions,BIKOLD,16/02/2023,180.98
"Communities, Customer & Commercial Services",Sport & Leisure,Supplies & Services,Provisions,BIKOLD,16/02/2023,140.91
"Communities, Customer & Commercial Services",Sport & Leisure,Supplies & Services,Provisions,BIKOLD,16/02/2023,101.25
"Communities, Customer & Commercial Services",Sport & Leisure,Supplies & Services,Provisions,BIKOLD,16/02/2023,263.09
"Communities, Customer & Commercial Services",Sport & Leisure,Supplies & Services,Provisions,BIKOLD,09/02/2023,181.32
"Communities, Customer & Commercial Services",Sport & Leisure,Supplies & Services,Provisions,BIKOLD,09/02/2023,228.11
"Communities, Customer & Commercial Services",Sport & Leisure,Supplies & Services,Provisions,BIKOLD,09/02/2023,572.34
"Communities, Customer & Commercial Services",Sport & Leisure,Supplies & Services,Provisions,BIKOLD,09/02/2023,675.26
"Communities, Customer & Commercial Services",Sport & Leisure,Supplies & Services,Provisions,BIKOLD,09/02/2023,297.24
"Communities, Customer & Commercial Services",Sport & Leisure,Supplies & Services,Provisions,BIKOLD,09/02/2023,152.52
"Communities, Customer & Commercial Services",Sport & Leisure,Supplies & Services,Provisions,BIKOLD,09/02/2023,383.66
"Communities, Customer & Commercial Services",Sport & Leisure,Supplies & Services,Provisions,BIKOLD,09/02/2023,979.85
"Communities, Customer & Commercial Services",Sport & Leisure,Supplies & Services,Provisions,BIKOLD,09/02/2023,935.14
"Communities, Customer & Commercial Services",Sport & Leisure,Supplies & Services,Provisions,BIKOLD,09/02/2023,219.82
"Communities, Customer & Commercial Services",Sport & Leisure,Supplies & Services,Provisions,BIKOLD,09/02/2023,442.60
"Communities, Customer & Commercial Services",Sport & Leisure,Supplies & Services,Provisions,BIKOLD,09/02/2023,522.27
"Communities, Customer & Commercial Services",Sport & Leisure,Supplies & Services,Provisions,BIKOLD,09/02/2023,"1,210.35"
"Communities, Customer & Commercial Services",Sport & Leisure,Supplies & Services,Provisions,BIKOLD,09/02/2023,172.59
"Communities, Customer & Commercial Services",Sport & Leisure,Supplies & Services,Provisions,BIKOLD,09/02/2023,576.44
"Communities, Customer & Commercial Services",Sport & Leisure,Supplies & Services,Provisions,BIKOLD,09/02/2023,245.61
"Communities, Customer & Commercial Services",Sport & Leisure,Supplies & Services,Provisions,BIKOLD,09/02/2023,333.96
"Communities, Customer & Commercial Services",Sport & Leisure,Supplies & Services,Provisions,BIKOLD,09/02/2023,242.06
"Communities, Customer & Commercial Services",Sport & Leisure,Supplies & Services,Provisions,BIKOLD,09/02/2023,356.54
"Communities, Customer & Commercial Services",Sport & Leisure,Supplies & Services,Provisions,BIKOLD,09/02/2023,492.79
"Communities, Customer & Commercial Services",Sport & Leisure,Supplies & Services,Provisions,BIKOLD,09/02/2023,292.11
"Communities, Customer & Commercial Services",Sport & Leisure,Supplies & Services,Provisions,BIKOLD,09/02/2023,773.88
"Communities, Customer & Commercial Services",Sport & Leisure,Supplies & Services,Provisions,BIKOLD,09/02/2023,200.92
"Communities, Customer & Commercial Services",Sport & Leisure,Supplies & Services,Provisions,BIKOLD,09/02/2023,112.96
"Communities, Customer & Commercial Services",Sport & Leisure,Supplies & Services,Provisions,BIKOLD,13/02/2023,282.56
"Communities, Customer & Commercial Services",Sport & Leisure,Supplies & Services,Provisions,BIKOLD,13/02/2023,407.99
"Communities, Customer & Commercial Services",Sport & Leisure,Supplies & Services,Provisions,BIKOLD,13/02/2023,224.95
"Communities, Customer & Commercial Services",Sport & Leisure,Supplies & Services,Provisions,BIKOLD,13/02/2023,245.75
"Communities, Customer & Commercial Services",Sport & Leisure,Supplies & Services,Provisions,BIKOLD,13/02/2023,300.05
"Communities, Customer & Commercial Services",Sport & Leisure,Supplies & Services,Provisions,BIKOLD,13/02/2023,106.44
"Communities, Customer & Commercial Services",Sport & Leisure,Supplies & Services,Provisions,BIKOLD,13/02/2023,250.46
"Communities, Customer & Commercial Services",Sport & Leisure,Supplies & Services,Provisions,BIKOLD,13/02/2023,409.93
"Communities, Customer & Commercial Services",Sport & Leisure,Supplies & Services,Provisions,BIKOLD,13/02/2023,142.62
"Communities, Customer & Commercial Services",Sport & Leisure,Supplies & Services,Provisions,BIKOLD,13/02/2023,104.64
"Communities, Customer & Commercial Services",Sport & Leisure,Supplies & Services,Provisions,BIKOLD,13/02/2023,102.06
"Communities, Customer & Commercial Services",Sport & Leisure,Supplies & Services,Provisions,BIKOLD,13/02/2023,344.81
"Communities, Customer & Commercial Services",Sport & Leisure,Supplies & Services,Provisions,BIKOLD,13/02/2023,242.56
"Communities, Customer & Commercial Services",Sport & Leisure,Supplies & Services,Provisions,BIKOLD,13/02/2023,122.08
"Communities, Customer & Commercial Services",Sport & Leisure,Supplies & Services,Provisions,BIKOLD,13/02/2023,416.47
"Communities, Customer & Commercial Services",Sport & Leisure,Supplies & Services,Provisions,BIKOLD,13/02/2023,117.63
"Communities, Customer & Commercial Services",Sport & Leisure,Supplies & Services,Provisions,BIKOLD,13/02/2023,378.07
"Communities, Customer & Commercial Services",Sport & Leisure,Supplies & Services,Provisions,BIKOLD,13/02/2023,"1,493.88"
"Communities, Customer & Commercial Services",Sport & Leisure,Supplies & Services,Provisions,BIKOLD,13/02/2023,499.27
"Communities, Customer & Commercial Services",Sport & Leisure,Supplies & Services,Provisions,BIKOLD,13/02/2023,181.15
"Communities, Customer & Commercial Services",Sport & Leisure,Supplies & Services,Provisions,BIKOLD,13/02/2023,347.47
"Communities, Customer & Commercial Services",Sport & Leisure,Supplies & Services,Provisions,BIKOLD,13/02/2023,474.51
"Communities, Customer & Commercial Services",Sport & Leisure,Supplies & Services,Provisions,BIKOLD,13/02/2023,114.75
"Communities, Customer & Commercial Services",Sport & Leisure,Supplies & Services,Provisions,BIKOLD,27/02/2023,251.85
"Communities, Customer & Commercial Services",Sport & Leisure,Supplies & Services,Provisions,BIKOLD,16/02/2023,188.15
"Communities, Customer & Commercial Services",Sport & Leisure,Supplies & Services,Provisions,BIKOLD,09/02/2023,115.16
"Communities, Customer & Commercial Services",Sport & Leisure,Supplies & Services,Provisions,BIKOLD,27/02/2023,138.27
"Communities, Customer & Commercial Services",Sport & Leisure,Supplies & Services,Provisions,BIKOLD,27/02/2023,231.60
"Communities, Customer & Commercial Services",Sport & Leisure,Supplies & Services,Provisions,BIKOLD,27/02/2023,-126.11
"Communities, Customer & Commercial Services",Sport & Leisure,Supplies & Services,Provisions,BIKOLD,13/02/2023,257.03
"Communities, Customer & Commercial Services",Sport & Leisure,Supplies & Services,Provisions,BIKOLD,13/02/2023,167.58
"Communities, Customer & Commercial Services",Sport & Leisure,Supplies & Services,Provisions,BIKOLD,13/02/2023,150.76
"Communities, Customer & Commercial Services",Sport & Leisure,Supplies & Services,Provisions,BIKOLD,27/02/2023,420.51
"Communities, Customer & Commercial Services",Sport & Leisure,Supplies & Services,Provisions,BIKOLD,27/02/2023,132.96
"Communities, Customer & Commercial Services",Sport & Leisure,Supplies & Services,Provisions,BIKOLD,16/02/2023,214.39
"Communities, Customer & Commercial Services",Sport & Leisure,Supplies & Services,Provisions,BIKOLD,16/02/2023,769.35
"Communities, Customer & Commercial Services",Sport & Leisure,Supplies & Services,Provisions,BIKOLD,16/02/2023,326.56
"Communities, Customer & Commercial Services",Sport & Leisure,Supplies & Services,Provisions,BIKOLD,16/02/2023,346.90
"Communities, Customer & Commercial Services",Sport & Leisure,Supplies & Services,Provisions,BIKOLD,09/02/2023,119.08
"Communities, Customer & Commercial Services",Sport & Leisure,Supplies & Services,Provisions,BIKOLD,09/02/2023,468.22
"Communities, Customer & Commercial Services",Sport & Leisure,Supplies & Services,Provisions,BIKOLD,09/02/2023,130.66
"Communities, Customer & Commercial Services",Sport & Leisure,Supplies & Services,Provisions,BIKOLD,09/02/2023,286.41
"Communities, Customer & Commercial Services",Sport & Leisure,Supplies & Services,Provisions,BIKOLD,27/02/2023,276.63
"Communities, Customer & Commercial Services",Sport & Leisure,Supplies & Services,Provisions,BIKOLD,13/02/2023,219.97
"Communities, Customer & Commercial Services",Sport & Leisure,Supplies & Services,Provisions,BIKOLD,13/02/2023,443.90
Prosperity & Investment,BiT,Premises-Related Expenditure,R&M -Buildings DLO Charge,BINDUSTRIAL SERVICES,17/02/2023,199.44
Prosperity & Investment,BiT,Premises-Related Expenditure,R&M -Buildings DLO Charge,BINDUSTRIAL SERVICES,10/02/2023,191.00
Prosperity & Investment,BiT,Premises-Related Expenditure,R&M -Buildings DLO Charge,BINDUSTRIAL SERVICES,17/02/2023,119.50
"Communities, Customer & Commercial Services",Culture & Events,Supplies & Services,Materials,B-Loony Ltd,14/02/2023,760.00
Prosperity & Investment,BiT,Premises-Related Expenditure,Service Contracts,Blue Mountain Water Ltd,02/02/2023,"2,574.00"
Prosperity & Investment,BiT,Premises-Related Expenditure,Service Contracts,Blue Mountain Water Ltd,02/02/2023,-858.00
Health & Wellbeing,Health Improvement,Supplies & Services,Libraries Book Fund,Bolinda UK Ltd,08/02/2023,229.70
Prosperity & Investment,BiT,Capital Expenditure,Payments to Contractor,BONINGALE NURSERIES,06/02/2023,753.85
"Communities, Customer & Commercial Services",Sport & Leisure,Premises-Related Expenditure,Clean Mats & Toilet Requisites,Border Janitorial Supplies Limited,14/02/2023,184.74
"Communities, Customer & Commercial Services",Sport & Leisure,Premises-Related Expenditure,Clean Mats & Toilet Requisites,Border Janitorial Supplies Limited,14/02/2023,117.63
"Communities, Customer & Commercial Services",Sport & Leisure,Premises-Related Expenditure,Clean Mats & Toilet Requisites,Border Janitorial Supplies Limited,14/02/2023,221.31
"Communities, Customer & Commercial Services",Sport & Leisure,Premises-Related Expenditure,Clean Mats & Toilet Requisites,Border Janitorial Supplies Limited,14/02/2023,127.30
"Communities, Customer & Commercial Services",Sport & Leisure,Premises-Related Expenditure,Clean Mats & Toilet Requisites,Border Janitorial Supplies Limited,14/02/2023,175.42
"Communities, Customer & Commercial Services",Sport & Leisure,Premises-Related Expenditure,Clean Mats & Toilet Requisites,Border Janitorial Supplies Limited,03/02/2023,152.12
"Communities, Customer & Commercial Services",Sport & Leisure,Premises-Related Expenditure,Clean Mats & Toilet Requisites,Border Janitorial Supplies Limited,01/02/2023,210.46
"Communities, Customer & Commercial Services",Sport & Leisure,Premises-Related Expenditure,Clean Mats & Toilet Requisites,Border Janitorial Supplies Limited,03/02/2023,124.74
"Communities, Customer & Commercial Services",Sport & Leisure,Premises-Related Expenditure,Clean Mats & Toilet Requisites,Border Janitorial Supplies Limited,06/02/2023,197.13
"Communities, Customer & Commercial Services",Sport & Leisure,Premises-Related Expenditure,Clean Mats & Toilet Requisites,Border Janitorial Supplies Limited,06/02/2023,247.93
"Communities, Customer & Commercial Services",Sport & Leisure,Premises-Related Expenditure,Clean Mats & Toilet Requisites,Border Janitorial Supplies Limited,21/02/2023,157.10
"Communities, Customer & Commercial Services",Sport & Leisure,Premises-Related Expenditure,Clean Mats & Toilet Requisites,Border Janitorial Supplies Limited,21/02/2023,152.00
"Communities, Customer & Commercial Services",Sport & Leisure,Premises-Related Expenditure,Clean Mats & Toilet Requisites,Border Janitorial Supplies Limited,21/02/2023,126.86
"Communities, Customer & Commercial Services",Sport & Leisure,Premises-Related Expenditure,Clean Mats & Toilet Requisites,Border Janitorial Supplies Limited,17/02/2023,119.38
"Communities, Customer & Commercial Services",Sport & Leisure,Premises-Related Expenditure,Clean Mats & Toilet Requisites,Border Janitorial Supplies Limited,17/02/2023,106.65
"Communities, Customer & Commercial Services",Sport & Leisure,Premises-Related Expenditure,Clean Mats & Toilet Requisites,Border Janitorial Supplies Limited,01/02/2023,322.84
"Communities, Customer & Commercial Services",Sport & Leisure,Premises-Related Expenditure,Clean Mats & Toilet Requisites,Border Janitorial Supplies Limited,17/02/2023,220.80
"Communities, Customer & Commercial Services",Sport & Leisure,Premises-Related Expenditure,Clean Mats & Toilet Requisites,Border Janitorial Supplies Limited,03/02/2023,116.48
"Communities, Customer & Commercial Services",Sport & Leisure,Premises-Related Expenditure,Clean Mats & Toilet Requisites,Border Janitorial Supplies Limited,03/02/2023,135.93
"Communities, Customer & Commercial Services",Sport & Leisure,Premises-Related Expenditure,Clean Mats & Toilet Requisites,Border Janitorial Supplies Limited,03/02/2023,594.86
"Communities, Customer & Commercial Services",Sport & Leisure,Premises-Related Expenditure,Clean Mats & Toilet Requisites,Border Janitorial Supplies Limited,03/02/2023,146.08
"Communities, Customer & Commercial Services",Sport & Leisure,Premises-Related Expenditure,Clean Mats & Toilet Requisites,Border Janitorial Supplies Limited,03/02/2023,167.52
"Communities, Customer & Commercial Services",Sport & Leisure,Premises-Related Expenditure,Clean Mats & Toilet Requisites,Border Janitorial Supplies Limited,03/02/2023,258.76
"Communities, Customer & Commercial Services",Sport & Leisure,Premises-Related Expenditure,Clean Mats & Toilet Requisites,Border Janitorial Supplies Limited,03/02/2023,287.55
"Communities, Customer & Commercial Services",Sport & Leisure,Premises-Related Expenditure,Clean Mats & Toilet Requisites,Border Janitorial Supplies Limited,03/02/2023,484.48
"Communities, Customer & Commercial Services",Sport & Leisure,Premises-Related Expenditure,Clean Mats & Toilet Requisites,Border Janitorial Supplies Limited,03/02/2023,211.04
"Communities, Customer & Commercial Services",Sport & Leisure,Premises-Related Expenditure,Clean Mats & Toilet Requisites,Border Janitorial Supplies Limited,01/02/2023,123.64
"Communities, Customer & Commercial Services",Sport & Leisure,Premises-Related Expenditure,Clean Mats & Toilet Requisites,Border Janitorial Supplies Limited,07/02/2023,100.33
"Communities, Customer & Commercial Services",Sport & Leisure,Premises-Related Expenditure,Clean Mats & Toilet Requisites,Border Janitorial Supplies Limited,07/02/2023,108.54
"Communities, Customer & Commercial Services",Sport & Leisure,Premises-Related Expenditure,Clean Mats & Toilet Requisites,Border Janitorial Supplies Limited,07/02/2023,271.08
"Communities, Customer & Commercial Services",Sport & Leisure,Premises-Related Expenditure,Clean Mats & Toilet Requisites,Border Janitorial Supplies Limited,01/02/2023,241.89
"Communities, Customer & Commercial Services",Sport & Leisure,Premises-Related Expenditure,Clean Mats & Toilet Requisites,Border Janitorial Supplies Limited,01/02/2023,154.04
"Communities, Customer & Commercial Services",Sport & Leisure,Premises-Related Expenditure,Clean Mats & Toilet Requisites,Border Janitorial Supplies Limited,01/02/2023,"1,600.00"
"Communities, Customer & Commercial Services",Sport & Leisure,Premises-Related Expenditure,Clean Mats & Toilet Requisites,Border Janitorial Supplies Limited,21/02/2023,123.79
"Communities, Customer & Commercial Services",Sport & Leisure,Premises-Related Expenditure,Clean Mats & Toilet Requisites,Border Janitorial Supplies Limited,21/02/2023,445.93
"Communities, Customer & Commercial Services",Sport & Leisure,Premises-Related Expenditure,Clean Mats & Toilet Requisites,Border Janitorial Supplies Limited,21/02/2023,121.93
"Communities, Customer & Commercial Services",Sport & Leisure,Premises-Related Expenditure,Clean Mats & Toilet Requisites,Border Janitorial Supplies Limited,21/02/2023,235.74
"Communities, Customer & Commercial Services",Sport & Leisure,Premises-Related Expenditure,Clean Mats & Toilet Requisites,Border Janitorial Supplies Limited,14/02/2023,116.10
"Communities, Customer & Commercial Services",Sport & Leisure,Premises-Related Expenditure,Clean Mats & Toilet Requisites,Border Janitorial Supplies Limited,14/02/2023,150.55
"Communities, Customer & Commercial Services",Sport & Leisure,Premises-Related Expenditure,Clean Mats & Toilet Requisites,Border Janitorial Supplies Limited,14/02/2023,113.85
"Communities, Customer & Commercial Services",Sport & Leisure,Premises-Related Expenditure,Clean Mats & Toilet Requisites,Border Janitorial Supplies Limited,14/02/2023,108.45
"Communities, Customer & Commercial Services",Sport & Leisure,Premises-Related Expenditure,Clean Mats & Toilet Requisites,Border Janitorial Supplies Limited,15/02/2023,219.96
"Communities, Customer & Commercial Services",Sport & Leisure,Premises-Related Expenditure,Clean Mats & Toilet Requisites,Border Janitorial Supplies Limited,14/02/2023,124.64
"Communities, Customer & Commercial Services",Sport & Leisure,Premises-Related Expenditure,Clean Mats & Toilet Requisites,Border Janitorial Supplies Limited,14/02/2023,170.67
"Communities, Customer & Commercial Services",Sport & Leisure,Premises-Related Expenditure,Clean Mats & Toilet Requisites,Border Janitorial Supplies Limited,03/02/2023,201.60
"Communities, Customer & Commercial Services",Sport & Leisure,Premises-Related Expenditure,Clean Mats & Toilet Requisites,Border Janitorial Supplies Limited,03/02/2023,281.81
"Communities, Customer & Commercial Services",Sport & Leisure,Premises-Related Expenditure,Clean Mats & Toilet Requisites,Border Janitorial Supplies Limited,03/02/2023,179.01
"Communities, Customer & Commercial Services",Sport & Leisure,Premises-Related Expenditure,Clean Mats & Toilet Requisites,Border Janitorial Supplies Limited,21/02/2023,204.62
"Communities, Customer & Commercial Services",Sport & Leisure,Premises-Related Expenditure,Clean Mats & Toilet Requisites,Border Janitorial Supplies Limited,01/02/2023,-250.03
"Communities, Customer & Commercial Services",Sport & Leisure,Premises-Related Expenditure,Clean Mats & Toilet Requisites,Border Janitorial Supplies Limited,07/02/2023,180.07
"Communities, Customer & Commercial Services",Sport & Leisure,Premises-Related Expenditure,Clean Mats & Toilet Requisites,Border Janitorial Supplies Limited,23/02/2023,-170.28
"Communities, Customer & Commercial Services",Sport & Leisure,Premises-Related Expenditure,Clean Mats & Toilet Requisites,Border Janitorial Supplies Limited,23/02/2023,170.28
"Communities, Customer & Commercial Services",Sport & Leisure,Premises-Related Expenditure,Clean Mats & Toilet Requisites,Border Janitorial Supplies Limited,14/02/2023,176.60
"Communities, Customer & Commercial Services",Sport & Leisure,Premises-Related Expenditure,Clean Mats & Toilet Requisites,Border Janitorial Supplies Limited,14/02/2023,151.05
"Communities, Customer & Commercial Services",Sport & Leisure,Premises-Related Expenditure,Clean Mats & Toilet Requisites,Border Janitorial Supplies Limited,14/02/2023,209.81
"Communities, Customer & Commercial Services",Sport & Leisure,Premises-Related Expenditure,Clean Mats & Toilet Requisites,Border Janitorial Supplies Limited,14/02/2023,216.71
"Communities, Customer & Commercial Services",Sport & Leisure,Premises-Related Expenditure,Clean Mats & Toilet Requisites,Border Janitorial Supplies Limited,14/02/2023,128.10
"Communities, Customer & Commercial Services",Sport & Leisure,Premises-Related Expenditure,Clean Mats & Toilet Requisites,Border Janitorial Supplies Limited,14/02/2023,354.28
"Communities, Customer & Commercial Services",Sport & Leisure,Premises-Related Expenditure,Clean Mats & Toilet Requisites,Border Janitorial Supplies Limited,14/02/2023,165.85
"Communities, Customer & Commercial Services",Sport & Leisure,Premises-Related Expenditure,Clean Mats & Toilet Requisites,Border Janitorial Supplies Limited,14/02/2023,298.73
"Communities, Customer & Commercial Services",Sport & Leisure,Premises-Related Expenditure,Clean Mats & Toilet Requisites,Border Janitorial Supplies Limited,15/02/2023,157.52
"Communities, Customer & Commercial Services",Sport & Leisure,Premises-Related Expenditure,Clean Mats & Toilet Requisites,Border Janitorial Supplies Limited,15/02/2023,343.10
"Communities, Customer & Commercial Services",Sport & Leisure,Premises-Related Expenditure,Clean Mats & Toilet Requisites,Border Janitorial Supplies Limited,15/02/2023,293.69
"Communities, Customer & Commercial Services",Sport & Leisure,Premises-Related Expenditure,Clean Mats & Toilet Requisites,Border Janitorial Supplies Limited,15/02/2023,327.36
"Communities, Customer & Commercial Services",Sport & Leisure,Premises-Related Expenditure,Clean Mats & Toilet Requisites,Border Janitorial Supplies Limited,14/02/2023,263.94
Prosperity & Investment,BiT,Supplies & Services,Chemicals/Cleaning Products,Border Janitorial Supplies Limited,27/02/2023,153.07
Prosperity & Investment,BiT,Supplies & Services,Chemicals/Cleaning Products,Border Janitorial Supplies Limited,17/02/2023,201.80
Neighbourhood & Enforcement Services,Waste & Neighbourhood Services,Supplies & Services,Play development,BounceBack Safety Surfaces Ltd,16/02/2023,"30,415.00"
Neighbourhood & Enforcement Services,Waste & Neighbourhood Services,Capital Expenditure,Payments to Contractor,BounceBack Safety Surfaces Ltd,17/02/2023,"18,504.00"
"Communities, Customer & Commercial Services",ICT,Capital Expenditure,Computer Software,Bramble Hub Limited,02/02/2023,"1,332.93"
"Communities, Customer & Commercial Services",ICT,Capital Expenditure,Payments to Contractor,Bramble Hub Limited,09/02/2023,"41,875.00"
"Communities, Customer & Commercial Services",Culture & Events,Supplies & Services,Equipment - Hire,BRANDON HIRE PLC ,16/02/2023,219.50
"Communities, Customer & Commercial Services",Culture & Events,Supplies & Services,Equipment - Hire,BRANDON HIRE PLC ,16/02/2023,474.50
"Communities, Customer & Commercial Services",Culture & Events,Supplies & Services,Consultancy,BRANDON HIRE PLC ,16/02/2023,215.21
"Communities, Customer & Commercial Services",Sport & Leisure,Supplies & Services,Chemicals/Cleaning Products,BRENNTAG UK LIMITED,14/02/2023,309.00
"Communities, Customer & Commercial Services",Sport & Leisure,Supplies & Services,Chemicals/Cleaning Products,BRENNTAG UK LIMITED,22/02/2023,474.20
"Communities, Customer & Commercial Services",Sport & Leisure,Premises-Related Expenditure,Swimming Pool Chemicals,BRENNTAG UK LIMITED,17/02/2023,245.50
"Communities, Customer & Commercial Services",Sport & Leisure,Premises-Related Expenditure,Swimming Pool Chemicals,BRENNTAG UK LIMITED,27/02/2023,139.28
"Communities, Customer & Commercial Services",Sport & Leisure,Premises-Related Expenditure,Swimming Pool Chemicals,BRENNTAG UK LIMITED,27/02/2023,129.16
"Communities, Customer & Commercial Services",Sport & Leisure,Supplies & Services,Chemicals/Cleaning Products,BRENNTAG UK LIMITED,17/02/2023,378.40
"Communities, Customer & Commercial Services",Sport & Leisure,Supplies & Services,Carriage/Delivery Charge,BRENNTAG UK LIMITED,27/02/2023,103.00
"Communities, Customer & Commercial Services",Sport & Leisure,Supplies & Services,Chemicals/Cleaning Products,BRENNTAG UK LIMITED,14/02/2023,309.00
Education & Skills,SEND (0-25),Third Party Payments,DSG - High Needs Block,Bridge Therapy,03/02/2023,186.00
"Housing, Employment & Infrastructure",Private Sector Housing & Enforcement,Transport-Related Expenditure,Travelling Expenses General,Bristol City Council,22/02/2023,200.00
Prosperity & Investment,BiT,Premises-Related Expenditure,Electricity,BRITISH GAS BUSINESS,09/02/2023,394.29
Prosperity & Investment,Regeneration & Investment,Premises-Related Expenditure,Electricity,BRITISH GAS BUSINESS ELEC,10/02/2023,147.09
Prosperity & Investment,Regeneration & Investment,Premises-Related Expenditure,Electricity,British Gas Lite,06/02/2023,366.54
Prosperity & Investment,BiT,Premises-Related Expenditure,Electricity,BRITISH GAS TRADING LIMITED,09/02/2023,120.19
Prosperity & Investment,BiT,Premises-Related Expenditure,Electricity,BRITISH GAS TRADING LIMITED,09/02/2023,-132.00
"Communities, Customer & Commercial Services",Sport & Leisure,Supplies & Services,Subscriptions,BRITISH INSTITUTE OF CLEANING SCIENCE,14/02/2023,212.86
"Communities, Customer & Commercial Services",ICT,Supplies & Services,Telephones,BRITISH TELECOMMUNICATIONS PLC ,14/02/2023,"1,186.57"
"Communities, Customer & Commercial Services",ICT,Supplies & Services,Telephones,BRITISH TELECOMMUNICATIONS PLC ,14/02/2023,"5,651.14"
"Communities, Customer & Commercial Services",ICT,Supplies & Services,Comp Software (Purch / Hire),Bromcom Computers Plc,15/02/2023,-298.00
"Communities, Customer & Commercial Services",ICT,Supplies & Services,Comp Software (Purch / Hire),Bromcom Computers Plc,15/02/2023,-486.40
"Communities, Customer & Commercial Services",ICT,Supplies & Services,Comp Software (Purch / Hire),Bromcom Computers Plc,15/02/2023,-434.80
"Communities, Customer & Commercial Services",ICT,Supplies & Services,Comp Software (Purch / Hire),Bromcom Computers Plc,15/02/2023,"-2,532.80"
Neighbourhood & Enforcement Services,Safer & Stronger Communities,Premises-Related Expenditure,General Rents,BROMFORD HOUSING ASSOCIATION LIMITED,03/02/2023,611.63
"Communities, Customer & Commercial Services",Community Services,Supplies & Services,Grants To Voluntary Organis,Brookside Central,23/02/2023,"1,000.00"
Education & Skills,Skills,Premises-Related Expenditure,Hire Of Rooms,Brookside Central,01/02/2023,330.00
Education & Skills,Skills,Premises-Related Expenditure,Hire Of Rooms,Brookside Central,01/02/2023,198.00
Education & Skills,SEND (0-25),Third Party Payments,DSG - High Needs Block,Bryn Melyn Care Ltd,22/02/2023,"27,653.33"
Neighbourhood & Enforcement Services,Strategic Transport & Highway Network Management,Supplies & Services,Comp Software (Purch / Hire),Buchanan Computing,17/02/2023,"13,139.36"
Health & Wellbeing,Consultant in Public Health,Supplies & Services,Sub Contractors,Buckinghamshire Healthcare NHS Trust,13/02/2023,131.00
Prosperity & Investment,Regeneration & Investment,Capital Expenditure,Marketing / Advertising,BULLEYS BRADBURY,08/02/2023,567.68
"Housing, Employment & Infrastructure",Inward Investment & Business Support,Supplies & Services,Consultancy,Business Doctors,16/02/2023,500.00
"Housing, Employment & Infrastructure",Inward Investment & Business Support,Supplies & Services,Consultancy,Business Doctors,16/02/2023,"2,062.50"
Adult Social Care,Prevention & Independence - Older Adults & Disability,Supplies & Services,Security Services,BUSINESS WATCH GUARDING LIMITED,01/02/2023,"7,133.50"
"Communities, Customer & Commercial Services",ICT,Premises-Related Expenditure,R&M -Building Other,BUSINESS WATCH GUARDING LIMITED,14/02/2023,345.35
"Communities, Customer & Commercial Services",Sport & Leisure,Supplies & Services,Sub Contractors,BUSINESS WATCH GUARDING LIMITED,08/02/2023,273.28
"Communities, Customer & Commercial Services",Sport & Leisure,Supplies & Services,Sub Contractors,BUSINESS WATCH GUARDING LIMITED,15/02/2023,519.52
Prosperity & Investment,BiT,Premises-Related Expenditure,R&M -Buildings DLO Charge,BUSINESS WATCH GUARDING LIMITED,09/02/2023,"1,646.40"
Prosperity & Investment,BiT,Supplies & Services,Security Services,BUSINESS WATCH GUARDING LIMITED,10/02/2023,884.21
Prosperity & Investment,BiT,Premises-Related Expenditure,R&M -Buildings DLO Charge,BUSINESS WATCH GUARDING LIMITED,15/02/2023,794.22
Prosperity & Investment,Regeneration & Investment,Supplies & Services,Security Services,BUSINESS WATCH GUARDING LIMITED,08/02/2023,"8,489.15"
Prosperity & Investment,Regeneration & Investment,Supplies & Services,Security Services,BUSINESS WATCH GUARDING LIMITED,10/02/2023,632.20
Prosperity & Investment,Regeneration & Investment,Supplies & Services,Security Services,BUSINESS WATCH GUARDING LIMITED,03/02/2023,"5,865.80"
Prosperity & Investment,Regeneration & Investment,Supplies & Services,Security Services,BUSINESS WATCH GUARDING LIMITED,03/02/2023,"6,338.40"
Prosperity & Investment,Regeneration & Investment,Supplies & Services,Security Services,BUSINESS WATCH GUARDING LIMITED,21/02/2023,"6,255.00"
Prosperity & Investment,Regeneration & Investment,Supplies & Services,Security Services,BUSINESS WATCH GUARDING LIMITED,10/02/2023,224.07
Prosperity & Investment,Regeneration & Investment,Premises-Related Expenditure,Contract Cleaning,BUSY BEE CLEANING,06/02/2023,317.00
Prosperity & Investment,Regeneration & Investment,Premises-Related Expenditure,Contract Cleaning,BUSY BEE CLEANING,06/02/2023,325.00
Prosperity & Investment,Regeneration & Investment,Premises-Related Expenditure,Contract Cleaning,BUSY BEE CLEANING,06/02/2023,317.00
Prosperity & Investment,Regeneration & Investment,Premises-Related Expenditure,Contract Cleaning,BUSY BEE CLEANING,06/02/2023,325.00
Prosperity & Investment,Regeneration & Investment,Premises-Related Expenditure,Window Cleaning,BUSY BEE CLEANING,20/02/2023,381.61
Prosperity & Investment,BiT,Premises-Related Expenditure,R&M -Buildings DLO Charge,C & S Carpet & Flooring,02/02/2023,"1,595.00"
Prosperity & Investment,BiT,Premises-Related Expenditure,R&M -Buildings DLO Charge,C & S Carpet & Flooring,09/02/2023,297.35
Prosperity & Investment,BiT,Premises-Related Expenditure,R&M -Buildings DLO Charge,C & S Carpet & Flooring,09/02/2023,531.80
Prosperity & Investment,BiT,Premises-Related Expenditure,R&M -Buildings DLO Charge,C & Sons Carpet & Flooring,28/02/2023,990.00
Prosperity & Investment,BiT,Premises-Related Expenditure,R&M -Buildings DLO Charge,C & Sons Carpet & Flooring,28/02/2023,"1,088.67"
Prosperity & Investment,BiT,Premises-Related Expenditure,R&M -Buildings DLO Charge,C & Sons Carpet & Flooring,14/02/2023,757.76
Prosperity & Investment,BiT,Premises-Related Expenditure,R&M -Buildings DLO Charge,C Controls Ltd,02/02/2023,500.00
Finance & Human Resources,"Finance Manager (Business, Education & Care)",Employees,Professional Subs,C I P F A,17/02/2023,362.00
Finance & Human Resources,Finance Manager (Corporate & Capital),Supplies & Services,Publications,C I P F A,16/02/2023,"2,500.00"
Adult Social Care,Service Improvement & Efficiency,Supplies & Services,Application Software Maint,CACI LTD,08/02/2023,"2,097.55"
Children�s Safeguarding & Family Support,Child Protection & Family Support,Supplies & Services,Application Software Maint,CACI LTD,08/02/2023,"2,097.55"
Children�s Safeguarding & Family Support,Child Protection & Family Support,Employees,Redundancy Payments,Capita Pension Solutions Limited,03/02/2023,226.32
Education & Skills,SEND (0-25),Employees,Redundancy Payments,Capita Pension Solutions Limited,03/02/2023,226.33
Finance & Human Resources,Revenues,Supplies & Services,Other Expenses,CAPS,23/02/2023,242.32
Neighbourhood & Enforcement Services,Strategic Transport & Highway Network Management,Supplies & Services,Consultancy,Carrington West Ltd,23/02/2023,"1,655.50"
Neighbourhood & Enforcement Services,Strategic Transport & Highway Network Management,Supplies & Services,Consultancy,Carrington West Ltd,17/02/2023,"1,655.50"
Neighbourhood & Enforcement Services,Strategic Transport & Highway Network Management,Supplies & Services,Consultancy,Carrington West Ltd,27/02/2023,"1,674.75"
Neighbourhood & Enforcement Services,Strategic Transport & Highway Network Management,Supplies & Services,Consultancy,Carrington West Ltd,07/02/2023,"1,655.50"
Adult Social Care,ASC Prevention & Enablement,Transport-Related Expenditure,Taxi Costs,Cartello Ambulance,01/02/2023,210.00
Adult Social Care,ASC Prevention & Enablement,Transport-Related Expenditure,Taxi Costs,Cartello Ambulance,22/02/2023,157.50
Adult Social Care,ASC Prevention & Enablement,Transport-Related Expenditure,Taxi Costs,Cartello Ambulance,22/02/2023,183.75
Adult Social Care,Prevention & Independence - Older Adults & Disability,Transport-Related Expenditure,Taxi Costs,Cartello Ambulance,17/02/2023,157.50
Adult Social Care,Prevention & Independence - Older Adults & Disability,Transport-Related Expenditure,Taxi Costs,Cartello Ambulance,17/02/2023,157.50
Education & Skills,Pupil Support Services,Supplies & Services,Other Grants (Expenses),Casey�s Cordingley Hall,07/02/2023,"1,000.00"
Education & Skills,Pupil Support Services,Supplies & Services,Other Grants (Expenses),Casey�s Cordingley Hall,07/02/2023,"1,800.00"
Education & Skills,Pupil Support Services,Supplies & Services,Other Grants (Expenses),CAT - Telford Priory School,14/02/2023,"1,697.00"
Education & Skills,SEND (0-25),Third Party Payments,DSG - High Needs Block,CAT - Telford Priory School,22/02/2023,"5,746.68"
Neighbourhood & Enforcement Services,"Highways, Engineering & Project Delivery",Capital Expenditure,Payments to Contractor,Causeway Technologies LTD,28/02/2023,"2,500.00"
Prosperity & Investment,Development Management,Supplies & Services,Consultancy,CBRE Limited,08/02/2023,"1,000.00"
Prosperity & Investment,Development Management,Supplies & Services,Consultancy,CBRE Limited,27/02/2023,"6,500.00"
Adult Social Care,My Options,Supplies & Services,Comp Hardware (Purch / Hire),CCS MEDIA LIMITED,28/02/2023,440.00
Adult Social Care,Service Improvement & Efficiency,Supplies & Services,Comp Hardware (Purch / Hire),CCS MEDIA LIMITED,03/02/2023,109.10
Children�s Safeguarding & Family Support,"Family Placements, Children in Care, Leaving Care & Emergency Duty Team",Supplies & Services,Comp Hardware (Purch / Hire),CCS MEDIA LIMITED,07/02/2023,124.00
"Communities, Customer & Commercial Services",Customer Relationships & Welfare Services,Supplies & Services,Comp Hardware (Purch / Hire),CCS MEDIA LIMITED,06/02/2023,"2,940.14"
"Communities, Customer & Commercial Services",ICT,Supplies & Services,Comp Software (Purch / Hire),CCS MEDIA LIMITED,07/02/2023,"7,567.00"
"Communities, Customer & Commercial Services",ICT,Supplies & Services,Comp Software (Purch / Hire),CCS MEDIA LIMITED,07/02/2023,"5,890.00"
"Communities, Customer & Commercial Services",ICT,Supplies & Services,Comp Software (Purch / Hire),CCS MEDIA LIMITED,07/02/2023,"13,457.00"
"Communities, Customer & Commercial Services",ICT,Supplies & Services,Comp Hardware (Purch / Hire),CCS MEDIA LIMITED,17/02/2023,"-1,965.00"
"Communities, Customer & Commercial Services",ICT,Supplies & Services,Mobile Phones,CCS MEDIA LIMITED,17/02/2023,171.00
"Communities, Customer & Commercial Services",ICT,Supplies & Services,Mobile Phones,CCS MEDIA LIMITED,17/02/2023,"1,245.00"
"Communities, Customer & Commercial Services",ICT,Supplies & Services,Comp Hardware (Purch / Hire),CCS MEDIA LIMITED,21/02/2023,319.00
"Communities, Customer & Commercial Services",ICT,Supplies & Services,Comp Hardware (Purch / Hire),CCS MEDIA LIMITED,03/02/2023,120.00
"Communities, Customer & Commercial Services",ICT,Capital Expenditure,Computer Hardware,CCS MEDIA LIMITED,07/02/2023,"2,700.00"
"Communities, Customer & Commercial Services",ICT,Capital Expenditure,Computer Hardware,CCS MEDIA LIMITED,07/02/2023,"1,180.00"
"Communities, Customer & Commercial Services",ICT,Capital Expenditure,Computer Hardware,CCS MEDIA LIMITED,13/02/2023,"2,040.00"
"Communities, Customer & Commercial Services",ICT,Capital Expenditure,Computer Hardware,CCS MEDIA LIMITED,15/02/2023,"4,213.20"
"Communities, Customer & Commercial Services",ICT,Capital Expenditure,Computer Hardware,CCS MEDIA LIMITED,24/02/2023,"2,240.00"
"Communities, Customer & Commercial Services",ICT,Capital Expenditure,Computer Hardware,CCS MEDIA LIMITED,16/02/2023,155.00
"Communities, Customer & Commercial Services",ICT,Capital Expenditure,Computer Hardware,CCS MEDIA LIMITED,20/02/2023,"63,253.92"
"Communities, Customer & Commercial Services",ICT,Capital Expenditure,Computer Hardware,CCS MEDIA LIMITED,22/02/2023,"1,796.08"
"Communities, Customer & Commercial Services",ICT,Capital Expenditure,Computer Software,CDW Limited UK,14/02/2023,"128,250.00"
"Communities, Customer & Commercial Services",ICT,Capital Expenditure,Computer Software,CDW Limited UK,14/02/2023,"55,625.00"
"Communities, Customer & Commercial Services",ICT,Capital Expenditure,Computer Software,CDW Limited UK,14/02/2023,"50,064.30"
"Communities, Customer & Commercial Services",ICT,Capital Expenditure,Computer Software,CDW Limited UK,14/02/2023,"39,375.00"
"Communities, Customer & Commercial Services",ICT,Capital Expenditure,Computer Software,CDW Limited UK,14/02/2023,"6,300.00"
"Communities, Customer & Commercial Services",ICT,Capital Expenditure,Computer Software,CDW Limited UK,14/02/2023,"11,025.00"
Education & Skills,Pupil Support Services,Supplies & Services,Other Grants (Expenses),CEIA,14/02/2023,"1,996.00"
Education & Skills,Pupil Support Services,Supplies & Services,Other Grants (Expenses),CEIA,21/02/2023,"3,166.44"
Prosperity & Investment,BiT,Premises-Related Expenditure,R&M -Buildings DLO Charge,Celsius Design Limited,03/02/2023,398.00
"Housing, Employment & Infrastructure",Inward Investment & Business Support,Supplies & Services,Other Grants (Expenses),CGR Business Solutions Limited,07/02/2023,"5,621.17"
"Housing, Employment & Infrastructure",Inward Investment & Business Support,Supplies & Services,Consultancy,CGR Business Solutions Limited,09/02/2023,"1,312.50"
"Housing, Employment & Infrastructure",Inward Investment & Business Support,Supplies & Services,Consultancy,CGR Business Solutions Limited,17/02/2023,375.00
"Housing, Employment & Infrastructure",Inward Investment & Business Support,Capital Expenditure,Payments to Contractor,CGR Business Solutions Limited,17/02/2023,187.50
Prosperity & Investment,BiT,Premises-Related Expenditure,R&M -Buildings DLO Charge,CHAFFINCH DOCUMENT,02/02/2023,165.00
"Communities, Customer & Commercial Services",ICT,Premises-Related Expenditure,R&M -Building Other,Charlton Academy,13/02/2023,"2,003.11"
Health & Wellbeing,Consultant in Public Health,Supplies & Services,Sub Contractors,CHARLTON MEDICAL CENTRE,16/02/2023,"1,860.00"
Health & Wellbeing,Consultant in Public Health,Supplies & Services,Sub Contractors,CHARLTON MEDICAL CENTRE,27/02/2023,"2,580.00"
"Communities, Customer & Commercial Services",Sport & Leisure,Employees,Professional Subs,Chartered Institute for the Management of Sport and Physical Activity,27/02/2023,137.32
Education & Skills,SEND (0-25),Third Party Payments,DSG - High Needs Block,Cheslyn Hay Academy,22/02/2023,"9,876.00"
Children�s Safeguarding & Family Support,Family Connect & Childrens Centres,Employees,Childcare Provision,CHILDCARE SOS,06/02/2023,340.00
Children�s Safeguarding & Family Support,Family Connect & Childrens Centres,Supplies & Services,Stationery,CHILDCARE SOS,07/02/2023,136.00
Education & Skills,Skills,Third Party Payments,Childminders,CHILDCARE SOS,15/02/2023,"1,008.00"
Education & Skills,Skills,Third Party Payments,Childminders,CHILDCARE SOS,15/02/2023,288.00
Education & Skills,Skills,Third Party Payments,Childminders,CHILDCARE SOS,15/02/2023,"1,264.00"
Neighbourhood & Enforcement Services,Public Protection,Supplies & Services,Security Services,Chipside Ltd,09/02/2023,249.95
Neighbourhood & Enforcement Services,Public Protection,Supplies & Services,Security Services,Chipside Ltd,09/02/2023,108.00
Prosperity & Investment,Development Management,Supplies & Services,Furniture - Purchase,CHRISBEON OFFICE SUPPLIES,27/02/2023,549.00
Education & Skills,SEND (0-25),Third Party Payments,DSG - High Needs Block,Church Street Day Nursery,22/02/2023,772.90
Prosperity & Investment,BiT,Premises-Related Expenditure,R&M -Buildings DLO Charge,Churches Fire Security Ltd,28/02/2023,520.00
Prosperity & Investment,BiT,Premises-Related Expenditure,R&M -Buildings DLO Charge,Churches Fire Security Ltd,28/02/2023,-480.00
Prosperity & Investment,BiT,Premises-Related Expenditure,R&M -Buildings DLO Charge,Churches Fire Security Ltd,27/02/2023,358.56
Prosperity & Investment,BiT,Premises-Related Expenditure,R&M -Buildings DLO Charge,Churches Fire Security Ltd,07/02/2023,338.50
Prosperity & Investment,BiT,Premises-Related Expenditure,R&M -Buildings DLO Charge,Churches Fire Security Ltd,25/02/2023,126.00
Prosperity & Investment,BiT,Premises-Related Expenditure,R&M -Buildings DLO Charge,Churches Fire Security Ltd,07/02/2023,581.30
Prosperity & Investment,BiT,Premises-Related Expenditure,R&M -Buildings DLO Charge,Churches Fire Security Ltd,27/02/2023,338.64
Prosperity & Investment,BiT,Premises-Related Expenditure,R&M -Buildings DLO Charge,Churches Fire Security Ltd,27/02/2023,"1,254.97"
Prosperity & Investment,BiT,Capital Expenditure,Payments to Contractor,Churches Fire Security Ltd,07/02/2023,834.70
Prosperity & Investment,BiT,Capital Expenditure,Payments to Contractor,Churches Fire Security Ltd,07/02/2023,"1,551.35"
Prosperity & Investment,Regeneration & Investment,Premises-Related Expenditure,R&M -Building Other,Churches Fire Security Ltd,07/02/2023,501.25
Education & Skills,Skills,Supplies & Services,Exam Fees,CITY & GUILDS,01/02/2023,916.50
Children�s Safeguarding & Family Support,"Family Placements, Children in Care, Leaving Care & Emergency Duty Team",Supplies & Services,St Payments to Foster Parents,CITY OF WOLVERHAMPTON COUNCIL,16/02/2023,186.49
"Communities, Customer & Commercial Services",ICT,Supplies & Services,Comp Software (Purch / Hire),CIVICA UK LIMITED,01/02/2023,"2,250.00"
"Communities, Customer & Commercial Services",Sport & Leisure,Supplies & Services,Computer Hardware (Maint),CIVICA UK LIMITED,14/02/2023,350.00
Policy & Governance,Governance & Legal Services,Supplies & Services,Computer Software (Maint),CIVICA UK LIMITED,21/02/2023,"19,281.62"
Neighbourhood & Enforcement Services,Public Protection,Supplies & Services,Sub Contractors,CLEANIT CLEANING SERVICES,17/02/2023,250.00
Education & Skills,SEND (0-25),Supplies & Services,Other Services,Connect Wellbeing in Education LLP,22/02/2023,"2,615.00"
Health & Wellbeing,Consultant in Public Health,Supplies & Services,Sub Contractors,Connexus Homes Limited,24/02/2023,"117,804.00"
Neighbourhood & Enforcement Services,"Highways, Engineering & Project Delivery",Capital Expenditure,Payments to Contractor,Conservation Building Services Ltd,03/02/2023,"2,888.30"
Neighbourhood & Enforcement Services,"Highways, Engineering & Project Delivery",Capital Expenditure,Payments to Contractor,Conservation Building Services Ltd,03/02/2023,"35,548.55"
"Communities, Customer & Commercial Services",Sport & Leisure,Premises-Related Expenditure,R&M -Building Other,COOL SERVICES LTD,01/02/2023,170.94
Prosperity & Investment,BiT,Premises-Related Expenditure,R&M -Buildings DLO Charge,COOL SERVICES LTD,10/02/2023,161.00
Prosperity & Investment,BiT,Premises-Related Expenditure,R&M -Buildings DLO Charge,COOL SERVICES LTD,22/02/2023,115.00
Prosperity & Investment,BiT,Premises-Related Expenditure,R&M -Buildings DLO Charge,COOL SERVICES LTD,22/02/2023,115.00
Prosperity & Investment,BiT,Premises-Related Expenditure,R&M -Buildings DLO Charge,COOL SERVICES LTD,02/02/2023,278.81
Prosperity & Investment,BiT,Premises-Related Expenditure,R&M -Buildings DLO Charge,COOL SERVICES LTD,02/02/2023,267.28
Prosperity & Investment,BiT,Premises-Related Expenditure,R&M -Buildings DLO Charge,COOL SERVICES LTD,03/02/2023,161.00
Prosperity & Investment,BiT,Premises-Related Expenditure,R&M -Buildings DLO Charge,COOL SERVICES LTD,10/02/2023,"7,880.56"
Prosperity & Investment,BiT,Premises-Related Expenditure,R&M -Buildings DLO Charge,COOL SERVICES LTD,22/02/2023,125.50
Prosperity & Investment,BiT,Premises-Related Expenditure,Service Contracts,COOL SERVICES LTD,14/02/2023,171.00
Prosperity & Investment,BiT,Premises-Related Expenditure,Service Contracts,COOL SERVICES LTD,14/02/2023,230.00
Prosperity & Investment,BiT,Premises-Related Expenditure,Service Contracts,COOL SERVICES LTD,15/02/2023,171.00
Prosperity & Investment,BiT,Premises-Related Expenditure,Service Contracts,COOL SERVICES LTD,22/02/2023,339.00
Prosperity & Investment,BiT,Premises-Related Expenditure,Service Contracts,COOL SERVICES LTD,22/02/2023,171.00
Health & Wellbeing,Consultant in Public Health,Supplies & Services,Sub Contractors,COURT STREET MEDICAL PRACTICE,16/02/2023,240.00
Health & Wellbeing,Consultant in Public Health,Supplies & Services,Sub Contractors,COURT STREET MEDICAL PRACTICE,27/02/2023,140.00
Prosperity & Investment,BiT,Premises-Related Expenditure,Grounds Maintenance - Other,Cropper Grounds Maintenance Ltd,03/02/2023,"1,651.81"
Education & Skills,SEND (0-25),Third Party Payments,DSG - High Needs Block,CROSSBAR COACHING,03/02/2023,"4,875.00"
Education & Skills,SEND (0-25),Third Party Payments,DSG - High Needs Block,CROSSBAR COACHING,03/02/2023,"2,604.00"
Education & Skills,SEND (0-25),Third Party Payments,DSG - High Needs Block,CROSSBAR COACHING,03/02/2023,"6,825.00"
Education & Skills,SEND (0-25),Third Party Payments,DSG - High Needs Block,CROSSBAR COACHING,03/02/2023,"4,875.00"
Education & Skills,SEND (0-25),Third Party Payments,DSG - High Needs Block,CROSSBAR COACHING,03/02/2023,"4,875.00"
Education & Skills,SEND (0-25),Third Party Payments,DSG - High Needs Block,CROSSBAR COACHING,22/02/2023,"4,875.00"
Education & Skills,SEND (0-25),Third Party Payments,DSG - High Needs Block,CROSSBAR COACHING,22/02/2023,"3,675.00"
Education & Skills,SEND (0-25),Third Party Payments,DSG - High Needs Block,CROSSBAR COACHING,22/02/2023,"6,825.00"
Education & Skills,SEND (0-25),Third Party Payments,DSG - High Needs Block,CROSSBAR COACHING,22/02/2023,"6,825.00"
"Communities, Customer & Commercial Services",Culture & Events,Supplies & Services,Promotion Expenses,crowdEngage Limited,21/02/2023,210.24
Prosperity & Investment,Regeneration & Investment,Capital Expenditure,Other Capital Expenditure,Crown Plus Limited,10/02/2023,"2,250.00"
Neighbourhood & Enforcement Services,Strategic Transport & Highway Network Management,Transport-Related Expenditure,Vehicle Parts,Ctrack UK LTD,06/02/2023,573.75
Prosperity & Investment,Regeneration & Investment,Premises-Related Expenditure,Dilapidations,Cubic FM Ltd,14/02/2023,"40,895.00"
"Communities, Customer & Commercial Services",Community Services,Capital Expenditure,Signage for electric vehicles,Cyclone Signs,15/02/2023,297.00
Neighbourhood & Enforcement Services,Strategic Transport & Highway Network Management,Transport-Related Expenditure,Subsidised Routes,D&G Bus,13/02/2023,"8,933.34"
Neighbourhood & Enforcement Services,Strategic Transport & Highway Network Management,Transport-Related Expenditure,Subsidised Routes,D&G Bus,13/02/2023,"18,261.93"
"Communities, Customer & Commercial Services",Sport & Leisure,Supplies & Services,Chemicals/Cleaning Products,DALESAUNA LTD,27/02/2023,105.60
Education & Skills,SEND (0-25),Third Party Payments,DSG - High Needs Block,Dawley C of E Primary Academy,22/02/2023,348.28
Neighbourhood & Enforcement Services,Strategic Transport & Highway Network Management,Transport-Related Expenditure,Outside Hire,DAYS RENTAL,22/02/2023,280.28
Neighbourhood & Enforcement Services,Strategic Transport & Highway Network Management,Transport-Related Expenditure,Outside Hire,DAYS RENTAL,22/02/2023,280.28
Neighbourhood & Enforcement Services,Strategic Transport & Highway Network Management,Transport-Related Expenditure,Outside Hire,DAYS RENTAL,22/02/2023,280.28
Neighbourhood & Enforcement Services,Strategic Transport & Highway Network Management,Transport-Related Expenditure,Outside Hire,DAYS RENTAL,22/02/2023,280.28
Neighbourhood & Enforcement Services,Strategic Transport & Highway Network Management,Transport-Related Expenditure,Outside Hire,DAYS RENTAL,22/02/2023,280.28
Neighbourhood & Enforcement Services,Strategic Transport & Highway Network Management,Transport-Related Expenditure,Outside Hire,DAYS RENTAL,08/02/2023,104.66
Neighbourhood & Enforcement Services,Strategic Transport & Highway Network Management,Transport-Related Expenditure,Outside Hire,DAYS RENTAL,06/02/2023,310.31
Neighbourhood & Enforcement Services,Strategic Transport & Highway Network Management,Transport-Related Expenditure,Outside Hire,DAYS RENTAL,06/02/2023,423.77
Neighbourhood & Enforcement Services,Strategic Transport & Highway Network Management,Transport-Related Expenditure,Outside Hire,DAYS RENTAL,06/02/2023,310.31
Neighbourhood & Enforcement Services,Strategic Transport & Highway Network Management,Transport-Related Expenditure,Outside Hire,DAYS RENTAL,06/02/2023,310.31
Neighbourhood & Enforcement Services,Strategic Transport & Highway Network Management,Transport-Related Expenditure,Outside Hire,DAYS RENTAL,06/02/2023,444.23
Neighbourhood & Enforcement Services,Strategic Transport & Highway Network Management,Transport-Related Expenditure,Outside Hire,DAYS RENTAL,06/02/2023,423.77
Neighbourhood & Enforcement Services,Strategic Transport & Highway Network Management,Transport-Related Expenditure,Intra Committee - Transport,DAYS RENTAL,07/02/2023,"1,925.59"
Neighbourhood & Enforcement Services,Strategic Transport & Highway Network Management,Transport-Related Expenditure,Outside Hire,DAYS RENTAL,06/02/2023,"1,057.56"
Neighbourhood & Enforcement Services,Strategic Transport & Highway Network Management,Transport-Related Expenditure,Outside Hire,DAYS RENTAL,06/02/2023,280.28
Neighbourhood & Enforcement Services,Strategic Transport & Highway Network Management,Transport-Related Expenditure,Outside Hire,DAYS RENTAL,06/02/2023,477.30
Neighbourhood & Enforcement Services,Strategic Transport & Highway Network Management,Transport-Related Expenditure,Outside Hire,DAYS RENTAL,06/02/2023,269.84
"Communities, Customer & Commercial Services",Sport & Leisure,Supplies & Services,Financial Services,DEBIT FINANCE COLLECTIONS,14/02/2023,260.18
"Communities, Customer & Commercial Services",Sport & Leisure,Supplies & Services,Financial Services,DEBIT FINANCE COLLECTIONS,10/02/2023,305.30
"Communities, Customer & Commercial Services",Sport & Leisure,Supplies & Services,Financial Services,DEBIT FINANCE COLLECTIONS,10/02/2023,338.50
"Communities, Customer & Commercial Services",Sport & Leisure,Supplies & Services,Financial Services,DEBIT FINANCE COLLECTIONS,10/02/2023,171.80
"Communities, Customer & Commercial Services",Sport & Leisure,Supplies & Services,Financial Services,DEBIT FINANCE COLLECTIONS,14/02/2023,519.02
"Communities, Customer & Commercial Services",Sport & Leisure,Supplies & Services,Financial Services,DEBIT FINANCE COLLECTIONS,10/02/2023,574.72
"Communities, Customer & Commercial Services",Sport & Leisure,Supplies & Services,Financial Services,DEBIT FINANCE COLLECTIONS ,14/02/2023,163.94
"Communities, Customer & Commercial Services",Sport & Leisure,Supplies & Services,Financial Services,DEBIT FINANCE COLLECTIONS ,14/02/2023,312.66
"Communities, Customer & Commercial Services",Sport & Leisure,Supplies & Services,Financial Services,DEBIT FINANCE COLLECTIONS ,14/02/2023,156.48
"Communities, Customer & Commercial Services",Sport & Leisure,Supplies & Services,Financial Services,DEBIT FINANCE COLLECTIONS ,14/02/2023,209.76
"Communities, Customer & Commercial Services",Sport & Leisure,Supplies & Services,Financial Services,DEBIT FINANCE COLLECTIONS ,10/02/2023,213.48
"Communities, Customer & Commercial Services",Sport & Leisure,Supplies & Services,Financial Services,DEBIT FINANCE COLLECTIONS ,14/02/2023,288.02
"Communities, Customer & Commercial Services",Sport & Leisure,Supplies & Services,Financial Services,DEBIT FINANCE COLLECTIONS ,10/02/2023,285.76
"Communities, Customer & Commercial Services",Sport & Leisure,Supplies & Services,Financial Services,DEBIT FINANCE COLLECTIONS ,14/02/2023,163.26
"Communities, Customer & Commercial Services",Sport & Leisure,Supplies & Services,Financial Services,DEBIT FINANCE COLLECTIONS ,10/02/2023,160.46
"Communities, Customer & Commercial Services",Sport & Leisure,Supplies & Services,Financial Services,DEBIT FINANCE COLLECTIONS ,14/02/2023,210.54
"Communities, Customer & Commercial Services",Sport & Leisure,Supplies & Services,Financial Services,DEBIT FINANCE COLLECTIONS ,10/02/2023,219.62
"Communities, Customer & Commercial Services",Sport & Leisure,Supplies & Services,Equipment - Repair,DELECTRICAL WHOLESALERS LTD,14/02/2023,225.98
"Communities, Customer & Commercial Services",Sport & Leisure,Employees,Hospitality,DEWBERRY REDPOINT LTD,21/02/2023,990.00
Finance & Human Resources,Human Resources,Employees,Criminal Records Bureau Checks,DISCLOSURE & BARRING SERVICE,08/02/2023,"7,768.00"
"Communities, Customer & Commercial Services",Customer Relationships & Welfare Services,Supplies & Services,Other Grants (Expenses),Discretionary Household Support,08/02/2023,137.82
"Communities, Customer & Commercial Services",Customer Relationships & Welfare Services,Supplies & Services,Other Grants (Expenses),Discretionary Household Support,03/02/2023,469.98
"Communities, Customer & Commercial Services",Customer Relationships & Welfare Services,Supplies & Services,Other Grants (Expenses),Discretionary Household Support,03/02/2023,250.00
"Communities, Customer & Commercial Services",Customer Relationships & Welfare Services,Supplies & Services,Other Grants (Expenses),Discretionary Household Support,15/02/2023,241.58
"Communities, Customer & Commercial Services",Customer Relationships & Welfare Services,Supplies & Services,Other Grants (Expenses),Discretionary Household Support,09/02/2023,249.96
"Communities, Customer & Commercial Services",Customer Relationships & Welfare Services,Supplies & Services,Other Grants (Expenses),Discretionary Household Support,01/02/2023,500.00
"Communities, Customer & Commercial Services",Customer Relationships & Welfare Services,Supplies & Services,Other Grants (Expenses),Discretionary Household Support,24/02/2023,535.03
"Communities, Customer & Commercial Services",Customer Relationships & Welfare Services,Supplies & Services,Other Grants (Expenses),Discretionary Household Support,14/02/2023,187.18
"Communities, Customer & Commercial Services",Customer Relationships & Welfare Services,Supplies & Services,Other Grants (Expenses),Discretionary Household Support,14/02/2023,261.52
"Communities, Customer & Commercial Services",Customer Relationships & Welfare Services,Supplies & Services,Other Grants (Expenses),Discretionary Household Support,14/02/2023,178.79
"Communities, Customer & Commercial Services",Customer Relationships & Welfare Services,Supplies & Services,Other Grants (Expenses),Discretionary Household Support,10/02/2023,475.80
"Communities, Customer & Commercial Services",Customer Relationships & Welfare Services,Supplies & Services,Other Grants (Expenses),Discretionary Household Support,22/02/2023,250.00
"Communities, Customer & Commercial Services",Customer Relationships & Welfare Services,Supplies & Services,Other Grants (Expenses),Discretionary Household Support,22/02/2023,344.00
"Communities, Customer & Commercial Services",Customer Relationships & Welfare Services,Supplies & Services,Other Grants (Expenses),Discretionary Household Support,22/02/2023,500.00
"Communities, Customer & Commercial Services",Sport & Leisure,Supplies & Services,Advertising,DLM DISTRIBUTIONS LTD,16/02/2023,570.00
Neighbourhood & Enforcement Services,"Highways, Engineering & Project Delivery",Third Party Payments,Highways Contract - BBLP,DMC Products and Marketing,15/02/2023,168.64
"Communities, Customer & Commercial Services",Community Services,Supplies & Services,Grants To Voluntary Organis,DONNINGTON & MUXTON PARISH COUNCIL,23/02/2023,"1,000.00"
"Communities, Customer & Commercial Services",Community Services,Supplies & Services,Grants To Voluntary Organis,DONNINGTON & MUXTON PARISH COUNCIL,23/02/2023,500.00
Neighbourhood & Enforcement Services,Safer & Stronger Communities,Supplies & Services,Other Services,DONNINGTON & MUXTON PARISH COUNCIL,16/02/2023,"1,656.60"
Neighbourhood & Enforcement Services,Safer & Stronger Communities,Supplies & Services,Other Services,DONNINGTON & MUXTON PARISH COUNCIL,17/02/2023,900.00
Finance & Human Resources,Human Resources,Supplies & Services,Doctors Fees,DONNINGTON MEDICAL PRACTICE,16/02/2023,155.00
Education & Skills,Skills,Premises-Related Expenditure,Hire Of Rooms,DONNINGTON PARTNERSHIP,01/02/2023,140.25
Education & Skills,Skills,Premises-Related Expenditure,Hire Of Rooms,DONNINGTON PARTNERSHIP,01/02/2023,187.00
Education & Skills,Skills,Premises-Related Expenditure,Hire Of Rooms,DONNINGTON PARTNERSHIP,17/02/2023,106.25
Education & Skills,Skills,Premises-Related Expenditure,Hire Of Rooms,DONNINGTON PARTNERSHIP,15/02/2023,187.00
Health & Wellbeing,Health Improvement,Premises-Related Expenditure,Hire Of Rooms,DONNINGTON PARTNERSHIP,13/02/2023,224.00
Children�s Safeguarding & Family Support,"Family Placements, Children in Care, Leaving Care & Emergency Duty Team",Supplies & Services,Health & Safety Expenses,DRAYTON MEDICAL PRACTICES,23/02/2023,147.72
"Communities, Customer & Commercial Services",ICT,Supplies & Services,External Computer Use,DSP-Explorer,06/02/2023,"24,000.00"
Health & Wellbeing,Consultant in Public Health,Supplies & Services,Sub Contractors,Dudley Group of Hospitals NHS Foundation Trust,13/02/2023,239.00
Health & Wellbeing,Consultant in Public Health,Supplies & Services,Sub Contractors,Dudley Group of Hospitals NHS Foundation Trust,13/02/2023,134.00
"Communities, Customer & Commercial Services",Customer Relationships & Welfare Services,Employees,Agency Supply Costs,E BROWN LTD,20/02/2023,"1,053.00"
"Communities, Customer & Commercial Services",Customer Relationships & Welfare Services,Employees,Agency Supply Costs,E BROWN LTD,20/02/2023,"1,046.25"
"Communities, Customer & Commercial Services",Customer Relationships & Welfare Services,Employees,Agency Supply Costs,E BROWN LTD,20/02/2023,"1,066.50"
"Communities, Customer & Commercial Services",Sport & Leisure,Supplies & Services,Crockery/Hardware/Light Equip,E N CATERING EQUIPMENT AND SERVICES  LTD,14/02/2023,146.99
"Communities, Customer & Commercial Services",Sport & Leisure,Supplies & Services,Crockery/Hardware/Light Equip,E N CATERING EQUIPMENT AND SERVICES  LTD,01/02/2023,230.00
"Communities, Customer & Commercial Services",Sport & Leisure,Supplies & Services,Crockery/Hardware/Light Equip,E N CATERING EQUIPMENT AND SERVICES  LTD,21/02/2023,"2,302.66"
Prosperity & Investment,BiT,Premises-Related Expenditure,R&M -Buildings DLO Charge,E N CATERING EQUIPMENT AND SERVICES  LTD,07/02/2023,"2,082.40"
Prosperity & Investment,BiT,Premises-Related Expenditure,R&M -Buildings DLO Charge,E Solutions Ltd,15/02/2023,380.00
Prosperity & Investment,BiT,Premises-Related Expenditure,R&M -Buildings DLO Charge,E Solutions Ltd,15/02/2023,380.00
Prosperity & Investment,BiT,Premises-Related Expenditure,R&M -Buildings DLO Charge,E Solutions Ltd,07/02/2023,580.00
Prosperity & Investment,BiT,Premises-Related Expenditure,R&M -Buildings DLO Charge,E Solutions Ltd,15/02/2023,800.00
Prosperity & Investment,BiT,Premises-Related Expenditure,R&M -Buildings DLO Charge,E Solutions Ltd,15/02/2023,380.00
Prosperity & Investment,BiT,Premises-Related Expenditure,R&M -Buildings DLO Charge,E Solutions Ltd,02/02/2023,440.00
Prosperity & Investment,BiT,Premises-Related Expenditure,R&M -Buildings DLO Charge,E Solutions Ltd,02/02/2023,420.00
Prosperity & Investment,BiT,Premises-Related Expenditure,R&M -Buildings DLO Charge,E Solutions Ltd,02/02/2023,420.00
Prosperity & Investment,BiT,Premises-Related Expenditure,R&M -Buildings DLO Charge,E Solutions Ltd,02/02/2023,740.00
Prosperity & Investment,BiT,Premises-Related Expenditure,Service Contracts,E Solutions Ltd,02/02/2023,180.00
Prosperity & Investment,BiT,Premises-Related Expenditure,Service Contracts,E Solutions Ltd,02/02/2023,150.00
Prosperity & Investment,BiT,Premises-Related Expenditure,Service Contracts,E Solutions Ltd,02/02/2023,320.00
Adult Social Care,My Options,Supplies & Services,Equipment - Purchase,Easylink,09/02/2023,264.60
Adult Social Care,My Options,Supplies & Services,Equipment - Purchase,Easylink,22/02/2023,-264.60
Adult Social Care,My Options,Supplies & Services,Equipment - Purchase,Easylink,14/02/2023,283.30
Adult Social Care,Prevention & Independence - Older Adults & Disability,Supplies & Services,Aids & Appliances,Easylink,01/02/2023,"1,406.16"
Adult Social Care,Prevention & Independence - Older Adults & Disability,Supplies & Services,Aids & Appliances,Easylink,01/02/2023,493.29
Adult Social Care,Prevention & Independence - Older Adults & Disability,Supplies & Services,Aids & Appliances,Easylink,01/02/2023,294.84
Adult Social Care,Prevention & Independence - Older Adults & Disability,Supplies & Services,Aids & Appliances,Easylink,01/02/2023,198.45
Adult Social Care,Prevention & Independence - Older Adults & Disability,Supplies & Services,Aids & Appliances,Easylink,01/02/2023,416.76
Education & Skills,SEND (0-25),Supplies & Services,Other Services,EDEN BROWN LTD,02/02/2023,"2,750.00"
Education & Skills,SEND (0-25),Supplies & Services,Other Services,EDEN BROWN LTD,02/02/2023,"2,750.00"
Education & Skills,SEND (0-25),Supplies & Services,Other Services,EDEN BROWN LTD,02/02/2023,"1,100.00"
Education & Skills,SEND (0-25),Supplies & Services,Other Services,EDEN BROWN LTD,22/02/2023,"1,100.00"
"Communities, Customer & Commercial Services",Culture & Events,Supplies & Services,Confectionery & Snacks,Eden Farm Hulleys,23/02/2023,153.70
"Communities, Customer & Commercial Services",Culture & Events,Supplies & Services,Confectionery & Snacks,Eden Farm Hulleys,23/02/2023,261.40
"Communities, Customer & Commercial Services",Culture & Events,Supplies & Services,Confectionery & Snacks,Eden Farm Hulleys,23/02/2023,424.96
Education & Skills,Pupil Support Services,Supplies & Services,Other Grants (Expenses),Educating Kids Outdoors Ltd,14/02/2023,796.66
"Communities, Customer & Commercial Services",ICT,Supplies & Services,Mobile Phones,EE LTD AIRTIME ,03/02/2023,"12,169.37"
Children�s Safeguarding & Family Support,Child Protection & Family Support,Supplies & Services,Mobile Phones,EE LTD EQUIPMENT,14/02/2023,142.00
Children�s Safeguarding & Family Support,Child Protection & Family Support,Supplies & Services,Mobile Phones,EE LTD EQUIPMENT,16/02/2023,142.00
Children�s Safeguarding & Family Support,Family Connect & Childrens Centres,Supplies & Services,Mobile Phones,EE LTD EQUIPMENT,14/02/2023,568.00
Children�s Safeguarding & Family Support,"Family Placements, Children in Care, Leaving Care & Emergency Duty Team",Supplies & Services,Mobile Phones,EE LTD EQUIPMENT,15/02/2023,142.00
"Housing, Employment & Infrastructure",Private Sector Housing & Enforcement,Supplies & Services,Mobile Phones,EE LTD EQUIPMENT,14/02/2023,142.00
Adult Social Care,ASC Prevention & Enablement,Supplies & Services,Mobile Phones,EE LTD EQUIPMENT ,14/02/2023,142.00
Children�s Safeguarding & Family Support,Child Protection & Family Support,Supplies & Services,Mobile Phones,EE LTD EQUIPMENT ,14/02/2023,142.00
Children�s Safeguarding & Family Support,Family Connect & Childrens Centres,Supplies & Services,Mobile Phones,EE LTD EQUIPMENT ,14/02/2023,-200.00
"Communities, Customer & Commercial Services",ICT,Supplies & Services,Mobile Phones,EE LTD EQUIPMENT ,14/02/2023,222.00
Corporate Communications,Communications & Marketing,Supplies & Services,Mobile Phones,EE LTD EQUIPMENT ,14/02/2023,142.00
Education & Skills,Skills,Supplies & Services,Mobile Phones,EE LTD EQUIPMENT ,14/02/2023,142.00
Neighbourhood & Enforcement Services,Public Protection,Supplies & Services,Mobile Phones,EE LTD EQUIPMENT ,14/02/2023,142.00
Neighbourhood & Enforcement Services,Public Protection,Supplies & Services,Mobile Phones,EE LTD EQUIPMENT ,14/02/2023,142.00
Neighbourhood & Enforcement Services,Public Protection,Supplies & Services,Mobile Phones,EE LTD EQUIPMENT ,14/02/2023,142.00
"Communities, Customer & Commercial Services",Culture & Events,Transport-Related Expenditure,Purchase Vehicles and Plant,ELCOCK REISEN,06/02/2023,280.00
Education & Skills,SEND (0-25),Transport-Related Expenditure,Taxi Costs,Elite Telford Limited,08/02/2023,"2,268.00"
Neighbourhood & Enforcement Services,Safer & Stronger Communities,Supplies & Services,Other Services,EMERGE DESIGN LTD,15/02/2023,"4,157.50"
Neighbourhood & Enforcement Services,Safer & Stronger Communities,Supplies & Services,Printing - Other,EMERGE DESIGN LTD,03/02/2023,132.00
Neighbourhood & Enforcement Services,Safer & Stronger Communities,Supplies & Services,Printing - Other,EMERGE DESIGN LTD,03/02/2023,198.00
Neighbourhood & Enforcement Services,Safer & Stronger Communities,Supplies & Services,Printing - Other,EMERGE DESIGN LTD,03/02/2023,135.00
Neighbourhood & Enforcement Services,Waste & Neighbourhood Services,Supplies & Services,Stationery,EMERGE DESIGN LTD,01/02/2023,"5,594.00"
Adult Social Care,"Commissioning, Procurement & Brokerage",Employees,Training Expenses,Empeiria Training Limited,20/02/2023,650.00
"Communities, Customer & Commercial Services",Sport & Leisure,Premises-Related Expenditure,R&M -Building Other,Envirosport Maintenance Limited,15/02/2023,495.00
Prosperity & Investment,Regeneration & Investment,Premises-Related Expenditure,Electricity,EON next,10/02/2023,163.66
Prosperity & Investment,Regeneration & Investment,Premises-Related Expenditure,Electricity,EON next,10/02/2023,153.54
Prosperity & Investment,Regeneration & Investment,Premises-Related Expenditure,Electricity,EON next,06/02/2023,234.23
Policy & Governance,Organisational Development & Delivery,Supplies & Services,Printing - Other,EPS  LTD,14/02/2023,140.00
Policy & Governance,Organisational Development & Delivery,Supplies & Services,Printing - Other,EPS  LTD,14/02/2023,165.00
Policy & Governance,Organisational Development & Delivery,Supplies & Services,Printing - Other,EPS  LTD,14/02/2023,390.00
Health & Wellbeing,Consultant in Public Health,Supplies & Services,Service Contracts,EQE Health Limited,23/02/2023,"1,900.00"
Education & Skills,SEND (0-25),Third Party Payments,DSG - High Needs Block,Ercall Wood Academy,22/02/2023,"8,881.23"
Neighbourhood & Enforcement Services,Strategic Transport & Highway Network Management,Supplies & Services,Mobile Phones,Eseye Limited,01/02/2023,240.00
Prosperity & Investment,Regeneration & Investment,Premises-Related Expenditure,R&M -Building Other,ESolutions Ltd,06/02/2023,320.00
Children�s Safeguarding & Family Support,"Family Placements, Children in Care, Leaving Care & Emergency Duty Team",Supplies & Services,Form F Assessments,ES-PBS Services,13/02/2023,"2,000.00"
Children�s Safeguarding & Family Support,"Family Placements, Children in Care, Leaving Care & Emergency Duty Team",Supplies & Services,Form F Assessments,ES-PBS Services,13/02/2023,"1,000.00"
Children�s Safeguarding & Family Support,"Family Placements, Children in Care, Leaving Care & Emergency Duty Team",Supplies & Services,Form F Assessments,ES-PBS Services,13/02/2023,"2,000.00"
"Communities, Customer & Commercial Services",ICT,Supplies & Services,External Computer Use,ESTEEM SYSTEMS Ltd,06/02/2023,"13,555.77"
Neighbourhood & Enforcement Services,Strategic Transport & Highway Network Management,Capital Expenditure,Payments to Contractor,Etesian Green,24/02/2023,"2,580.00"
"Communities, Customer & Commercial Services",Customer Relationships & Welfare Services,Supplies & Services,Bus Pass Production,Euclid Limited,15/02/2023,860.21
Neighbourhood & Enforcement Services,Strategic Transport & Highway Network Management,Transport-Related Expenditure,Vehicle Parts,Euro Car Parts,08/02/2023,154.67
"Communities, Customer & Commercial Services",Culture & Events,Supplies & Services,Equipment - Hire,Event Cup Solutions Ltd,10/02/2023,-146.00
"Communities, Customer & Commercial Services",Culture & Events,Supplies & Services,Equipment - Hire,Event Furniture Hire Ltd,13/02/2023,500.00
Children�s Safeguarding & Family Support,Family Connect & Childrens Centres,Premises-Related Expenditure,R&M -Building Other,Eyton Solutions Ltd,03/02/2023,180.00
Prosperity & Investment,BiT,Premises-Related Expenditure,R&M -Buildings DLO Charge,Eyton Solutions Ltd,15/02/2023,380.00
Prosperity & Investment,BiT,Premises-Related Expenditure,R&M -Buildings DLO Charge,Eyton Solutions Ltd,15/02/2023,380.00
Prosperity & Investment,BiT,Premises-Related Expenditure,R&M -Buildings DLO Charge,Eyton Solutions Ltd,02/02/2023,320.00
Prosperity & Investment,BiT,Premises-Related Expenditure,R&M -Buildings DLO Charge,Eyton Solutions Ltd,02/02/2023,380.00
Prosperity & Investment,BiT,Premises-Related Expenditure,R&M -Buildings DLO Charge,Eyton Solutions Ltd,02/02/2023,640.00
Prosperity & Investment,BiT,Premises-Related Expenditure,R&M -Buildings DLO Charge,Eyton Solutions Ltd,02/02/2023,400.00
Prosperity & Investment,BiT,Premises-Related Expenditure,R&M -Buildings DLO Charge,Eyton Solutions Ltd,02/02/2023,560.00
Prosperity & Investment,BiT,Premises-Related Expenditure,R&M -Buildings DLO Charge,Eyton Solutions Ltd,02/02/2023,560.00
Prosperity & Investment,BiT,Premises-Related Expenditure,R&M -Buildings DLO Charge,Eyton Solutions Ltd,08/02/2023,260.00
Prosperity & Investment,BiT,Premises-Related Expenditure,R&M -Buildings DLO Charge,Eyton Solutions Ltd,08/02/2023,260.00
Adult Social Care,Community Social Work & Adult Safeguarding,Transport-Related Expenditure,Taxi Costs,Ezy Car Ltd,07/02/2023,988.90
Adult Social Care,Community Social Work & Adult Safeguarding,Transport-Related Expenditure,Taxi Costs,Ezy Car Ltd,15/02/2023,"1,258.60"
Adult Social Care,Community Social Work (Principal Social Worker),Transport-Related Expenditure,Transport,Ezy Car Ltd,15/02/2023,629.30
Prosperity & Investment,BiT,Premises-Related Expenditure,Trade Refuse,FCC Recycling (UK) Ltd,14/02/2023,197.80
Prosperity & Investment,Regeneration & Investment,Premises-Related Expenditure,Building Cleaning DSO,FCC Recycling Ltd,08/02/2023,127.14
Prosperity & Investment,BiT,Premises-Related Expenditure,Trade Refuse,FCC Recycling Ltd ,10/02/2023,593.32
"Communities, Customer & Commercial Services",Customer Relationships & Welfare Services,Supplies & Services,Postages,Financial Data Management plc,07/02/2023,143.84
"Communities, Customer & Commercial Services",Customer Relationships & Welfare Services,Supplies & Services,Postages,Financial Data Management plc,07/02/2023,128.55
Finance & Human Resources,Revenues,Supplies & Services,Postages,Financial Data Management plc,07/02/2023,"1,009.21"
Finance & Human Resources,Revenues,Supplies & Services,Postages,Financial Data Management plc,07/02/2023,293.79
Finance & Human Resources,Revenues,Supplies & Services,Postages,Financial Data Management plc,07/02/2023,"1,786.04"
Finance & Human Resources,Revenues,Supplies & Services,Postages,Financial Data Management plc,07/02/2023,347.10
"Communities, Customer & Commercial Services",ICT,Capital Expenditure,Payments to Contractor,Flint Studios Limited,03/02/2023,562.50
Prosperity & Investment,Regeneration & Investment,Capital Expenditure,External Professional Fees,Focus Consultants ,17/02/2023,470.00
Neighbourhood & Enforcement Services,Safer & Stronger Communities,Supplies & Services,Other Services,Forum 50+,22/02/2023,"2,000.00"
Finance & Human Resources,Revenues,Supplies & Services,Franking Machine Service,FRANCOTYP-POSTALIA LTD ,13/02/2023,"2,000.00"
Finance & Human Resources,Revenues,Supplies & Services,Postages,FREELANCE BUSINESS ASSOCIATES,07/02/2023,378.00
Neighbourhood & Enforcement Services,Strategic Transport & Highway Network Management,Transport-Related Expenditure,Servicing & Repairs V&P,FURROWS OF TELFORD,02/02/2023,325.42
Children�s Safeguarding & Family Support,"Family Placements, Children in Care, Leaving Care & Emergency Duty Team",Supplies & Services,Aids & Appliances,G & S LTD,23/02/2023,374.00
Children�s Safeguarding & Family Support,"Family Placements, Children in Care, Leaving Care & Emergency Duty Team",Supplies & Services,Aids & Appliances,G & S LTD,13/02/2023,528.00
Children�s Safeguarding & Family Support,"Family Placements, Children in Care, Leaving Care & Emergency Duty Team",Supplies & Services,Aids & Appliances,G & S S LTD,13/02/2023,526.00
Finance & Human Resources,Revenues,Supplies & Services,Postages,G FORCE EXPRESS PARCELS LTD,08/02/2023,190.80
"Communities, Customer & Commercial Services",Customer Relationships & Welfare Services,Employees,Agency Supply Costs,G2 Recruitment Solutions,07/02/2023,"1,110.00"
"Communities, Customer & Commercial Services",Customer Relationships & Welfare Services,Employees,Agency Supply Costs,G2 Recruitment Solutions,20/02/2023,"2,025.00"
"Communities, Customer & Commercial Services",Customer Relationships & Welfare Services,Employees,Agency Supply Costs,G2 Recruitment Solutions,01/02/2023,375.00
"Communities, Customer & Commercial Services",Culture & Events,Premises-Related Expenditure,Gas,GAS DIRECT LTD,20/02/2023,120.00
"Communities, Customer & Commercial Services",Culture & Events,Premises-Related Expenditure,Gas,GAS DIRECT LTD,23/02/2023,113.41
Prosperity & Investment,BiT,Premises-Related Expenditure,Gas,GAS DIRECT LTD,02/02/2023,259.98
Prosperity & Investment,BiT,Premises-Related Expenditure,Gas,GAS DIRECT LTD,17/02/2023,262.98
Finance & Human Resources,Human Resources,Supplies & Services,Doctors Fees,Get Medic Ltd,16/02/2023,490.00
Finance & Human Resources,Human Resources,Supplies & Services,Doctors Fees,Get Medic Ltd,16/02/2023,490.00
Prosperity & Investment,Regeneration & Investment,Premises-Related Expenditure,R&M -Building Other,GEZE UK Ltd,08/02/2023,175.00
Prosperity & Investment,Regeneration & Investment,Premises-Related Expenditure,R&M -Building Other,GEZE UK Ltd,08/02/2023,-104.00
"Communities, Customer & Commercial Services",ICT,Supplies & Services,Telephones,Ghekko LTD,28/02/2023,180.00
Adult Social Care,Community Social Work & Adult Safeguarding,Supplies & Services,Legal Expenses,GHP Legal,17/02/2023,128.25
Prosperity & Investment,Development Management,Supplies & Services,Consultancy,Gillespies,27/02/2023,896.50
"Communities, Customer & Commercial Services",Sport & Leisure,Employees,Staff Training,Gladstone MRM Ltd,13/02/2023,"3,570.00"
"Communities, Customer & Commercial Services",Sport & Leisure,Employees,Staff Training,Gladstone MRM Ltd,13/02/2023,"1,785.00"
Prosperity & Investment,BiT,Premises-Related Expenditure,R&M -Buildings DLO Charge,Gleaming Services Limited,02/02/2023,105.00
Prosperity & Investment,BiT,Premises-Related Expenditure,R&M -Buildings DLO Charge,Gleaming Services Limited,02/02/2023,105.00
Adult Social Care,ASC Prevention & Enablement,Transport-Related Expenditure,Taxi Costs,Go Carz,22/02/2023,201.20
Adult Social Care,Prevention & Independence - Older Adults & Disability,Transport-Related Expenditure,Taxi Costs,Go Carz,22/02/2023,115.20
Children�s Safeguarding & Family Support,"Family Placements, Children in Care, Leaving Care & Emergency Duty Team",Transport-Related Expenditure,Taxi Costs,Go Carz,15/02/2023,491.86
"Housing, Employment & Infrastructure",Inward Investment & Business Support,Supplies & Services,Other Grants (Expenses),Good2Great Ltd,07/02/2023,"13,239.65"
Neighbourhood & Enforcement Services,Safer & Stronger Communities,Premises-Related Expenditure,Leasehold Rents,GPS Property Shropshire LLP,15/02/2023,675.00
Neighbourhood & Enforcement Services,Safer & Stronger Communities,Premises-Related Expenditure,Leasehold Rents,GPS Property Shropshire LLP,13/02/2023,650.00
Education & Skills,SEND (0-25),Third Party Payments,DSG - High Needs Block,Grange Park Primary School - Community Academies Trust,22/02/2023,"3,744.05"
Finance & Human Resources,Finance,Supplies & Services,External Audit Fees,GRANT THORNTON UK LLP,13/02/2023,"51,966.00"
Adult Social Care,Prevention & Independence - Older Adults & Disability,Supplies & Services,Adaptations,GRANVILLE CONSTRUCTION & MAINTENANCE LTD,06/02/2023,720.00
Adult Social Care,Prevention & Independence - Older Adults & Disability,Supplies & Services,Adaptations,GRANVILLE CONSTRUCTION & MAINTENANCE LTD,06/02/2023,364.00
Children�s Safeguarding & Family Support,Family Connect & Childrens Centres,Premises-Related Expenditure,R&M -Building Other,GRANVILLE CONSTRUCTION & MAINTENANCE LTD,01/02/2023,256.00
"Communities, Customer & Commercial Services",Culture & Events,Supplies & Services,Furniture - Repair,GRANVILLE CONSTRUCTION & MAINTENANCE LTD,14/02/2023,260.00
"Communities, Customer & Commercial Services",ICT,Premises-Related Expenditure,R&M -Buildings DLO Charge,GRANVILLE CONSTRUCTION & MAINTENANCE LTD,02/02/2023,216.00
"Communities, Customer & Commercial Services",Sport & Leisure,Premises-Related Expenditure,R&M -Building Other,GRANVILLE CONSTRUCTION & MAINTENANCE LTD,03/02/2023,118.54
"Communities, Customer & Commercial Services",Sport & Leisure,Capital Expenditure,Payments to Contractor,GRANVILLE CONSTRUCTION & MAINTENANCE LTD,07/02/2023,"1,495.08"
"Communities, Customer & Commercial Services",Sport & Leisure,Capital Expenditure,Payments to Contractor,GRANVILLE CONSTRUCTION & MAINTENANCE LTD,07/02/2023,"1,020.00"
Education & Skills,Education & Skills,Capital Expenditure,Payments to Contractor,GRANVILLE CONSTRUCTION & MAINTENANCE LTD,13/02/2023,"23,846.75"
Education & Skills,Education & Skills,Capital Expenditure,Payments to Contractor,GRANVILLE CONSTRUCTION & MAINTENANCE LTD,13/02/2023,"12,720.00"
Education & Skills,Education & Skills,Capital Expenditure,Payments to Contractor,GRANVILLE CONSTRUCTION & MAINTENANCE LTD,07/02/2023,"1,160.96"
Education & Skills,Education & Skills,Capital Expenditure,Payments to Contractor,GRANVILLE CONSTRUCTION & MAINTENANCE LTD,08/02/2023,"2,820.00"
Education & Skills,Education & Skills,Capital Expenditure,Payments to Contractor,GRANVILLE CONSTRUCTION & MAINTENANCE LTD,08/02/2023,"1,901.76"
Prosperity & Investment,BiT,Supplies & Services,Complaints,GRANVILLE CONSTRUCTION & MAINTENANCE LTD,10/02/2023,"1,020.00"
Prosperity & Investment,BiT,Supplies & Services,Complaints,GRANVILLE CONSTRUCTION & MAINTENANCE LTD,10/02/2023,873.98
Prosperity & Investment,BiT,Supplies & Services,Complaints,GRANVILLE CONSTRUCTION & MAINTENANCE LTD,09/02/2023,135.00
Prosperity & Investment,BiT,Premises-Related Expenditure,R&M -Buildings DLO Charge,GRANVILLE CONSTRUCTION & MAINTENANCE LTD,02/02/2023,181.00
Prosperity & Investment,BiT,Premises-Related Expenditure,R&M -Buildings DLO Charge,GRANVILLE CONSTRUCTION & MAINTENANCE LTD,02/02/2023,168.00
Prosperity & Investment,BiT,Premises-Related Expenditure,R&M -Buildings DLO Charge,GRANVILLE CONSTRUCTION & MAINTENANCE LTD,08/02/2023,"2,669.76"
Prosperity & Investment,BiT,Premises-Related Expenditure,R&M -Buildings DLO Charge,GRANVILLE CONSTRUCTION & MAINTENANCE LTD,03/02/2023,270.50
Prosperity & Investment,BiT,Premises-Related Expenditure,R&M -Buildings DLO Charge,GRANVILLE CONSTRUCTION & MAINTENANCE LTD,03/02/2023,388.95
Prosperity & Investment,BiT,Premises-Related Expenditure,R&M -Buildings DLO Charge,GRANVILLE CONSTRUCTION & MAINTENANCE LTD,03/02/2023,162.00
Prosperity & Investment,BiT,Premises-Related Expenditure,R&M -Buildings DLO Charge,GRANVILLE CONSTRUCTION & MAINTENANCE LTD,03/02/2023,"1,094.28"
Prosperity & Investment,BiT,Premises-Related Expenditure,R&M -Buildings DLO Charge,GRANVILLE CONSTRUCTION & MAINTENANCE LTD,07/02/2023,"1,397.00"
Prosperity & Investment,BiT,Premises-Related Expenditure,R&M -Buildings DLO Charge,GRANVILLE CONSTRUCTION & MAINTENANCE LTD,07/02/2023,"1,950.00"
Prosperity & Investment,BiT,Premises-Related Expenditure,R&M -Buildings DLO Charge,GRANVILLE CONSTRUCTION & MAINTENANCE LTD,06/02/2023,455.08
Prosperity & Investment,BiT,Premises-Related Expenditure,R&M -Buildings DLO Charge,GRANVILLE CONSTRUCTION & MAINTENANCE LTD,06/02/2023,504.36
Prosperity & Investment,BiT,Premises-Related Expenditure,R&M -Buildings DLO Charge,GRANVILLE CONSTRUCTION & MAINTENANCE LTD,14/02/2023,107.83
Prosperity & Investment,BiT,Premises-Related Expenditure,R&M -Buildings DLO Charge,GRANVILLE CONSTRUCTION & MAINTENANCE LTD,14/02/2023,144.71
Prosperity & Investment,BiT,Premises-Related Expenditure,R&M -Buildings DLO Charge,GRANVILLE CONSTRUCTION & MAINTENANCE LTD,14/02/2023,125.05
Prosperity & Investment,BiT,Premises-Related Expenditure,R&M -Buildings DLO Charge,GRANVILLE CONSTRUCTION & MAINTENANCE LTD,14/02/2023,103.58
Prosperity & Investment,BiT,Premises-Related Expenditure,R&M -Buildings DLO Charge,GRANVILLE CONSTRUCTION & MAINTENANCE LTD,14/02/2023,171.00
Prosperity & Investment,BiT,Premises-Related Expenditure,R&M -Buildings DLO Charge,GRANVILLE CONSTRUCTION & MAINTENANCE LTD,14/02/2023,126.00
Prosperity & Investment,BiT,Premises-Related Expenditure,R&M -Buildings DLO Charge,GRANVILLE CONSTRUCTION & MAINTENANCE LTD,14/02/2023,156.52
Prosperity & Investment,BiT,Premises-Related Expenditure,R&M -Buildings DLO Charge,GRANVILLE CONSTRUCTION & MAINTENANCE LTD,02/02/2023,103.00
Prosperity & Investment,BiT,Premises-Related Expenditure,R&M -Buildings DLO Charge,GRANVILLE CONSTRUCTION & MAINTENANCE LTD,02/02/2023,102.32
Prosperity & Investment,BiT,Premises-Related Expenditure,R&M -Buildings DLO Charge,GRANVILLE CONSTRUCTION & MAINTENANCE LTD,02/02/2023,123.20
Prosperity & Investment,BiT,Premises-Related Expenditure,R&M -Buildings DLO Charge,GRANVILLE CONSTRUCTION & MAINTENANCE LTD,02/02/2023,108.36
Prosperity & Investment,BiT,Premises-Related Expenditure,R&M -Buildings DLO Charge,GRANVILLE CONSTRUCTION & MAINTENANCE LTD,10/02/2023,189.00
Prosperity & Investment,BiT,Premises-Related Expenditure,R&M -Buildings DLO Charge,GRANVILLE CONSTRUCTION & MAINTENANCE LTD,14/02/2023,116.40
Prosperity & Investment,BiT,Premises-Related Expenditure,R&M -Buildings DLO Charge,GRANVILLE CONSTRUCTION & MAINTENANCE LTD,14/02/2023,106.65
Prosperity & Investment,BiT,Premises-Related Expenditure,R&M -Buildings DLO Charge,GRANVILLE CONSTRUCTION & MAINTENANCE LTD,02/02/2023,166.88
Prosperity & Investment,BiT,Premises-Related Expenditure,R&M -Buildings DLO Charge,GRANVILLE CONSTRUCTION & MAINTENANCE LTD,07/02/2023,"1,758.94"
Prosperity & Investment,BiT,Premises-Related Expenditure,R&M -Buildings DLO Charge,GRANVILLE CONSTRUCTION & MAINTENANCE LTD,03/02/2023,124.73
Prosperity & Investment,BiT,Premises-Related Expenditure,R&M -Buildings DLO Charge,GRANVILLE CONSTRUCTION & MAINTENANCE LTD,07/02/2023,325.00
Prosperity & Investment,BiT,Premises-Related Expenditure,R&M -Buildings DLO Charge,GRANVILLE CONSTRUCTION & MAINTENANCE LTD,02/02/2023,227.45
Prosperity & Investment,BiT,Premises-Related Expenditure,R&M -Buildings DLO Charge,GRANVILLE CONSTRUCTION & MAINTENANCE LTD,07/02/2023,"1,063.20"
Prosperity & Investment,BiT,Premises-Related Expenditure,R&M -Buildings DLO Charge,GRANVILLE CONSTRUCTION & MAINTENANCE LTD,15/02/2023,202.19
Prosperity & Investment,BiT,Premises-Related Expenditure,R&M -Buildings DLO Charge,GRANVILLE CONSTRUCTION & MAINTENANCE LTD,28/02/2023,"4,830.00"
Prosperity & Investment,BiT,Premises-Related Expenditure,R&M -Buildings DLO Charge,GRANVILLE CONSTRUCTION & MAINTENANCE LTD,28/02/2023,"5,474.93"
Prosperity & Investment,BiT,Premises-Related Expenditure,R&M -Buildings DLO Charge,GRANVILLE CONSTRUCTION & MAINTENANCE LTD,07/02/2023,"2,860.00"
Prosperity & Investment,BiT,Premises-Related Expenditure,R&M -Buildings DLO Charge,GRANVILLE CONSTRUCTION & MAINTENANCE LTD,07/02/2023,"6,601.41"
Prosperity & Investment,BiT,Premises-Related Expenditure,R&M -Buildings DLO Charge,GRANVILLE CONSTRUCTION & MAINTENANCE LTD,06/02/2023,116.72
Prosperity & Investment,BiT,Premises-Related Expenditure,R&M -Buildings DLO Charge,GRANVILLE CONSTRUCTION & MAINTENANCE LTD,06/02/2023,100.08
Prosperity & Investment,BiT,Premises-Related Expenditure,R&M -Buildings DLO Charge,GRANVILLE CONSTRUCTION & MAINTENANCE LTD,06/02/2023,180.00
Prosperity & Investment,BiT,Premises-Related Expenditure,R&M -Buildings DLO Charge,GRANVILLE CONSTRUCTION & MAINTENANCE LTD,14/02/2023,148.80
Prosperity & Investment,BiT,Premises-Related Expenditure,R&M -Buildings DLO Charge,GRANVILLE CONSTRUCTION & MAINTENANCE LTD,14/02/2023,173.39
Prosperity & Investment,BiT,Premises-Related Expenditure,R&M -Buildings DLO Charge,GRANVILLE CONSTRUCTION & MAINTENANCE LTD,15/02/2023,"2,109.00"
Prosperity & Investment,BiT,Premises-Related Expenditure,R&M -Buildings DLO Charge,GRANVILLE CONSTRUCTION & MAINTENANCE LTD,15/02/2023,"1,020.00"
Prosperity & Investment,BiT,Premises-Related Expenditure,R&M -Buildings DLO Charge,GRANVILLE CONSTRUCTION & MAINTENANCE LTD,14/02/2023,191.83
Prosperity & Investment,BiT,Premises-Related Expenditure,R&M -Buildings DLO Charge,GRANVILLE CONSTRUCTION & MAINTENANCE LTD,14/02/2023,146.00
Prosperity & Investment,BiT,Premises-Related Expenditure,R&M -Buildings DLO Charge,GRANVILLE CONSTRUCTION & MAINTENANCE LTD,14/02/2023,101.71
Prosperity & Investment,BiT,Premises-Related Expenditure,R&M -Buildings DLO Charge,GRANVILLE CONSTRUCTION & MAINTENANCE LTD,02/02/2023,170.23
Prosperity & Investment,BiT,Premises-Related Expenditure,R&M -Buildings DLO Charge,GRANVILLE CONSTRUCTION & MAINTENANCE LTD,07/02/2023,"1,999.54"
Prosperity & Investment,BiT,Premises-Related Expenditure,R&M -Buildings DLO Charge,GRANVILLE CONSTRUCTION & MAINTENANCE LTD,07/02/2023,165.75
Prosperity & Investment,BiT,Premises-Related Expenditure,R&M -Buildings DLO Charge,GRANVILLE CONSTRUCTION & MAINTENANCE LTD,07/02/2023,"1,740.00"
Prosperity & Investment,BiT,Premises-Related Expenditure,R&M -Buildings DLO Charge,GRANVILLE CONSTRUCTION & MAINTENANCE LTD,07/02/2023,192.00
Prosperity & Investment,BiT,Premises-Related Expenditure,R&M -Buildings DLO Charge,GRANVILLE CONSTRUCTION & MAINTENANCE LTD,28/02/2023,"4,351.19"
Prosperity & Investment,BiT,Premises-Related Expenditure,R&M -Buildings DLO Charge,GRANVILLE CONSTRUCTION & MAINTENANCE LTD,28/02/2023,"5,010.00"
Prosperity & Investment,BiT,Premises-Related Expenditure,R&M -Building Other,GRANVILLE CONSTRUCTION & MAINTENANCE LTD,28/02/2023,"2,070.07"
Prosperity & Investment,BiT,Premises-Related Expenditure,R&M -Building Other,GRANVILLE CONSTRUCTION & MAINTENANCE LTD,03/02/2023,"1,200.00"
Prosperity & Investment,BiT,Premises-Related Expenditure,R&M -Building Other,GRANVILLE CONSTRUCTION & MAINTENANCE LTD,03/02/2023,"1,247.73"
Prosperity & Investment,BiT,Premises-Related Expenditure,R&M -Building Other,GRANVILLE CONSTRUCTION & MAINTENANCE LTD,07/02/2023,"1,001.17"
Prosperity & Investment,BiT,Premises-Related Expenditure,R&M -Building Other,GRANVILLE CONSTRUCTION & MAINTENANCE LTD,07/02/2023,"1,624.10"
Prosperity & Investment,BiT,Premises-Related Expenditure,R&M -Building Other,GRANVILLE CONSTRUCTION & MAINTENANCE LTD,07/02/2023,"1,085.78"
Prosperity & Investment,BiT,Premises-Related Expenditure,R&M -Building Other,GRANVILLE CONSTRUCTION & MAINTENANCE LTD,14/02/2023,139.87
Prosperity & Investment,BiT,Premises-Related Expenditure,R&M -Building Other,GRANVILLE CONSTRUCTION & MAINTENANCE LTD,14/02/2023,144.00
Prosperity & Investment,BiT,Premises-Related Expenditure,R&M -Building Other,GRANVILLE CONSTRUCTION & MAINTENANCE LTD,02/02/2023,102.87
Prosperity & Investment,BiT,Premises-Related Expenditure,R&M -Building Other,GRANVILLE CONSTRUCTION & MAINTENANCE LTD,14/02/2023,533.47
Prosperity & Investment,BiT,Premises-Related Expenditure,R&M -Building Other,GRANVILLE CONSTRUCTION & MAINTENANCE LTD,14/02/2023,378.00
Prosperity & Investment,BiT,Supplies & Services,Fees,GRANVILLE CONSTRUCTION & MAINTENANCE LTD,17/02/2023,204.00
Prosperity & Investment,BiT,Premises-Related Expenditure,R&M -Buildings DLO Charge,GRANVILLE CONSTRUCTION & MAINTENANCE LTD,15/02/2023,240.00
Prosperity & Investment,BiT,Premises-Related Expenditure,R&M -Buildings DLO Charge,GRANVILLE CONSTRUCTION & MAINTENANCE LTD,07/02/2023,"2,676.00"
Prosperity & Investment,BiT,Premises-Related Expenditure,R&M -Buildings DLO Charge,GRANVILLE CONSTRUCTION & MAINTENANCE LTD,07/02/2023,"3,407.54"
Prosperity & Investment,BiT,Premises-Related Expenditure,R&M -Buildings DLO Charge,GRANVILLE CONSTRUCTION & MAINTENANCE LTD,06/02/2023,862.66
Prosperity & Investment,BiT,Premises-Related Expenditure,R&M -Buildings DLO Charge,GRANVILLE CONSTRUCTION & MAINTENANCE LTD,14/02/2023,154.20
Prosperity & Investment,BiT,Premises-Related Expenditure,R&M -Buildings DLO Charge,GRANVILLE CONSTRUCTION & MAINTENANCE LTD,02/02/2023,207.83
Prosperity & Investment,BiT,Premises-Related Expenditure,R&M -Buildings DLO Charge,GRANVILLE CONSTRUCTION & MAINTENANCE LTD,02/02/2023,402.00
Prosperity & Investment,BiT,Premises-Related Expenditure,R&M -Buildings DLO Charge,GRANVILLE CONSTRUCTION & MAINTENANCE LTD,17/02/2023,180.00
Prosperity & Investment,BiT,Premises-Related Expenditure,R&M -Buildings DLO Charge,GRANVILLE CONSTRUCTION & MAINTENANCE LTD,15/02/2023,120.00
Prosperity & Investment,BiT,Premises-Related Expenditure,R&M -Buildings DLO Charge,GRANVILLE CONSTRUCTION & MAINTENANCE LTD,07/02/2023,284.45
Prosperity & Investment,BiT,Premises-Related Expenditure,R&M -Buildings DLO Charge,GRANVILLE CONSTRUCTION & MAINTENANCE LTD,22/02/2023,123.60
Prosperity & Investment,BiT,Premises-Related Expenditure,R&M -Buildings DLO Charge,GRANVILLE CONSTRUCTION & MAINTENANCE LTD,02/02/2023,130.00
Prosperity & Investment,Development Management,Premises-Related Expenditure,Planned Repairs,GRANVILLE CONSTRUCTION & MAINTENANCE LTD,02/02/2023,228.00
Prosperity & Investment,Regeneration & Investment,Premises-Related Expenditure,R&M -Building Other,GRANVILLE CONSTRUCTION & MAINTENANCE LTD,10/02/2023,108.00
Prosperity & Investment,Regeneration & Investment,Premises-Related Expenditure,R&M -Building Other,GRANVILLE CONSTRUCTION & MAINTENANCE LTD,10/02/2023,138.00
Prosperity & Investment,Regeneration & Investment,Premises-Related Expenditure,R&M -Building Other,GRANVILLE CONSTRUCTION & MAINTENANCE LTD,10/02/2023,132.00
Prosperity & Investment,Regeneration & Investment,Premises-Related Expenditure,R&M -Building Other,GRANVILLE CONSTRUCTION & MAINTENANCE LTD,10/02/2023,102.00
Prosperity & Investment,Regeneration & Investment,Premises-Related Expenditure,R&M -Building Other,GRANVILLE CONSTRUCTION & MAINTENANCE LTD,22/02/2023,245.00
Prosperity & Investment,Regeneration & Investment,Premises-Related Expenditure,R&M -Building Other,GRANVILLE CONSTRUCTION & MAINTENANCE LTD,22/02/2023,649.00
Prosperity & Investment,Regeneration & Investment,Premises-Related Expenditure,R&M -Building Other,GRANVILLE CONSTRUCTION & MAINTENANCE LTD,10/02/2023,198.00
Prosperity & Investment,Regeneration & Investment,Premises-Related Expenditure,R&M -Building Other,GRANVILLE CONSTRUCTION & MAINTENANCE LTD,17/02/2023,148.76
Prosperity & Investment,Regeneration & Investment,Premises-Related Expenditure,R&M -Building Other,GRANVILLE CONSTRUCTION & MAINTENANCE LTD,01/02/2023,330.24
Prosperity & Investment,Regeneration & Investment,Premises-Related Expenditure,R&M -Building Other,GRANVILLE CONSTRUCTION & MAINTENANCE LTD,01/02/2023,945.73
Prosperity & Investment,Regeneration & Investment,Premises-Related Expenditure,R&M -Building Other,GRANVILLE CONSTRUCTION & MAINTENANCE LTD,01/02/2023,792.00
Prosperity & Investment,Regeneration & Investment,Premises-Related Expenditure,R&M -Building Other,GRANVILLE CONSTRUCTION & MAINTENANCE LTD,08/02/2023,"3,059.00"
Prosperity & Investment,Regeneration & Investment,Premises-Related Expenditure,R&M -Building Other,GRANVILLE CONSTRUCTION & MAINTENANCE LTD,08/02/2023,"1,648.86"
Prosperity & Investment,Regeneration & Investment,Premises-Related Expenditure,Contract Cleaning,GRANVILLE CONSTRUCTION & MAINTENANCE LTD,06/02/2023,574.00
Prosperity & Investment,Regeneration & Investment,Premises-Related Expenditure,R&M -Building Other,GRANVILLE CONSTRUCTION & MAINTENANCE LTD,06/02/2023,938.00
Prosperity & Investment,Regeneration & Investment,Premises-Related Expenditure,R&M -Building Other,GRANVILLE CONSTRUCTION & MAINTENANCE LTD,06/02/2023,212.95
Prosperity & Investment,Regeneration & Investment,Premises-Related Expenditure,R&M -Building Other,GRANVILLE CONSTRUCTION & MAINTENANCE LTD,01/02/2023,"1,420.00"
Prosperity & Investment,Regeneration & Investment,Premises-Related Expenditure,R&M -Building Other,GRANVILLE CONSTRUCTION & MAINTENANCE LTD,01/02/2023,"2,172.46"
Prosperity & Investment,Regeneration & Investment,Premises-Related Expenditure,R&M -Building Other,GRANVILLE CONSTRUCTION & MAINTENANCE LTD,10/02/2023,196.95
Prosperity & Investment,Regeneration & Investment,Premises-Related Expenditure,R&M -Building Other,GRANVILLE CONSTRUCTION & MAINTENANCE LTD,10/02/2023,195.95
Prosperity & Investment,Regeneration & Investment,Premises-Related Expenditure,R&M -Building Other,GRANVILLE CONSTRUCTION & MAINTENANCE LTD,16/02/2023,213.45
Prosperity & Investment,Regeneration & Investment,Premises-Related Expenditure,R&M -Building Other,GRANVILLE CONSTRUCTION & MAINTENANCE LTD,16/02/2023,194.00
Prosperity & Investment,Regeneration & Investment,Premises-Related Expenditure,R&M -Building Other,GRANVILLE CONSTRUCTION & MAINTENANCE LTD,24/02/2023,385.56
Prosperity & Investment,Regeneration & Investment,Premises-Related Expenditure,R&M -Building Other,GRANVILLE CONSTRUCTION & MAINTENANCE LTD,02/02/2023,161.43
Prosperity & Investment,Regeneration & Investment,Premises-Related Expenditure,Grounds Maintenance - L&CS,GRANVILLE CONSTRUCTION & MAINTENANCE LTD,06/02/2023,257.50
Prosperity & Investment,Regeneration & Investment,Premises-Related Expenditure,Grounds Maintenance - L&CS,GRANVILLE CONSTRUCTION & MAINTENANCE LTD,06/02/2023,101.03
Prosperity & Investment,Regeneration & Investment,Premises-Related Expenditure,R&M -Building Other,GRANVILLE CONSTRUCTION & MAINTENANCE LTD,14/02/2023,496.95
Prosperity & Investment,Regeneration & Investment,Premises-Related Expenditure,R&M -Building Other,GRANVILLE CONSTRUCTION & MAINTENANCE LTD,06/02/2023,184.19
Prosperity & Investment,Regeneration & Investment,Premises-Related Expenditure,R&M -Building Other,GRANVILLE CONSTRUCTION & MAINTENANCE LTD,01/02/2023,207.00
Prosperity & Investment,Regeneration & Investment,Premises-Related Expenditure,R&M -Building Other,GRANVILLE CONSTRUCTION & MAINTENANCE LTD,01/02/2023,126.74
Prosperity & Investment,Regeneration & Investment,Premises-Related Expenditure,R&M -Building Other,GRANVILLE CONSTRUCTION & MAINTENANCE LTD,08/02/2023,"1,198.00"
Prosperity & Investment,Regeneration & Investment,Third Party Payments,Contractor Recharge,GRANVILLE CONSTRUCTION & MAINTENANCE LTD,08/02/2023,"1,057.42"
Prosperity & Investment,Regeneration & Investment,Third Party Payments,Contractor Recharge,GRANVILLE CONSTRUCTION & MAINTENANCE LTD,06/02/2023,235.00
Prosperity & Investment,Regeneration & Investment,Third Party Payments,Contractor Recharge,GRANVILLE CONSTRUCTION & MAINTENANCE LTD,06/02/2023,118.89
Prosperity & Investment,Regeneration & Investment,Premises-Related Expenditure,R&M -SCC Planned,GRANVILLE CONSTRUCTION & MAINTENANCE LTD,06/02/2023,100.14
Prosperity & Investment,Regeneration & Investment,Capital Expenditure,Payments to Contractor,GRANVILLE CONSTRUCTION & MAINTENANCE LTD,17/02/2023,"1,920.00"
Prosperity & Investment,Regeneration & Investment,Capital Expenditure,Payments to Contractor,GRANVILLE CONSTRUCTION & MAINTENANCE LTD,17/02/2023,975.00
Prosperity & Investment,Regeneration & Investment,Capital Expenditure,External Professional Fees,GRANVILLE CONSTRUCTION & MAINTENANCE LTD,01/02/2023,365.49
Education & Skills,Pupil Support Services,Supplies & Services,Other Grants (Expenses),GREAT DAWLEY PARISH COUNCIL,14/02/2023,"1,014.00"
Neighbourhood & Enforcement Services,Safer & Stronger Communities,Supplies & Services,Other Services,GREAT DAWLEY PARISH COUNCIL,17/02/2023,900.00
Neighbourhood & Enforcement Services,Waste & Neighbourhood Services,Premises-Related Expenditure,Grounds Maintenance - Other,Green-Tech Ltd,07/02/2023,259.50
Policy & Governance,Governance & Legal Services,Employees,Staff Training,H A Associates Ltd,23/02/2023,360.00
Education & Skills,SEND (0-25),Third Party Payments,DSG - High Needs Block,H Childcare Ltd,22/02/2023,"1,130.73"
Neighbourhood & Enforcement Services,Waste & Neighbourhood Services,Premises-Related Expenditure,Grounds Maintenance - Other,H G LTD,21/02/2023,680.76
Neighbourhood & Enforcement Services,Waste & Neighbourhood Services,Premises-Related Expenditure,Grounds Maintenance - Other,H Tree Care Ltd,07/02/2023,"1,100.00"
Neighbourhood & Enforcement Services,Waste & Neighbourhood Services,Premises-Related Expenditure,Grounds Maintenance - Misc,H Tree Care Ltd,21/02/2023,"2,250.00"
Prosperity & Investment,Regeneration & Investment,Capital Expenditure,Payments to Contractor,H Tree Care Ltd,03/02/2023,"5,398.00"
Education & Skills,SEND (0-25),Third Party Payments,DSG - High Needs Block,Hadley Learning Community Academy,22/02/2023,"13,844.28"
Education & Skills,SEND (0-25),Third Party Payments,DSG - High Needs Block,Hadley Learning Community Academy,22/02/2023,"1,741.42"
Education & Skills,SEND (0-25),Third Party Payments,DSG - High Needs Block,Hadley Learning Community Academy,22/02/2023,"3,562.02"
Education & Skills,SEND (0-25),Third Party Payments,DSG - High Needs Block,Hadley Learning Community Academy,22/02/2023,176.22
Education & Skills,SEND (0-25),Third Party Payments,DSG - High Needs Block,HADLEY UNDER 5�S ,22/02/2023,914.60
Prosperity & Investment,Regeneration & Investment,Capital Expenditure,Legal Fees,Halls Holdings Ltd,21/02/2023,"1,000.00"
"Communities, Customer & Commercial Services",Culture & Events,Supplies & Services,Contract Catering,HAMMONDS CATERING SERVICES LTD,27/02/2023,156.00
"Communities, Customer & Commercial Services",Sport & Leisure,Supplies & Services,Provisions,Handmade Speciality Products Ltd,17/02/2023,548.26
"Communities, Customer & Commercial Services",Sport & Leisure,Supplies & Services,Provisions,Handmade Speciality Products Ltd,03/02/2023,382.77
"Communities, Customer & Commercial Services",Sport & Leisure,Supplies & Services,Crockery/Hardware/Light Equip,Harfield Components Ltd,17/02/2023,129.99
"Communities, Customer & Commercial Services",Customer Relationships & Welfare Services,Supplies & Services,Other Grants (Expenses),Hawk Incentives Ltd,02/02/2023,"448,682.40"
"Communities, Customer & Commercial Services",Customer Relationships & Welfare Services,Supplies & Services,Other Grants (Expenses),Hawk Incentives Ltd,22/02/2023,"4,442.40"
"Communities, Customer & Commercial Services",Customer Relationships & Welfare Services,Supplies & Services,Other Grants (Expenses),Hawk Incentives Ltd ,23/02/2023,"19,028.28"
"Communities, Customer & Commercial Services",Community Services,Supplies & Services,Equipment - Purchase,Health and Care,02/02/2023,276.00
Corporate Items,Corporate Codes,Employees,Staff Training,Healthcare Conferences UK,23/02/2023,295.00
Adult Social Care,Community Social Work & Adult Safeguarding,Supplies & Services,Other Grants (Expenses),Healthwatch,17/02/2023,"25,000.00"
Prosperity & Investment,Regeneration & Investment,Premises-Related Expenditure,R&M -Building Other,Heightsafe Systems Ltd,06/02/2023,"1,450.00"
Policy & Governance,Organisational Development & Delivery,Employees,Staff Training,Henpicked: Menopause in the Workplace Ltd,17/02/2023,"1,450.00"
Education & Skills,SEND (0-25),Employees,Staff Training,Herefordshire and Ludlow College,08/02/2023,108.00
Adult Social Care,ASC Prevention & Enablement,Supplies & Services,Aids & Appliances,HILBRAE PETS HOTEL,14/02/2023,372.00
Adult Social Care,ASC Prevention & Enablement,Supplies & Services,Aids & Appliances,HILBRAE PETS HOTEL,14/02/2023,360.00
"Communities, Customer & Commercial Services",Culture & Events,Supplies & Services,Artistes Fees,Historical Promotions,14/02/2023,"1,350.00"
Education & Skills,Pupil Support Services,Supplies & Services,Other Grants (Expenses),HOLLINSWOOD & RANDLAY PARISH COUNCIL,14/02/2023,"1,223.13"
Neighbourhood & Enforcement Services,Waste & Neighbourhood Services,Premises-Related Expenditure,Grounds Maintenance - Other,Holt�s Tree Care Ltd,20/02/2023,"3,250.00"
"Communities, Customer & Commercial Services",Community Services,Supplies & Services,Grants To Voluntary Organis,HOME-START TELFORD & WREKIN,01/02/2023,500.00
Neighbourhood & Enforcement Services,Public Protection,Supplies & Services,Sub Contractors,Hough Green Garage Ltd,20/02/2023,160.00
Education & Skills,SEND (0-25),Third Party Payments,DSG - High Needs Block,HRP Education,22/02/2023,490.00
Education & Skills,SEND (0-25),Third Party Payments,DSG - High Needs Block,HRP Education,22/02/2023,"1,470.00"
Education & Skills,SEND (0-25),Third Party Payments,DSG - High Needs Block,HRP Education,22/02/2023,245.00
Education & Skills,SEND (0-25),Third Party Payments,DSG - High Needs Block,HRP Education,22/02/2023,297.00
Education & Skills,SEND (0-25),Third Party Payments,DSG - High Needs Block,HRP Education,22/02/2023,245.00
Education & Skills,SEND (0-25),Third Party Payments,DSG - High Needs Block,HRP Education,22/02/2023,588.00
Education & Skills,SEND (0-25),Third Party Payments,DSG - High Needs Block,HRP Education,22/02/2023,735.00
Education & Skills,SEND (0-25),Third Party Payments,DSG - High Needs Block,HRP Education,22/02/2023,735.00
Education & Skills,SEND (0-25),Third Party Payments,DSG - High Needs Block,HRP Education,22/02/2023,245.00
Neighbourhood & Enforcement Services,"Highways, Engineering & Project Delivery",Supplies & Services,Other Services,Hydro-Logic Services  Ltd,08/02/2023,706.00
Neighbourhood & Enforcement Services,"Highways, Engineering & Project Delivery",Supplies & Services,Other Services,Hydro-Logic Services  Ltd,08/02/2023,"3,913.00"
"Communities, Customer & Commercial Services",Sport & Leisure,Supplies & Services,Other Materials,Hydron Protective Coatings LTD,17/02/2023,131.70
"Communities, Customer & Commercial Services",Sport & Leisure,Supplies & Services,Sub Contractors,HYDRO-TECH ENVIRONMENTAL LLP,15/02/2023,160.00
Prosperity & Investment,BiT,Premises-Related Expenditure,R&M -Buildings DLO Charge,HYDRO-TECH ENVIRONMENTAL LLP,02/02/2023,380.00
Prosperity & Investment,BiT,Premises-Related Expenditure,R&M -Buildings DLO Charge,HYDRO-TECH ENVIRONMENTAL LLP,02/02/2023,380.00
Prosperity & Investment,BiT,Premises-Related Expenditure,Service Contracts,HYDRO-TECH ENVIRONMENTAL LLP,02/02/2023,380.00
Prosperity & Investment,BiT,Premises-Related Expenditure,R&M -Buildings DLO Charge,HYDRO-TECH ENVIRONMENTAL LLP,06/02/2023,390.00
Prosperity & Investment,BiT,Premises-Related Expenditure,Service Contracts,HYDRO-TECH ENVIRONMENTAL LLP,02/02/2023,125.00
Prosperity & Investment,BiT,Premises-Related Expenditure,Service Contracts,HYDRO-TECH ENVIRONMENTAL LLP,02/02/2023,160.00
Prosperity & Investment,BiT,Premises-Related Expenditure,Service Contracts,HYDRO-TECH ENVIRONMENTAL LLP,02/02/2023,320.00
Prosperity & Investment,BiT,Premises-Related Expenditure,Service Contracts,HYDRO-TECH ENVIRONMENTAL LLP,02/02/2023,380.00
Prosperity & Investment,Regeneration & Investment,Premises-Related Expenditure,R&M -Building Other,HYDRO-TECH ENVIRONMENTAL LLP,06/02/2023,260.00
Prosperity & Investment,Regeneration & Investment,Premises-Related Expenditure,R&M -Building Other,HYDRO-TECH ENVIRONMENTAL LLP,02/02/2023,160.00
Prosperity & Investment,Regeneration & Investment,Premises-Related Expenditure,R&M -Building Other,HYDRO-TECH ENVIRONMENTAL LLP,02/02/2023,205.00
Prosperity & Investment,Regeneration & Investment,Premises-Related Expenditure,R&M -Building Other,HYDRO-TECH ENVIRONMENTAL LLP,06/02/2023,380.00
"Communities, Customer & Commercial Services",Sport & Leisure,Supplies & Services,Equipment - Purchase,IcetechUK,27/02/2023,"6,743.00"
"Communities, Customer & Commercial Services",Sport & Leisure,Supplies & Services,Carriage/Delivery Charge,IcetechUK,27/02/2023,400.00
"Communities, Customer & Commercial Services",Sport & Leisure,Supplies & Services,Equipment - Purchase,IcetechUK,14/02/2023,"6,220.00"
Adult Social Care,My Options,Employees,Agency Supply Costs,Iconic Care Limited,07/02/2023,528.00
Adult Social Care,My Options,Employees,Agency Supply Costs,Iconic Care Limited,07/02/2023,"1,075.50"
Adult Social Care,My Options,Employees,Agency Supply Costs,Iconic Care Limited,07/02/2023,"1,343.00"
Adult Social Care,My Options,Employees,Agency Supply Costs,Iconic Care Limited,07/02/2023,"1,236.00"
Adult Social Care,My Options,Employees,Agency Supply Costs,Iconic Care Limited,07/02/2023,360.00
Adult Social Care,My Options,Employees,Agency Supply Costs,Iconic Care Limited,07/02/2023,"1,254.00"
Adult Social Care,My Options,Employees,Agency Supply Costs,Iconic Care Limited,07/02/2023,"1,776.00"
Adult Social Care,My Options,Employees,Agency Supply Costs,Iconic Care Limited,07/02/2023,"1,104.00"
Neighbourhood & Enforcement Services,Neighbourhood & Environmental Services,Third Party Payments,Contractor Recharge,Id verde,10/02/2023,"536,504.80"
Neighbourhood & Enforcement Services,Neighbourhood & Environmental Services,Third Party Payments,G&C Contract - Idverde,Id verde,03/02/2023,"16,102.58"
Prosperity & Investment,BiT,Premises-Related Expenditure,R&M -Buildings DLO Charge,Id verde,14/02/2023,800.00
Prosperity & Investment,BiT,Premises-Related Expenditure,R&M -Buildings DLO Charge,Id verde,14/02/2023,800.00
Prosperity & Investment,Regeneration & Investment,Premises-Related Expenditure,Grounds Maintenance - L&CS,Id verde,08/02/2023,"15,691.00"
"Housing, Employment & Infrastructure",Inward Investment & Business Support,Supplies & Services,Consultancy,IJP CONSULTANCY LIMITED,24/02/2023,"1,000.00"
Policy & Governance,Governance & Legal Services,Supplies & Services,Computer Software (Maint),IKEN BUSINESS LTD,28/02/2023,375.00
Policy & Governance,Governance & Legal Services,Supplies & Services,Computer Software (Maint),IKEN BUSINESS LTD,28/02/2023,375.00
Policy & Governance,Governance & Legal Services,Supplies & Services,Computer Software (Maint),IKEN BUSINESS LTD,28/02/2023,375.00
"Communities, Customer & Commercial Services",Culture & Events,Supplies & Services,Equipment - Hire,Illuminate Audio Visual Effects,20/02/2023,"1,400.00"
"Communities, Customer & Commercial Services",Sport & Leisure,Supplies & Services,Protective Clothing,IMAGE@WORK LTD,15/02/2023,102.55
Policy & Governance,Governance & Legal Services,Supplies & Services,Printing - Other,IMPACT MAIL & PRINT LTD,10/02/2023,"2,185.33"
Neighbourhood & Enforcement Services,Waste & Neighbourhood Services,Premises-Related Expenditure,Grounds Maintenance - Other,Industry Signage,01/02/2023,290.00
Neighbourhood & Enforcement Services,Strategic Transport & Highway Network Management,Employees,Training Expenses,INSTITUTE OF HIGHWAYS ENGINEERS,21/02/2023,"1,995.00"
Neighbourhood & Enforcement Services,Strategic Transport & Highway Network Management,Employees,Staff Training,INSTITUTE OF HIGHWAYS ENGINEERS,07/02/2023,"3,990.00"
Neighbourhood & Enforcement Services,Public Protection,Employees,Cont Prof Development,INSTITUTE OF LICENSING LTD ,23/02/2023,130.00
"Communities, Customer & Commercial Services",Sport & Leisure,Employees,Staff Training,INSTITUTE OF SWIMMING ,15/02/2023,299.00
"Communities, Customer & Commercial Services",Sport & Leisure,Employees,Staff Training,INSTITUTE OF SWIMMING ,15/02/2023,299.00
"Communities, Customer & Commercial Services",Sport & Leisure,Employees,Staff Training,INSTITUTE OF SWIMMING ,15/02/2023,375.00
"Communities, Customer & Commercial Services",Sport & Leisure,Employees,Staff Training,INSTITUTE OF SWIMMING ,08/02/2023,"6,220.00"
"Communities, Customer & Commercial Services",Sport & Leisure,Employees,Staff Training,INSTITUTE OF SWIMMING ,15/02/2023,375.00
Children�s Safeguarding & Family Support,Family Connect & Childrens Centres,Supplies & Services,Other Expenses,IRONBRIDGE GORGE MUSEUM TRUST LTD,15/02/2023,300.00
Children�s Safeguarding & Family Support,Family Connect & Childrens Centres,Supplies & Services,Other Expenses,IRONBRIDGE GORGE MUSEUM TRUST LTD,15/02/2023,300.00
"Communities, Customer & Commercial Services",Culture & Events,Supplies & Services,Artistes Fees,IRONBRIDGE GORGE MUSEUM TRUST LTD,17/02/2023,"4,754.11"
Children�s Safeguarding & Family Support,Child Protection & Family Support,Employees,Staff Training,IRONBRIDGE GORGE TRADING CO LTD,07/02/2023,145.00
Finance & Human Resources,Revenues,Employees,Professional Subs,IRRV,06/02/2023,199.00
"Communities, Customer & Commercial Services",Sport & Leisure,Supplies & Services,EEC Whole Milk,J DAIRIES,14/02/2023,798.33
"Communities, Customer & Commercial Services",Sport & Leisure,Supplies & Services,EEC Whole Milk,J DAIRIES,14/02/2023,798.33
"Communities, Customer & Commercial Services",Sport & Leisure,Supplies & Services,Provisions,J DAIRIES,14/02/2023,"1,820.80"
"Communities, Customer & Commercial Services",Sport & Leisure,Supplies & Services,Provisions,J DAIRIES,14/02/2023,"1,817.20"
"Communities, Customer & Commercial Services",Sport & Leisure,Supplies & Services,EEC Whole Milk,J DAIRIES,01/02/2023,801.18
"Communities, Customer & Commercial Services",Sport & Leisure,Supplies & Services,Provisions,J DAIRIES,06/02/2023,"1,820.80"
"Communities, Customer & Commercial Services",Sport & Leisure,Supplies & Services,EEC Whole Milk,J DAIRIES,06/02/2023,797.68
"Communities, Customer & Commercial Services",Sport & Leisure,Supplies & Services,EEC Whole Milk,J DAIRIES,21/02/2023,798.33
"Communities, Customer & Commercial Services",Sport & Leisure,Supplies & Services,Provisions,J DAIRIES,21/02/2023,"1,659.28"
Adult Social Care,My Options,Employees,Agency Supply Costs,J N Recruitment,09/02/2023,786.50
"Communities, Customer & Commercial Services",Sport & Leisure,Supplies & Services,First Aid,J P L LTD,17/02/2023,455.74
"Communities, Customer & Commercial Services",Sport & Leisure,Supplies & Services,Equipment - Purchase,J P L LTD,07/02/2023,332.80
"Communities, Customer & Commercial Services",Sport & Leisure,Supplies & Services,Equipment - Purchase,J P L LTD,17/02/2023,171.68
"Communities, Customer & Commercial Services",Sport & Leisure,Supplies & Services,Provisions,J S Catering Butchers,07/02/2023,100.23
"Communities, Customer & Commercial Services",Sport & Leisure,Supplies & Services,Provisions,J S Catering Butchers,07/02/2023,271.00
"Communities, Customer & Commercial Services",Sport & Leisure,Supplies & Services,Provisions,J S Catering Butchers,07/02/2023,185.43
"Communities, Customer & Commercial Services",Sport & Leisure,Supplies & Services,Provisions,J S Catering Butchers,07/02/2023,111.23
"Communities, Customer & Commercial Services",Sport & Leisure,Supplies & Services,Provisions,J S Catering Butchers,07/02/2023,199.35
"Communities, Customer & Commercial Services",Sport & Leisure,Supplies & Services,Provisions,J S Catering Butchers,14/02/2023,182.32
"Communities, Customer & Commercial Services",Sport & Leisure,Supplies & Services,Provisions,J S Catering Butchers,14/02/2023,100.45
"Communities, Customer & Commercial Services",Sport & Leisure,Supplies & Services,Provisions,J S Catering Butchers,14/02/2023,128.51
"Communities, Customer & Commercial Services",Sport & Leisure,Supplies & Services,Provisions,J S Catering Butchers,07/02/2023,179.68
"Communities, Customer & Commercial Services",Sport & Leisure,Supplies & Services,Provisions,J S Catering Butchers,07/02/2023,185.93
"Communities, Customer & Commercial Services",Sport & Leisure,Supplies & Services,Provisions,J S Catering Butchers,07/02/2023,173.90
"Communities, Customer & Commercial Services",Sport & Leisure,Supplies & Services,Provisions,J S Catering Butchers,07/02/2023,220.10
"Communities, Customer & Commercial Services",Sport & Leisure,Supplies & Services,Provisions,J S Catering Butchers,07/02/2023,255.82
"Communities, Customer & Commercial Services",Sport & Leisure,Supplies & Services,Provisions,J S Catering Butchers,07/02/2023,199.35
"Communities, Customer & Commercial Services",Sport & Leisure,Supplies & Services,Provisions,J S Catering Butchers,07/02/2023,112.00
"Communities, Customer & Commercial Services",Sport & Leisure,Supplies & Services,Provisions,J S Catering Butchers,07/02/2023,109.20
"Communities, Customer & Commercial Services",Sport & Leisure,Supplies & Services,Provisions,J S Catering Butchers,07/02/2023,118.35
"Communities, Customer & Commercial Services",Sport & Leisure,Supplies & Services,Provisions,J S Catering Butchers,07/02/2023,133.43
"Communities, Customer & Commercial Services",Sport & Leisure,Supplies & Services,Provisions,J S Catering Butchers,07/02/2023,-101.70
"Communities, Customer & Commercial Services",Sport & Leisure,Supplies & Services,Provisions,J S Catering Butchers,14/02/2023,140.60
"Communities, Customer & Commercial Services",Sport & Leisure,Supplies & Services,Provisions,J S Catering Butchers,14/02/2023,147.20
"Communities, Customer & Commercial Services",Sport & Leisure,Supplies & Services,Provisions,J S Catering Butchers,14/02/2023,203.23
"Communities, Customer & Commercial Services",Sport & Leisure,Supplies & Services,Provisions,J S Catering Butchers,14/02/2023,128.58
"Communities, Customer & Commercial Services",Sport & Leisure,Supplies & Services,Provisions,J S Catering Butchers,14/02/2023,110.10
"Communities, Customer & Commercial Services",Sport & Leisure,Supplies & Services,Provisions,J S Catering Butchers,14/02/2023,153.77
"Communities, Customer & Commercial Services",Sport & Leisure,Supplies & Services,Provisions,J S Catering Butchers,21/02/2023,288.00
"Communities, Customer & Commercial Services",Sport & Leisure,Supplies & Services,Provisions,J S Catering Butchers,21/02/2023,120.50
"Communities, Customer & Commercial Services",Sport & Leisure,Supplies & Services,Provisions,J S Catering Butchers,21/02/2023,109.12
"Communities, Customer & Commercial Services",Sport & Leisure,Supplies & Services,Provisions,J S Catering Butchers,21/02/2023,158.10
"Communities, Customer & Commercial Services",Sport & Leisure,Supplies & Services,Provisions,J S Catering Butchers,14/02/2023,138.90
"Communities, Customer & Commercial Services",Sport & Leisure,Supplies & Services,Provisions,J S Catering Butchers,14/02/2023,137.00
"Communities, Customer & Commercial Services",Sport & Leisure,Supplies & Services,Provisions,J S Catering Butchers,21/02/2023,152.05
"Communities, Customer & Commercial Services",Sport & Leisure,Supplies & Services,Provisions,J S Catering Butchers,21/02/2023,114.13
"Communities, Customer & Commercial Services",Sport & Leisure,Supplies & Services,Provisions,J S Catering Butchers,21/02/2023,144.00
"Communities, Customer & Commercial Services",Sport & Leisure,Supplies & Services,Provisions,J S Catering Butchers,07/02/2023,217.03
"Communities, Customer & Commercial Services",Sport & Leisure,Supplies & Services,Provisions,J S Catering Butchers,07/02/2023,205.06
"Communities, Customer & Commercial Services",Sport & Leisure,Supplies & Services,Provisions,J S Catering Butchers,14/02/2023,147.59
"Communities, Customer & Commercial Services",Sport & Leisure,Supplies & Services,Provisions,J S Catering Butchers,14/02/2023,111.64
"Communities, Customer & Commercial Services",Sport & Leisure,Supplies & Services,Provisions,J S Catering Butchers,07/02/2023,160.63
"Communities, Customer & Commercial Services",Sport & Leisure,Supplies & Services,Provisions,J S Catering Butchers,07/02/2023,208.30
"Communities, Customer & Commercial Services",Sport & Leisure,Supplies & Services,Provisions,J SCatering Butchers,14/02/2023,159.00
"Communities, Customer & Commercial Services",Sport & Leisure,Supplies & Services,Provisions,J Sd Catering Butchers,07/02/2023,137.59
"Communities, Customer & Commercial Services",Sport & Leisure,Supplies & Services,Provisions,J Sd Catering Butchers,07/02/2023,100.82
Health & Wellbeing,Consultant in Public Health,Supplies & Services,Other Services,J U Removals Ltd,10/02/2023,365.00
"Communities, Customer & Commercial Services",Culture & Events,Supplies & Services,Artistes Fees,J�s Amazing Camels,07/02/2023,"1,250.00"
Prosperity & Investment,BiT,Premises-Related Expenditure,R&M -Buildings DLO Charge,JAK WATER SYSTEMS LTD,03/02/2023,605.10
Prosperity & Investment,BiT,Premises-Related Expenditure,R&M -Buildings DLO Charge,JAK WATER SYSTEMS LTD,02/02/2023,"1,519.45"
Prosperity & Investment,BiT,Premises-Related Expenditure,R&M -Buildings DLO Charge,JAK WATER SYSTEMS LTD,02/02/2023,312.32
Prosperity & Investment,BiT,Premises-Related Expenditure,R&M -Buildings DLO Charge,JAK WATER SYSTEMS LTD,02/02/2023,195.29
Prosperity & Investment,BiT,Premises-Related Expenditure,R&M -Buildings DLO Charge,JAK WATER SYSTEMS LTD,15/02/2023,359.00
Prosperity & Investment,BiT,Premises-Related Expenditure,R&M -Buildings DLO Charge,JAK WATER SYSTEMS LTD,15/02/2023,187.42
Prosperity & Investment,BiT,Premises-Related Expenditure,R&M -Buildings DLO Charge,JAK WATER SYSTEMS LTD,07/02/2023,"1,729.25"
Prosperity & Investment,BiT,Premises-Related Expenditure,R&M -Buildings DLO Charge,JAK WATER SYSTEMS LTD,07/02/2023,"1,225.00"
Prosperity & Investment,BiT,Premises-Related Expenditure,Service Contracts,JAK WATER SYSTEMS LTD,03/02/2023,264.00
Prosperity & Investment,BiT,Premises-Related Expenditure,Service Contracts,JAK WATER SYSTEMS LTD,03/02/2023,262.53
Prosperity & Investment,BiT,Premises-Related Expenditure,Service Contracts,JAK WATER SYSTEMS LTD,03/02/2023,336.00
Prosperity & Investment,BiT,Premises-Related Expenditure,Service Contracts,JAK WATER SYSTEMS LTD,03/02/2023,216.00
Prosperity & Investment,BiT,Premises-Related Expenditure,Service Contracts,JAK WATER SYSTEMS LTD,15/02/2023,264.00
Prosperity & Investment,BiT,Premises-Related Expenditure,Service Contracts,JAK WATER SYSTEMS LTD,15/02/2023,168.00
Prosperity & Investment,BiT,Premises-Related Expenditure,Service Contracts,JAK WATER SYSTEMS LTD,15/02/2023,495.00
Prosperity & Investment,BiT,Premises-Related Expenditure,Service Contracts,JAK WATER SYSTEMS LTD,15/02/2023,216.00
Neighbourhood & Enforcement Services,Waste & Neighbourhood Services,Premises-Related Expenditure,Grounds Maintenance - Other,JAMES COLES & SONS LTD,06/02/2023,"2,506.75"
Children�s Safeguarding & Family Support,Family Connect & Childrens Centres,Premises-Related Expenditure,R&M -Building Other,JCE & SONS LTD,10/02/2023,254.32
"Communities, Customer & Commercial Services",Community Services,Capital Expenditure,Electric Vehicle Charging Points,JCE & SONS LTD,15/02/2023,"3,266.79"
Education & Skills,Education & Skills,Capital Expenditure,Payments to Contractor,JCE & SONS LTD,08/02/2023,"22,382.00"
Prosperity & Investment,BiT,Premises-Related Expenditure,R&M -Buildings DLO Charge,JCE & SONS LTD,17/02/2023,155.09
Prosperity & Investment,BiT,Premises-Related Expenditure,R&M -Buildings DLO Charge,JCE & SONS LTD,15/02/2023,391.52
Prosperity & Investment,BiT,Premises-Related Expenditure,R&M -Buildings DLO Charge,JCE & SONS LTD,07/02/2023,"2,162.60"
Prosperity & Investment,BiT,Premises-Related Expenditure,R&M -Buildings DLO Charge,JCE & SONS LTD,14/02/2023,554.24
Prosperity & Investment,BiT,Premises-Related Expenditure,R&M -Buildings DLO Charge,JCE & SONS LTD,10/02/2023,739.28
Prosperity & Investment,BiT,Premises-Related Expenditure,R&M -Buildings DLO Charge,JCE & SONS LTD,10/02/2023,240.00
Prosperity & Investment,BiT,Premises-Related Expenditure,R&M -Buildings DLO Charge,JCE & SONS LTD,10/02/2023,381.37
Prosperity & Investment,BiT,Premises-Related Expenditure,R&M -Buildings DLO Charge,JCE & SONS LTD,10/02/2023,550.11
Prosperity & Investment,BiT,Premises-Related Expenditure,R&M -Buildings DLO Charge,JCE & SONS LTD,10/02/2023,217.04
Prosperity & Investment,BiT,Premises-Related Expenditure,R&M -Buildings DLO Charge,JCE & SONS LTD,10/02/2023,189.68
Prosperity & Investment,BiT,Premises-Related Expenditure,R&M -Buildings DLO Charge,JCE & SONS LTD,10/02/2023,139.78
Prosperity & Investment,BiT,Premises-Related Expenditure,R&M -Buildings DLO Charge,JCE & SONS LTD,10/02/2023,116.96
Prosperity & Investment,BiT,Premises-Related Expenditure,R&M -Buildings DLO Charge,JCE & SONS LTD,10/02/2023,153.10
Prosperity & Investment,BiT,Premises-Related Expenditure,R&M -Buildings DLO Charge,JCE & SONS LTD,10/02/2023,126.54
Prosperity & Investment,BiT,Premises-Related Expenditure,R&M -Buildings DLO Charge,JCE & SONS LTD,10/02/2023,151.21
Prosperity & Investment,BiT,Premises-Related Expenditure,R&M -Buildings DLO Charge,JCE & SONS LTD,10/02/2023,191.30
Prosperity & Investment,BiT,Premises-Related Expenditure,R&M -Buildings DLO Charge,JCE & SONS LTD,10/02/2023,233.58
Prosperity & Investment,BiT,Premises-Related Expenditure,R&M -Buildings DLO Charge,JCE & SONS LTD,10/02/2023,"1,016.00"
Prosperity & Investment,BiT,Premises-Related Expenditure,R&M -Buildings DLO Charge,JCE & SONS LTD,15/02/2023,272.00
Prosperity & Investment,BiT,Premises-Related Expenditure,R&M -Buildings DLO Charge,JCE & SONS LTD,22/02/2023,180.00
Prosperity & Investment,BiT,Premises-Related Expenditure,R&M -Buildings DLO Charge,JCE & SONS LTD,22/02/2023,430.00
Prosperity & Investment,BiT,Premises-Related Expenditure,R&M -Buildings DLO Charge,JCE & SONS LTD,22/02/2023,380.00
Prosperity & Investment,BiT,Supplies & Services,Test Portable Elec Equipment,JCE & SONS LTD,10/02/2023,535.50
Prosperity & Investment,BiT,Supplies & Services,Test Portable Elec Equipment,JCE & SONS LTD,10/02/2023,197.25
Prosperity & Investment,BiT,Premises-Related Expenditure,R&M -Buildings DLO Charge,JCE & SONS LTD,10/02/2023,220.74
Prosperity & Investment,BiT,Premises-Related Expenditure,R&M -Buildings DLO Charge,JCE & SONS LTD,17/02/2023,210.40
Prosperity & Investment,BiT,Premises-Related Expenditure,R&M -Buildings DLO Charge,JCE & SONS LTD,10/02/2023,104.83
Prosperity & Investment,BiT,Premises-Related Expenditure,R&M -Buildings DLO Charge,JCE & SONS LTD,22/02/2023,197.00
Prosperity & Investment,BiT,Premises-Related Expenditure,R&M -Buildings DLO Charge,JCE & SONS LTD,15/02/2023,472.48
Prosperity & Investment,BiT,Premises-Related Expenditure,R&M -Buildings DLO Charge,JCE & SONS LTD,15/02/2023,216.84
Prosperity & Investment,BiT,Premises-Related Expenditure,R&M -Buildings DLO Charge,JCE & SONS LTD,15/02/2023,125.00
Prosperity & Investment,BiT,Premises-Related Expenditure,R&M -Buildings DLO Charge,JCE & SONS LTD,07/02/2023,125.00
Prosperity & Investment,BiT,Premises-Related Expenditure,R&M -Buildings DLO Charge,JCE & SONS LTD,10/02/2023,328.07
Prosperity & Investment,BiT,Premises-Related Expenditure,R&M -Buildings DLO Charge,JCE & SONS LTD,10/02/2023,149.54
Prosperity & Investment,BiT,Premises-Related Expenditure,R&M -Buildings DLO Charge,JCE & SONS LTD,10/02/2023,"2,231.94"
Prosperity & Investment,BiT,Premises-Related Expenditure,R&M -Buildings DLO Charge,JCE & SONS LTD,10/02/2023,"3,104.23"
Prosperity & Investment,BiT,Premises-Related Expenditure,R&M -Buildings DLO Charge,JCE & SONS LTD,10/02/2023,"2,263.91"
Prosperity & Investment,BiT,Premises-Related Expenditure,R&M -Buildings DLO Charge,JCE & SONS LTD,10/02/2023,219.26
Prosperity & Investment,BiT,Premises-Related Expenditure,R&M -Buildings DLO Charge,JCE & SONS LTD,22/02/2023,184.06
Prosperity & Investment,BiT,Premises-Related Expenditure,R&M -Buildings DLO Charge,JCE & SONS LTD,22/02/2023,114.66
Prosperity & Investment,BiT,Premises-Related Expenditure,R&M -Buildings DLO Charge,JCE & SONS LTD,14/02/2023,"1,315.00"
Prosperity & Investment,BiT,Supplies & Services,Fees,JCE & SONS LTD,10/02/2023,114.63
Prosperity & Investment,BiT,Premises-Related Expenditure,R&M -Buildings DLO Charge,JCE & SONS LTD,17/02/2023,464.31
Prosperity & Investment,BiT,Premises-Related Expenditure,R&M -Buildings DLO Charge,JCE & SONS LTD,17/02/2023,282.99
Prosperity & Investment,BiT,Premises-Related Expenditure,R&M -Buildings DLO Charge,JCE & SONS LTD,02/02/2023,142.50
Prosperity & Investment,BiT,Premises-Related Expenditure,R&M -Buildings DLO Charge,JCE & SONS LTD,02/02/2023,487.71
Prosperity & Investment,BiT,Premises-Related Expenditure,R&M -Buildings DLO Charge,JCE & SONS LTD,03/02/2023,229.96
Prosperity & Investment,BiT,Premises-Related Expenditure,R&M -Buildings DLO Charge,JCE & SONS LTD,03/02/2023,160.00
Prosperity & Investment,BiT,Premises-Related Expenditure,R&M -Buildings DLO Charge,JCE & SONS LTD,03/02/2023,116.56
Prosperity & Investment,BiT,Premises-Related Expenditure,R&M -Buildings DLO Charge,JCE & SONS LTD,03/02/2023,282.99
Prosperity & Investment,BiT,Premises-Related Expenditure,R&M -Buildings DLO Charge,JCE & SONS LTD,17/02/2023,110.27
Prosperity & Investment,BiT,Premises-Related Expenditure,R&M -Buildings DLO Charge,JCE & SONS LTD,17/02/2023,145.00
Prosperity & Investment,BiT,Premises-Related Expenditure,R&M -Buildings DLO Charge,JCE & SONS LTD,17/02/2023,255.50
Prosperity & Investment,BiT,Premises-Related Expenditure,R&M -Buildings DLO Charge,JCE & SONS LTD,17/02/2023,200.38
Prosperity & Investment,BiT,Premises-Related Expenditure,R&M -Buildings DLO Charge,JCE & SONS LTD,14/02/2023,202.34
Prosperity & Investment,BiT,Premises-Related Expenditure,R&M -Buildings DLO Charge,JCE & SONS LTD,14/02/2023,216.60
Prosperity & Investment,BiT,Premises-Related Expenditure,R&M -Buildings DLO Charge,JCE & SONS LTD,14/02/2023,358.73
Prosperity & Investment,BiT,Premises-Related Expenditure,R&M -Buildings DLO Charge,JCE & SONS LTD,14/02/2023,170.56
Prosperity & Investment,BiT,Premises-Related Expenditure,R&M -Buildings DLO Charge,JCE & SONS LTD,14/02/2023,295.49
Prosperity & Investment,BiT,Premises-Related Expenditure,R&M -Buildings DLO Charge,JCE & SONS LTD,14/02/2023,110.28
Prosperity & Investment,BiT,Premises-Related Expenditure,R&M -Buildings DLO Charge,JCE & SONS LTD,14/02/2023,274.58
Prosperity & Investment,BiT,Premises-Related Expenditure,R&M -Buildings DLO Charge,JCE & SONS LTD,07/02/2023,160.00
Prosperity & Investment,BiT,Premises-Related Expenditure,R&M -Buildings DLO Charge,JCE & SONS LTD,03/02/2023,190.00
Prosperity & Investment,BiT,Premises-Related Expenditure,R&M -Buildings DLO Charge,JCE & SONS LTD,03/02/2023,332.99
Prosperity & Investment,BiT,Premises-Related Expenditure,R&M -Buildings DLO Charge,JCE & SONS LTD,03/02/2023,295.66
Prosperity & Investment,Regeneration & Investment,Premises-Related Expenditure,R&M -Building Other,JCE & SONS LTD,16/02/2023,375.00
Prosperity & Investment,Regeneration & Investment,Premises-Related Expenditure,R&M -Building Other,JCE & SONS LTD,06/02/2023,141.00
Prosperity & Investment,Regeneration & Investment,Premises-Related Expenditure,R&M -Building Other,JCE & SONS LTD,13/02/2023,199.62
Prosperity & Investment,Regeneration & Investment,Premises-Related Expenditure,R&M -Building Other,JCE & SONS LTD,22/02/2023,125.00
Children�s Safeguarding & Family Support,"Family Placements, Children in Care, Leaving Care & Emergency Duty Team",Supplies & Services,Aids & Appliances,Jiraffe,13/02/2023,"2,029.50"
Adult Social Care,My Options,Employees,Agency Supply Costs,JN Recruitment,16/02/2023,"1,009.26"
Adult Social Care,My Options,Employees,Agency Supply Costs,JN Recruitment,22/02/2023,677.88
